{"text_format":"1","workbook":"xlsx","n_sheets":5,"sheets":["現行チェックシート","レーダチャート","Sheet1","取組ﾁｪｯｸｼｰﾄ改訂版","利用方法"],"not_rendered":{"charts":2,"images":26,"macros":1,"external_links":1,"defined_names":28,"comments":0,"pivot_tables":0},"unopened":[{"sheet":"レーダチャート","index":1,"reason":"not_a_worksheet"}],"bounds":{"document_bytes":16777216,"sheet_cells":100000,"rows_first":2000,"rows_last":500,"rows_between":2000,"halvings":0,"cell_chars":16384,"cell_head_chars":4096},"cells_cut":0,"cells_raw":0,"read":"whole","date_system":"1900"}

{"sheet":"現行チェックシート","index":0,"n_rows":249,"n_cols":4,"rows_kept":249,"cut":false,"hidden":true,"merged":[]}
[null,"<項目① ： 廃棄物の排出抑制、リサイクル、適正処理>"]
[null,"（チェック欄）"]
["　1 紙の使用量の抑制（再生紙については「グリーン購入」参照）"]
[null,null,null,"会議用資料や事務手続書類の簡素化に取り組んでいる"]
[null,null,null,"両面印刷、両面コピーを徹底している"]
[null,null,null,"使用済み用紙の裏面の利用をしている"]
[null,null,null,"使用済み封筒の再利用をしている"]
[null,null,null,"Ａ４判化等による文書のスリム化に取り組んでいる"]
[null,null,null,"電子メディア等の利用によるペーパーレス化に取り組んでいる"]
["　2 廃棄物の発生そのものを抑える取組"]
[null,null,null,"使い捨て製品（紙コップ、紙皿、使い捨て容器入りの弁当等）の使用や購入を抑制している"]
[null,null,null,"リターナブル容器（ビール瓶、一升瓶等）に入った製品を優先的に購入、使用している"]
[null,null,null,"再使用又はリサイクルしやすい製品を優先的に購入、使用している"]
[null,null,null,"コピー機、パソコン、プリンタ等について、リサイクルしやすい素材を使用しているものを採用している"]
[null,null,null,"詰め替え可能な製品の利用や備品の修理などにより、製品等の長期使用を進めている"]
[null,null,null,"包装・梱包（段ボール、魚箱等）の削減、再使用に取り組んでいる"]
[null,null,null,"製造段階での工程廃棄物及び不良材等の発生抑制に取り組んでいる"]
["　3 オフィス等におけるリサイクルの促進"]
[null,null,null,"紙、金属缶、ガラスびん、プラスチック、電池等について、分別回収ボックスの適正配置などにより、ごみの分別を徹底している"]
[null,null,null,"回収した資源ごみがリサイクルされるよう確認している"]
[null,null,null,"シュレッダーの使用を秘密文書等に限っている"]
[null,null,null,"コピー機、プリンターのトナーカートリッジの回収とリサイクルを進めている"]
[null,null,null,"食べ残し、食品残滓等の有機物質については可能な限りコンポスト化（堆肥化）し、土壌に還元、利用している"]
[null,null,null,"廃食用油のせっけん等への再利用を行っている"]
[null,null,null,"包装、梱包等のリサイクルに取り組んでいる"]
["　4 出荷・販売等に際しての梱包等に関する配慮"]
[null,null,null,"簡易包装の推進、多重包装の見直し、量り売り、ばら売りの推進等により、包装紙、容器、買い物袋、食品トレイ、ラップ等の削減に取り組んでいる"]
[null,null,null,"環境負荷の少ない梱包材への代替に取り組んでいる"]
[null,null,null,"詰め替え式の容器・製品の販売促進に取り組んでいる"]
[null,null,null,"リターナブル容器入りの製品の販売促進に取り組んでいる"]
[null,null,null,"紙パック、食品トレイ、アルミ缶、スチール缶、ペットボトル等の店頭回収・リサイクルに取り組んでいる"]
["　5 生産工程における取組"]
[null,null,null,"工程から発生する金属くず、紙くず、廃液などの回収・再利用のための設備を設置し、活用している"]
["　6 産業廃棄物等の適正処理"]
[null,null,null,"産業廃棄物管理票（マニフェスト）をもとに廃棄物の適正な処理を確認している"]
[null,null,null,"廃棄物の最終処分先を定期的に、直接、チェックしている"]
[null,null,null,"廃棄物焼却の際、焼却に適さないものが混入しないよう徹底するとともに、ばい煙の処理、近隣環境への配慮等を行っている"]
[null,null,null,"メタン発生防止のため、生ごみ等の分別・リサイクルや適正な焼却処分を極力行うことにより、有機物の埋立処分を抑制している"]
[null,null,null,"有害廃棄物、医療廃棄物の管理（リストの作成、マニフェスト、適正処理のチェック）を徹底している"]
[null,null,"チェック欄数：３１"]
[null,null,null,{"$f":"IF( (COUNTIF(項目②チェック欄,\"○\")+COUNTIF(項目②チェック欄,\"△\")+COUNTIF(項目②チェック欄,\"×\")+COUNTIF(項目②チェック欄,\"―\"))=0,\"達成率　　　　%\",IF( (COUNTIF(項目②チェック欄,\"○\")+COUNTIF(項目②チェック欄,\"△\")+COUNTIF(項目②チェック欄,\"×\"))=0,\"達成率　　―　%\",COUNTIF(項目②チェック欄,\"○\")/(COUNTIF(項目②チェック欄,\"○\")+COUNTIF(項目②チェック欄,\"△\")+COUNTIF(項目②チェック欄,\"×\"))*100))","v":"達成率　　　　%"}]
[null,"<項目② ： 大気汚染、水質汚濁等の防止>"]
[null,"（チェック欄）"]
["　1 大気汚染物質排出量の削減"]
[null,null,null,"大気汚染の少ないプロセス・機器（低ＮＯｘ燃焼機器など）を採用している"]
[null,null,null,"日常の管理における大気汚染防止への配慮（燃焼管理等）を行っている"]
[null,null,null,"大気汚染について、法令による基準より厳しい自主管理基準を設定し、その達成に努めている"]
[null,null,null,"ばい煙等の測定・監視やばい煙処理設備の点検を定期的に行っている"]
[null,null,null,"事故や災害の際の汚染防止対策のための準備や訓練を行っている"]
[null,null,null,"アイドリングストップ等運転方法の配慮（急発進・急加速や空ぶかしの排除、駐停車中のエンジンの停止等）を行っている"]
[null,null,null,"ハイブリッド車や低燃費車、低排出ガス認定車、電気自動車、圧縮天然ガス自動車等の低公害車の利用に取り組んでいる"]
["　2 水質汚濁物質排出量の削減"]
[null,null,null,"水質汚濁の少ないプロセス・機器（廃液の回収・再利用など）を採用している"]
[null,null,null,"排水処理装置を適切に設置している"]
[null,null,null,"排水が閉鎖性水域（湖、内湾など）に流入する場合は、窒素・燐の除去対策を講じている"]
[null,null,null,"排水処理にクローズド・システムを採用している"]
[null,null,null,"排水に有害物質や有機汚濁物質（生ごみ等）が混入しないようにしている"]
[null,null,null,"水質汚濁等について、法令による基準より厳しい自主管理基準を設定し、その達成に努めている"]
[null,null,null,"排水等の測定・監視や排水処理設備の点検を定期的に行っている"]
[null,null,null,"事故や災害の際の汚染防止対策のための準備や訓練を行っている"]
["　3 悪臭、騒音、振動等の防止"]
[null,null,null,"悪臭防止のため排出口の位置等の配慮を行っている"]
[null,null,null,"低騒音型機器の使用、防音・防振設備の設置・管理等により騒音・振動を防止するとともに、日常的な測定・監視を実施している"]
[null,null,null,"夜間照明による光害を防止するための措置を講じている"]
[null,null,"チェック欄数：１８"]
[null,null,null,{"$f":"IF( (COUNTIF(項目③チェック欄,\"○\")+COUNTIF(項目③チェック欄,\"△\")+COUNTIF(項目③チェック欄,\"×\")+COUNTIF(項目③チェック欄,\"―\"))=0,\"達成率　　　　%\",IF( (COUNTIF(項目③チェック欄,\"○\")+COUNTIF(項目③チェック欄,\"△\")+COUNTIF(項目③チェック欄,\"×\"))=0,\"達成率　　―　%\",COUNTIF(項目③チェック欄,\"○\")/(COUNTIF(項目③チェック欄,\"○\")+COUNTIF(項目③チェック欄,\"△\")+COUNTIF(項目③チェック欄,\"×\"))*100))","v":"達成率　　　　%"}]
[]
[null,"<項目③ ： 化学物質対策>"]
[null,"（チェック欄）"]
["　1 化学物質の管理の徹底"]
[null,null,null,"有害性のおそれのある化学物質について、その種類、使用量、保管量、使用方法、使用場所、保管場所等を経時的に把握し、記録管理している"]
[null,null,null,"有害性のおそれのある化学物質の環境への排出量の計測、推定等を行っている"]
[null,null,null,"有害性のおそれのある化学物質の製品への表示を徹底している"]
[null,null,null,"化学物質の安全性に関する情報伝達のためのＭＳＤＳ（化学物質安全性データシート）を使用している"]
[null,null,null,"有害性のおそれのある物質のタンク、パイプ類は漏洩、拡散などを防止できる構造となっている"]
[null,null,null,"有害性のおそれのある物質のタンク、パイプ等の保守・点検を定期的に行っている"]
[null,null,null,"使用した有害物質を回収するシステムができている"]
[null,null,null,"有害性のおそれのある物質の輸送、保管等に当たり、事故等の汚染防止のための準備や訓練を行っている"]
[null,null,null,"有害性のおそれのある物質の削減に取り組んでいる"]
[null,null,null,"燃料油や溶剤等の揮発の防止に取り組んでいる"]
[null,null,null,"施設の消毒、除草や害虫駆除に当たり、薬剤使用の削減、合理化等に取り組んでいる"]
["　2 特定フロンの削減、適正処理"]
[null,null,null,"オゾン層を破壊する特定フロン等の削減、全廃（生産用フロン、冷却設備・空調設備の冷媒用フロンの削減、ハロン消火設備等の代替）を行っている"]
[null,null,null,"特定フロンの回収・適正処理に取り組んでいる"]
["　3 温室効果ガス（ＨＦＣ、ＰＦＣ、ＳＦ６ 等）の排出抑制"]
[null,null,null,"製造工程において、ＨＦＣ、ＰＦＣ、ＳＦ６ 等をどれだけ使用し、漏出しているか把握している"]
[null,null,null,"製造工程において使用するＨＦＣ、ＰＦＣ、ＳＦ６ 等の回収処理に取り組んでいる"]
[null,null,null,"製造工程において、可能な範囲でＨＦＣ、ＰＦＣ、ＳＦ６ 等をその他の物質に代替している"]
[null,null,null,"ＨＦＣ、ＰＦＣ、ＳＦ６ 等を使用しない製造工程に変換している"]
[null,null,null,"製品購入の際には、できるだけＨＦＣ、ＰＦＣ、ＳＦ６ 等を使用していない製品を選ぶように配慮している"]
[null,null,null,"ＨＦＣ、ＰＦＣ、ＳＦ６ 等を使用している製品を廃棄する際の回収に取り組んでいる"]
[null,null,"チェック欄数：１９"]
[null,null,null,{"$f":"IF( (COUNTIF(項目⑤チェック欄,\"○\")+COUNTIF(項目⑤チェック欄,\"△\")+COUNTIF(項目⑤チェック欄,\"×\")+COUNTIF(項目⑤チェック欄,\"―\"))=0,\"達成率　　　　%\",IF( (COUNTIF(項目⑤チェック欄,\"○\")+COUNTIF(項目⑤チェック欄,\"△\")+COUNTIF(項目⑤チェック欄,\"×\"))=0,\"達成率　　―　%\",COUNTIF(項目⑤チェック欄,\"○\")/(COUNTIF(項目⑤チェック欄,\"○\")+COUNTIF(項目⑤チェック欄,\"△\")+COUNTIF(項目⑤チェック欄,\"×\"))*100))","v":"達成率　　　　%"}]
[null," <項目④ ： 節水・水の効率利用>"]
[null,"（チェック欄）"]
[null,null,null,"雨水の貯留タンクや雨水利用施設の設置等により、雨水利用を行っている"]
[null,null,null,"雨水を地下浸透させる設備（浸透升等）の導入や工夫等を行っている"]
[null,null,null,"汚排水の再利用（中水利用）を行っている"]
[null,null,null,"節水型の家電製品、水洗トイレ等を積極的に導入している"]
[null,null,null,"蛇口に節水こま（適量の水を流す機能を持つこま）を設置している"]
[null,null,null,"地盤沈下が問題となっている地域にあっては、地下水汲み上げの削減を行っている"]
[null,null,null,"水道配管からの漏洩を定期的に点検している"]
[null,null,"チェック欄数：７"]
[null,null,null,{"$f":"IF( (COUNTIF(項目⑥チェック欄,\"○\")+COUNTIF(項目⑥チェック欄,\"△\")+COUNTIF(項目⑥チェック欄,\"×\")+COUNTIF(項目⑥チェック欄,\"―\"))=0,\"達成率　　　　%\",IF( (COUNTIF(項目⑥チェック欄,\"○\")+COUNTIF(項目⑥チェック欄,\"△\")+COUNTIF(項目⑥チェック欄,\"×\"))=0,\"達成率　　―　%\",COUNTIF(項目⑥チェック欄,\"○\")/(COUNTIF(項目⑥チェック欄,\"○\")+COUNTIF(項目⑥チェック欄,\"△\")+COUNTIF(項目⑥チェック欄,\"×\"))*100))","v":"達成率　　　　%"}]
[null,"<項目⑤ ： 製品の開発・設計等における環境配慮>"]
[null,"（チェック欄）"]
["　1 製品（プライベートブランド商品を含む）設計に当たっての環境配慮"]
[null,null,null,"製品の小型化・軽量化等により、同一機能に対して資源使用量のミニマム化を指向している"]
[null,null,null,"製品の長寿命化を指向している"]
[null,null,null,"製品の使用過程でのエネルギー削減を指向している"]
[null,null,null,"再生資源の積極的利用に取り組んでいる"]
[null,null,null,"廃棄物の発生抑制のため、モデルチェンジの適正化に取り組んでいる"]
[null,null,null,"リサイクルしやすいよう、素材の種類や製品の部品点数の削減や、ネジの数を減らすことなどによる解体しやすい構造を指向している"]
[null,null,null,"製品の包装は可能な限り簡素化している"]
[null,null,null,"自社独自の環境保全型商品等の開発に積極的に取り組んでいる"]
["　2 製品の出荷、販売後における環境負荷の削減"]
[null,null,null,"フロン類の回収に取り組んでいる"]
[null,null,null,"フロン類の漏洩防止のための留意点など、製品に関する環境への負荷を低減するための消費者への情報提供を行っている"]
[null,null,null,"修理部品の長期的な確保に自主的に取り組んでいる"]
[null,null,null,"使用後の製品、容器包装等回収、リサイクルに取り組んでいる"]
["　3 製品（プライベートブランド商品を含む）に係る製品アセスメント等"]
[null,null,null,"自社製品及び社外から購入する部品等について、想定される環境負荷のチェックリストを作成している"]
[null,null,null,"新製品開発、モデルチェンジ等にあたり、環境負荷の測定・記録や製品アセスメント（製品が廃棄物になった場合の適正処理困難性の評価、製品の生産から消費、廃棄に至る各段階での環境負荷の評価（ライフサイクルアセスメント）等を含む）を実施している"]
[null,null,null,"製品の使用時や廃棄時の環境負荷の量をカタログ等に表示している"]
[null,null,null,"既存製品についても、計画的に製品アセスメント等を実施している"]
[null,null,null,"外部から製品の環境負荷に関するデータの提供の依頼があった場合、協力している"]
["　4 環境保全型商品等の販売及び消費者に対する情報提供"]
[null,null,null,"再生資源を使用した商品、再生可能な商品、繰り返し使える商品、省資源・省エネルギー型の商品、容器包装を簡素化した商品、エコマーク製品等を重点的に販売している"]
[null,null,null,"上記商品の販売目標を定め、販売促進に積極的に取り組んでいる"]
[null,null,null,"販売の際に環境保全型製品の表示、製品アセスメントの結果の表示等を行っている"]
[null,null,null,"消費者等に環境保全型商品に関する情報を積極的に提供している"]
[null,null,"チェック欄数：２１"]
[null,null,null,{"$f":"IF( (COUNTIF(項目⑦チェック欄,\"○\")+COUNTIF(項目⑦チェック欄,\"△\")+COUNTIF(項目⑦チェック欄,\"×\")+COUNTIF(項目⑦チェック欄,\"―\"))=0,\"達成率　　　　%\",IF( (COUNTIF(項目⑦チェック欄,\"○\")+COUNTIF(項目⑦チェック欄,\"△\")+COUNTIF(項目⑦チェック欄,\"×\"))=0,\"達成率　　―　%\",COUNTIF(項目⑦チェック欄,\"○\")/(COUNTIF(項目⑦チェック欄,\"○\")+COUNTIF(項目⑦チェック欄,\"△\")+COUNTIF(項目⑦チェック欄,\"×\"))*100))","v":"達成率　　　　%"}]
[null,"<項目⑥ ： 建築物の建築・解体、開発事業に当たっての環境配慮>"]
[null,"（チェック欄）"]
["　1 新規事業を始める際の環境影響評価・環境配慮"]
[null,null,null,"新規事業を始める際、企画・計画・設計段階、建設段階、運用段階、改修・解体段階のそれぞれの段階における環境影響を評価し、これに基づいて環境保全のため適切な対策を行っている"]
[null,null,null,"事業実施前に行われた環境影響評価の結果が妥当であったかどうかのフォローアップを、事業中及び事業後に行っている"]
[null,null,null,"発注者及び設計者に対し、建設副産物のリサイクル、合板型枠の使用合理化等、環境保全の提案をしている"]
["　2 環境整備と周辺の自然環境の保全"]
[null,null,null,"敷地内、壁面、屋上等の緑化を行っている（大気浄化、都市気象の緩和にも資する）"]
[null,null,null,"地域の自然環境との調和に配慮し、生態系や景観の保全に取り組んでいる"]
[null,null,null,"環境を改変する代替措置として環境修復（ミティゲーション）を計画・設計に盛り込んでいる"]
["　3 環境負荷の少ない建築材の使用等"]
[null,null,null,"建築物の建築・改築に当たり、環境負荷の少ない建築材の使用、建築材の使用合理化に取り組んでいる（合板型等の木材の使用合理化、高炉セメント、再生素材の積極的使用等）"]
["　4 環境に配慮した工法"]
[null,null,null,"低騒音型の建築機械の使用等により工事騒音・振動の防止に取り組んでいる"]
[null,null,null,"アスベストや粉じんの飛散防止等に取り組んでいる"]
[null,null,null,"工事濁水による水質汚濁の防止等に取り組んでいる"]
[null,null,null,"出入り車輌の排ガス・騒音・振動の防止に取り組んでいる"]
[null,null,null,"掘削工事、盛土工事における地盤の変化の防止に取り組んでいる"]
[null,null,null,"工事中の樹木の保護を行っている"]
[null,null,null,"木材、コンクリート塊、汚泥、残土等の建設副産物の削減、再利用、分別、リサイクルに取り組んでいる"]
[null,null,null,"フロン、アスベストその他の有害物質の適正処理、代替材の使用等を行っている"]
["　5 建築物、構築物の環境への影響を予防するための方策"]
[null,null,null,"竣工建築の環境面に配慮した管理、メンテナンス等を行っている"]
[null,null,null,"建造物の老朽化や運用の診断を行い、改善や環境保全設備の見直し等の提案を行っている"]
[null,null,null,"建築物の耐久性の向上に取り組んでいる"]
["　6 施設閉鎖、建築物の解体等の際の環境配慮"]
[null,null,null,"施設の閉鎖時に、環境影響評価を行っている"]
[null,null,null,"建築物の解体に当たっては、吹きつけアスベストを事前に除去している"]
[null,null,null,"現状から用途転換をする等の計画プロジェクトの前に環境影響評価を行っている"]
[null,null,"チェック欄数：２１"]
[null,null,null,{"$f":"IF( (COUNTIF(項目⑧チェック欄,\"○\")+COUNTIF(項目⑧チェック欄,\"△\")+COUNTIF(項目⑧チェック欄,\"×\")+COUNTIF(項目⑧チェック欄,\"―\"))=0,\"達成率　　　　%\",IF( (COUNTIF(項目⑧チェック欄,\"○\")+COUNTIF(項目⑧チェック欄,\"△\")+COUNTIF(項目⑧チェック欄,\"×\"))=0,\"達成率　　―　%\",COUNTIF(項目⑧チェック欄,\"○\")/(COUNTIF(項目⑧チェック欄,\"○\")+COUNTIF(項目⑧チェック欄,\"△\")+COUNTIF(項目⑧チェック欄,\"×\"))*100))","v":"達成率　　　　%"}]
[]
[null,"<項目⑦ ： グリーン購入>"]
[null,"（チェック欄）"]
["　1 再生紙の使用"]
[null,null,null,"コピー用紙、コンピューター用紙、伝票・事務用箋等、印刷物・パンフレット等、トイレットペーパー、名刺、その他の紙について、再生紙又は未利用繊維への転換を進めている"]
[null,null,null,"再生パルプの使用率や白色度を考慮した再生紙利用の目標・基準を立て、使用状況を把握しながら取り組んでいる"]
[null,null,null,"再生パルプ使用率が印刷物等に明記されている"]
["　2 その他環境に配慮した物品等の購入、使用"]
[null,null,null,"エコマーク商品を優先的に購入している"]
[null,null,null,"再生材料から作られた製品を優先的に購入、使用している"]
[null,null,null,"間伐材、未利用資源等を利用した製品を積極的に購入、使用している"]
[null,null,null,"木材の調達に当たり、跡地の緑化・植林・環境修復が適切に行われていることに配慮し、又は跡地緑化等に協力している"]
[null,null,null,"その他、無漂白製品（衣料品等）、水性塗料等の環境への負荷の少ない製品を優先的に購入、使用している"]
["　3 環境に配慮した物品等の調達に係る基準等"]
[null,null,null,"環境に配慮した物品等の調達に係る基準、リストを作成し、現状に合わせて、見直しを行っている"]
[null,null,null,"基準、リストに基づく調達状況を把握している"]
[null,null,null,"原料・中間材の購入に当たって環境配慮のチェックを行っている"]
[null,null,"チェック欄数：１１"]
[null,null,null,{"$f":"IF( (COUNTIF(項目⑨チェック欄,\"○\")+COUNTIF(項目⑨チェック欄,\"△\")+COUNTIF(項目⑨チェック欄,\"×\")+COUNTIF(項目⑨チェック欄,\"―\"))=0,\"達成率　　　　%\",IF( (COUNTIF(項目⑨チェック欄,\"○\")+COUNTIF(項目⑨チェック欄,\"△\")+COUNTIF(項目⑨チェック欄,\"×\"))=0,\"達成率　　―　%\",COUNTIF(項目⑨チェック欄,\"○\")/(COUNTIF(項目⑨チェック欄,\"○\")+COUNTIF(項目⑨チェック欄,\"△\")+COUNTIF(項目⑨チェック欄,\"×\"))*100))","v":"達成率　　　　%"}]
[null,"<項目⑧ ： 環境教育、環境保全のための仕組みの整備>"]
[null,"（チェック欄）"]
["　1 環境保全に関する職員等への教育、意識の向上"]
[null,null,null,"職員等に環境意識の向上や、環境保全活動に必要な教育を行う計画を定めている"]
[null,null,null,"職員等に環境意識の向上や、環境保全に必要な教育を行う具体的なプログラムがある"]
[null,null,null,"職員等に環境教育を実施している"]
[null,null,null,"職員等が環境保全上必要な資格、能力等を保有できるように養成している"]
[null,null,null,"委託・協力会社などの職員等についても、必要な知識、能力等を保有するよう、対応をとっている"]
["　2 職員等の自主的なボランティア活動に対する支援"]
[null,null,null,"ボランティア休暇など、組織の制度として支援システムがある"]
[null,null,null,"環境に関する研究や活動を行っているサークル等に対する支援を行っている"]
["　3 通勤に係る環境への負荷の低減"]
[null,null,null,"通勤等に公共交通機関を利用するよう指導している"]
["　4 法規制等への対応"]
[null,null,null,"法規制等の最新情報を常に入手している"]
[null,null,null,"法規制等の変化に対応する手順ができている"]
["　5 環境対応のための組織体制整備"]
[null,null,null,"環境経営システムを実行するに当たり役割分担や責任、権限などが明確に定められている"]
[null,null,null,"環境保全活動等を実行するに当たり担当する職員、あるいは組織が明確になっている"]
[null,null,null,"環境保全活動等を所管する役員が任命されている"]
[null,null,null,"環境保全活動等を実行するに当たり必要な人材や情報、その他の資源が用意できる体制がある"]
[null,null,null,"職員の採用の際、環境への意識の高さ、環境に関する知識等を判断材料のひとつにしている"]
["　6 コミュニケーション"]
[null,null,null,"環境保全活動に必要な情報やその実績、評価結果などが内部で適切に伝達される仕組みが整えられている"]
[null,null,null,"外部からの意見や苦情、問い合わせなどを受け付け、対応する仕組みが整えられている"]
["　7 運用管理"]
[null,null,null,"環境保全活動上、必要な作業手順や運用基準等が明確に定められている"]
[null,null,null,"必要な場合、委託・協力会社などに対しても作業手順や運用基準が徹底されるよう、配慮している"]
["　8 取引先への働きかけ等"]
[null,null,null,"協力会社、納入会社、委託業者、子会社等について、環境保全の面から評価し、その選定に活かすとともに、改善支援を行っている"]
[null,null,null,"委託契約等に環境配慮が契約管理に組み込まれている"]
[null,null,null,"協力会社、子会社等に教育プログラムを提供している"]
[null,null,null,"顧客や発注者に対し、環境保全の提案をしている"]
[null,null,"チェック欄数：２３"]
[null,null,null,{"$f":"IF( (COUNTIF(項目⑩チェック欄,\"○\")+COUNTIF(項目⑩チェック欄,\"△\")+COUNTIF(項目⑩チェック欄,\"×\")+COUNTIF(項目⑩チェック欄,\"―\"))=0,\"達成率　　　　%\",IF( (COUNTIF(項目⑩チェック欄,\"○\")+COUNTIF(項目⑩チェック欄,\"△\")+COUNTIF(項目⑩チェック欄,\"×\"))=0,\"達成率　　―　%\",COUNTIF(項目⑩チェック欄,\"○\")/(COUNTIF(項目⑩チェック欄,\"○\")+COUNTIF(項目⑩チェック欄,\"△\")+COUNTIF(項目⑩チェック欄,\"×\"))*100))","v":"達成率　　　　%"}]
[null,"<項目⑨ ： その他（情報提供、社会貢献、地域の環境保全ほか）>"]
[null,"（チェック欄）"]
["　1 事業上の環境に関する情報の提供、公表"]
[null,null,null,"事業活動に伴う重要な環境負荷・環境に関する主要な目標、環境担当者の連絡先等を公表している"]
[null,null,null,"消費者等に対して、情報提供や啓発活動を行っている"]
[null,null,null,"外部からの情報の提供、公表の依頼に対する窓口を置いている"]
["　2 環境に関する取組等に関する外部の関係者の意見等の聴取"]
[null,null,null,"意見聴取を定期的に行い、環境に対する取組の際に考慮している"]
["　3 環境保全に関する団体等への参加・支援"]
[null,null,null,"環境に関する基金・団体の設置、既存の基金・団体を支援している（人材派遣、資金面での援助、従業員の給与の端数を集めた寄付、広報活動への協力等）"]
[null,null,null,"環境関係の基金等へのマッチングギフト（従業員労働組合等の任意の寄付と同額の寄付を事業主として行うこと）を行っている"]
[null,null,null,"地域のボランティア活動等に積極的に参加し、協力、支援を行っている"]
[null,null,null,"環境に関連する表彰制度を実施している"]
[null,null,null,"大学に環境関係の寄付講座を開くなど、研究機関への支援を行っている"]
["　4 国際協力及び海外における環境配慮"]
[null,null,null,"開発環境保全技術やノウハウについて、海外への情報の提供を行っている"]
[null,null,null,"技術者の派遣、国内研修の受入等により技術移転の推進を進めている"]
[null,null,null,"海外における環境対策に資するＮＧＯ活動、緑化等の諸活動に積極的に協力している"]
[null,null,null,"進出先の従業員、周辺住民等に必要な情報を積極的に提供し、環境配慮に関する企業広報を積極的に行っている"]
[null,null,null,"進出先の環境配慮の取組に対する本社の支援体制を整備している"]
[null,null,null,"進出先国の排出基準、目標等を遵守しているとともに、その基準が日本より緩やかな場合は、日本の基準を適用している"]
[null,null,null,"進出に当たって、進出先の環境に与える影響の事前評価と、進出後の環境影響の事後評価によるフィードバックを行っている"]
["　5 投資・融資における環境配慮"]
[null,null,null,"投資・融資に当たり、環境面から審査を行っている"]
[null,null,null,"投資・融資対象事業の環境影響評価に関するノウハウをもっている"]
[null,null,null,"社会的責任投資（ＳＲＩ）が方針として謳われている"]
[null,null,null,"環境審査担当のスタッフがいる"]
[null,null,null,"環境面からの制限業種リストを作成し、融資窓口での制限を徹底するなど、環境上問題のある事業への投融資は制限している"]
[null,null,null,"環境保全に関する公的融資制度の利用を推進している"]
[null,null,"チェック欄数：２２"]
[null,null,null,{"$f":"IF( (COUNTIF(項目⑫チェック欄,\"○\")+COUNTIF(項目⑫チェック欄,\"△\")+COUNTIF(項目⑫チェック欄,\"×\")+COUNTIF(項目⑫チェック欄,\"―\"))=0,\"達成率　　　　%\",IF( (COUNTIF(項目⑫チェック欄,\"○\")+COUNTIF(項目⑫チェック欄,\"△\")+COUNTIF(項目⑫チェック欄,\"×\"))=0,\"達成率　　―　%\",COUNTIF(項目⑫チェック欄,\"○\")/(COUNTIF(項目⑫チェック欄,\"○\")+COUNTIF(項目⑫チェック欄,\"△\")+COUNTIF(項目⑫チェック欄,\"×\"))*100))","v":"達成率　　　　%"}]

{"sheet":"Sheet1","index":2,"n_rows":252,"n_cols":23,"rows_kept":252,"cut":false,"hidden":true,"merged":[]}
[]
[null,null,null,{"$f":"取組ﾁｪｯｸｼｰﾄ改訂版!H2","v":"記入点"},{"$f":"取組ﾁｪｯｸｼｰﾄ改訂版!I2","v":"小計"},{"$f":"取組ﾁｪｯｸｼｰﾄ改訂版!J2","v":"対象"},{"$f":"取組ﾁｪｯｸｼｰﾄ改訂版!K2","v":"対象数"},{"$f":"取組ﾁｪｯｸｼｰﾄ改訂版!L2","v":"評価点"},null,null,null,null,null,null,null,null,{"$f":"H2","v":"評価点"}]
["<項目① ： 廃棄物の排出抑制、リサイクル、適正処理>",null,null,null,null,null,null,null,null,null,null,null,null,"<項目① ： 廃棄物の排出抑制、リサイクル、適正処理>",null,null,null,{"$f":"H41","v":0.32258064516129031},null,null,"① 廃棄物",{"$f":"R3*100","v":32.258064516129032}]
["　1 紙の使用量の抑制（再生紙については「グリーン購入」参照）",null,null,{"$f":"取組ﾁｪｯｸｼｰﾄ改訂版!H4","v":1},{"$f":"取組ﾁｪｯｸｼｰﾄ改訂版!I4","v":6},{"$f":"取組ﾁｪｯｸｼｰﾄ改訂版!J4","v":1},{"$f":"取組ﾁｪｯｸｼｰﾄ改訂版!K4","v":6},{"$f":"取組ﾁｪｯｸｼｰﾄ改訂版!L4","v":1},null,null,null,null,null,null,"　1 紙の使用量の抑制（再生紙については「グリーン購入」参照）",null,1,null,null,null,"② 大気汚染、水質汚濁",{"$f":"R11*100","v":0}]
[null,null,null,{"$f":"取組ﾁｪｯｸｼｰﾄ改訂版!H5","v":1},{"$f":"取組ﾁｪｯｸｼｰﾄ改訂版!I5","v":0},{"$f":"取組ﾁｪｯｸｼｰﾄ改訂版!J5","v":1},{"$f":"取組ﾁｪｯｸｼｰﾄ改訂版!K5","v":0},{"$f":"取組ﾁｪｯｸｼｰﾄ改訂版!L5","v":0},null,null,null,null,null,null,"　2 廃棄物の発生そのものを抑える取組",null,{"$f":"H11","v":0.35714285714285715},null,null,null,"③ 化学物質",{"$f":"R16*100","v":38.095238095238095}]
[null,null,null,{"$f":"取組ﾁｪｯｸｼｰﾄ改訂版!H6","v":1},{"$f":"取組ﾁｪｯｸｼｰﾄ改訂版!I6","v":0},{"$f":"取組ﾁｪｯｸｼｰﾄ改訂版!J6","v":1},{"$f":"取組ﾁｪｯｸｼｰﾄ改訂版!K6","v":0},{"$f":"取組ﾁｪｯｸｼｰﾄ改訂版!L6","v":0},null,null,null,null,null,null,"　3 オフィス等におけるリサイクルの促進",null,{"$f":"H19","v":8.3333333333333329E-2},null,null,null,"④ 節水・水の利用",{"$f":"R20*100","v":50}]
[null,null,null,{"$f":"取組ﾁｪｯｸｼｰﾄ改訂版!H7","v":1},{"$f":"取組ﾁｪｯｸｼｰﾄ改訂版!I7","v":0},{"$f":"取組ﾁｪｯｸｼｰﾄ改訂版!J7","v":1},{"$f":"取組ﾁｪｯｸｼｰﾄ改訂版!K7","v":0},{"$f":"取組ﾁｪｯｸｼｰﾄ改訂版!L7","v":0},null,null,null,null,null,null,"　4 出荷・販売等に際しての梱包等に関する配慮",null,{"$f":"H27","v":0.1},null,null,null,"⑤ 製品の開発・設計",{"$f":"R22*100","v":69.411764705882362}]
[null,null,null,{"$f":"取組ﾁｪｯｸｼｰﾄ改訂版!H8","v":1},{"$f":"取組ﾁｪｯｸｼｰﾄ改訂版!I8","v":0},{"$f":"取組ﾁｪｯｸｼｰﾄ改訂版!J8","v":1},{"$f":"取組ﾁｪｯｸｼｰﾄ改訂版!K8","v":0},{"$f":"取組ﾁｪｯｸｼｰﾄ改訂版!L8","v":0},null,null,null,null,null,null,"　5 生産工程における取組",null,{"$f":"H33","v":0.5},null,null,null,"⑥ 事業の環境配慮",{"$f":"R28*100","v":89.047619047619037}]
[null,null,null,{"$f":"取組ﾁｪｯｸｼｰﾄ改訂版!H9","v":1},{"$f":"取組ﾁｪｯｸｼｰﾄ改訂版!I9","v":0},{"$f":"取組ﾁｪｯｸｼｰﾄ改訂版!J9","v":1},{"$f":"取組ﾁｪｯｸｼｰﾄ改訂版!K9","v":0},{"$f":"取組ﾁｪｯｸｼｰﾄ改訂版!L9","v":0},null,null,null,null,null,null,"　6 産業廃棄物等の適正処理",null,{"$f":"H35","v":0},null,null,null,"⑦ グリーン購入",{"$f":"R36*100","v":86.36363636363636}]
[null,null,null,{"$f":"取組ﾁｪｯｸｼｰﾄ改訂版!H10","v":""},{"$f":"取組ﾁｪｯｸｼｰﾄ改訂版!I10","v":0},{"$f":"取組ﾁｪｯｸｼｰﾄ改訂版!J10","v":0},{"$f":"取組ﾁｪｯｸｼｰﾄ改訂版!K10","v":0},{"$f":"取組ﾁｪｯｸｼｰﾄ改訂版!L10","v":0},null,null,null,null,null,null,null,null,null,null,null,null,"⑧ 環境教育、環境保全",{"$f":"R41*100","v":84}]
["　2 廃棄物の発生そのものを抑える取組",null,null,{"$f":"取組ﾁｪｯｸｼｰﾄ改訂版!H11","v":0.5},{"$f":"取組ﾁｪｯｸｼｰﾄ改訂版!I11","v":2.5},{"$f":"取組ﾁｪｯｸｼｰﾄ改訂版!J11","v":1},{"$f":"取組ﾁｪｯｸｼｰﾄ改訂版!K11","v":7},{"$f":"取組ﾁｪｯｸｼｰﾄ改訂版!L11","v":0.35714285714285715},null,null,null,null,null,"<項目② ： 大気汚染、水質汚濁等の防止>",null,null,null,{"$f":"H67","v":0},null,null,"⑨ その他",{"$f":"R51*100","v":76.428571428571416}]
[null,null,null,{"$f":"取組ﾁｪｯｸｼｰﾄ改訂版!H12","v":0.5},{"$f":"取組ﾁｪｯｸｼｰﾄ改訂版!I12","v":0},{"$f":"取組ﾁｪｯｸｼｰﾄ改訂版!J12","v":1},{"$f":"取組ﾁｪｯｸｼｰﾄ改訂版!K12","v":0},{"$f":"取組ﾁｪｯｸｼｰﾄ改訂版!L12","v":0},null,null,null,null,null,null,"　1 大気汚染物質排出量の削減",null,{"$f":"H46","v":0}]
[null,null,null,{"$f":"取組ﾁｪｯｸｼｰﾄ改訂版!H13","v":0.5},{"$f":"取組ﾁｪｯｸｼｰﾄ改訂版!I13","v":0},{"$f":"取組ﾁｪｯｸｼｰﾄ改訂版!J13","v":1},{"$f":"取組ﾁｪｯｸｼｰﾄ改訂版!K13","v":0},{"$f":"取組ﾁｪｯｸｼｰﾄ改訂版!L13","v":0},null,null,null,null,null,null,"　2 水質汚濁物質排出量の削減",null,{"$f":"H54","v":0}]
[null,null,null,{"$f":"取組ﾁｪｯｸｼｰﾄ改訂版!H14","v":0.5},{"$f":"取組ﾁｪｯｸｼｰﾄ改訂版!I14","v":0},{"$f":"取組ﾁｪｯｸｼｰﾄ改訂版!J14","v":1},{"$f":"取組ﾁｪｯｸｼｰﾄ改訂版!K14","v":0},{"$f":"取組ﾁｪｯｸｼｰﾄ改訂版!L14","v":0},null,null,null,null,null,null,"　3 悪臭、騒音、振動等の防止",null,{"$f":"H64","v":0},null,null,"① 廃棄物","　1 紙の使用量の抑制",null,{"$f":"Q4","v":1}]
[null,null,null,{"$f":"取組ﾁｪｯｸｼｰﾄ改訂版!H15","v":0.5},{"$f":"取組ﾁｪｯｸｼｰﾄ改訂版!I15","v":0},{"$f":"取組ﾁｪｯｸｼｰﾄ改訂版!J15","v":1},{"$f":"取組ﾁｪｯｸｼｰﾄ改訂版!K15","v":0},{"$f":"取組ﾁｪｯｸｼｰﾄ改訂版!L15","v":0},null,null,null,null,null,null,null,null,null,null,null,null,"　2 廃棄物の発生抑制",null,0.35714285714285715]
[null,null,null,{"$f":"取組ﾁｪｯｸｼｰﾄ改訂版!H16","v":""},{"$f":"取組ﾁｪｯｸｼｰﾄ改訂版!I16","v":0},{"$f":"取組ﾁｪｯｸｼｰﾄ改訂版!J16","v":1},{"$f":"取組ﾁｪｯｸｼｰﾄ改訂版!K16","v":0},{"$f":"取組ﾁｪｯｸｼｰﾄ改訂版!L16","v":0},null,null,null,null,null,"<項目③ ： 化学物質対策>",null,null,null,{"$f":"H94","v":0.38095238095238093},null,null,"　3 リサイクルの促進",null,8.3333333333333329E-2]
[null,null,null,{"$f":"取組ﾁｪｯｸｼｰﾄ改訂版!H17","v":""},{"$f":"取組ﾁｪｯｸｼｰﾄ改訂版!I17","v":0},{"$f":"取組ﾁｪｯｸｼｰﾄ改訂版!J17","v":1},{"$f":"取組ﾁｪｯｸｼｰﾄ改訂版!K17","v":0},{"$f":"取組ﾁｪｯｸｼｰﾄ改訂版!L17","v":0},null,null,null,null,null,null,"　1 化学物質の管理の徹底",null,{"$f":"H72","v":0},null,null,null,"　4 梱包等に関する配慮",null,0.1]
[null,null,null,{"$f":"取組ﾁｪｯｸｼｰﾄ改訂版!H18","v":""},{"$f":"取組ﾁｪｯｸｼｰﾄ改訂版!I18","v":0},{"$f":"取組ﾁｪｯｸｼｰﾄ改訂版!J18","v":0},{"$f":"取組ﾁｪｯｸｼｰﾄ改訂版!K18","v":0},{"$f":"取組ﾁｪｯｸｼｰﾄ改訂版!L18","v":0},null,null,null,null,null,null,"　2 温室効果ガス特定フロン（CFC,CHFC等)、代替フロン（ＨＦＣ、ＰＦＣ、ＳＦ６ 等）の排出抑制、削減、適正処理",null,{"$f":"H85","v":0.88888888888888884},null,null,null,"　5 生産工程",null,0.5]
["　3 オフィス等におけるリサイクルの促進",null,null,{"$f":"取組ﾁｪｯｸｼｰﾄ改訂版!H19","v":0.1},{"$f":"取組ﾁｪｯｸｼｰﾄ改訂版!I19","v":0.5},{"$f":"取組ﾁｪｯｸｼｰﾄ改訂版!J19","v":1},{"$f":"取組ﾁｪｯｸｼｰﾄ改訂版!K19","v":6},{"$f":"取組ﾁｪｯｸｼｰﾄ改訂版!L19","v":8.3333333333333329E-2},null,null,null,null,null,null,null,null,null,null,null,null,"　6 適正処理",null,0]
[null,null,null,{"$f":"取組ﾁｪｯｸｼｰﾄ改訂版!H20","v":0.1},{"$f":"取組ﾁｪｯｸｼｰﾄ改訂版!I20","v":0},{"$f":"取組ﾁｪｯｸｼｰﾄ改訂版!J20","v":1},{"$f":"取組ﾁｪｯｸｼｰﾄ改訂版!K20","v":0},{"$f":"取組ﾁｪｯｸｼｰﾄ改訂版!L20","v":0},null,null,null,null,null," <項目④ ： 節水・水の効率利用>",null,null,{"$f":"H98","v":0.5},{"$f":"H105","v":0.5}]
[null,null,null,{"$f":"取組ﾁｪｯｸｼｰﾄ改訂版!H21","v":0.1},{"$f":"取組ﾁｪｯｸｼｰﾄ改訂版!I21","v":0},{"$f":"取組ﾁｪｯｸｼｰﾄ改訂版!J21","v":1},{"$f":"取組ﾁｪｯｸｼｰﾄ改訂版!K21","v":0},{"$f":"取組ﾁｪｯｸｼｰﾄ改訂版!L21","v":0}]
[null,null,null,{"$f":"取組ﾁｪｯｸｼｰﾄ改訂版!H22","v":0.1},{"$f":"取組ﾁｪｯｸｼｰﾄ改訂版!I22","v":0},{"$f":"取組ﾁｪｯｸｼｰﾄ改訂版!J22","v":1},{"$f":"取組ﾁｪｯｸｼｰﾄ改訂版!K22","v":0},{"$f":"取組ﾁｪｯｸｼｰﾄ改訂版!L22","v":0},null,null,null,null,null,"<項目⑤ ： 製品の開発・設計等における環境配慮>",null,null,null,{"$f":"H134","v":0.69411764705882362},null,"② 大気汚染、水質汚濁","　1 大気汚染物質排出量削減",null,0]
[null,null,null,{"$f":"取組ﾁｪｯｸｼｰﾄ改訂版!H23","v":0.1},{"$f":"取組ﾁｪｯｸｼｰﾄ改訂版!I23","v":0},{"$f":"取組ﾁｪｯｸｼｰﾄ改訂版!J23","v":1},{"$f":"取組ﾁｪｯｸｼｰﾄ改訂版!K23","v":0},{"$f":"取組ﾁｪｯｸｼｰﾄ改訂版!L23","v":0},null,null,null,null,null,null,"　1 製品（プライベートブランド商品を含む）設計に当たっての環境配慮",null,{"$f":"H110","v":1},null,null,null,"　2 水質汚濁物質排出量削減",null,0]
[null,null,null,{"$f":"取組ﾁｪｯｸｼｰﾄ改訂版!H24","v":""},{"$f":"取組ﾁｪｯｸｼｰﾄ改訂版!I24","v":0},{"$f":"取組ﾁｪｯｸｼｰﾄ改訂版!J24","v":1},{"$f":"取組ﾁｪｯｸｼｰﾄ改訂版!K24","v":0},{"$f":"取組ﾁｪｯｸｼｰﾄ改訂版!L24","v":0},null,null,null,null,null,null,"　2 製品の出荷、販売後における環境負荷の削減",null,{"$f":"H119","v":0.10000000000000002},null,null,null,"　3 悪臭、騒音、振動等",null,0]
[null,null,null,{"$f":"取組ﾁｪｯｸｼｰﾄ改訂版!H25","v":""},{"$f":"取組ﾁｪｯｸｼｰﾄ改訂版!I25","v":0},{"$f":"取組ﾁｪｯｸｼｰﾄ改訂版!J25","v":0},{"$f":"取組ﾁｪｯｸｼｰﾄ改訂版!K25","v":0},{"$f":"取組ﾁｪｯｸｼｰﾄ改訂版!L25","v":0},null,null,null,null,null,null,"　3 製品（プライベートブランド商品を含む）に係る製品アセスメント等",null,{"$f":"H124","v":0.5}]
[null,null,null,null,{"$f":"取組ﾁｪｯｸｼｰﾄ改訂版!I26","v":0},{"$f":"取組ﾁｪｯｸｼｰﾄ改訂版!J26","v":0},{"$f":"取組ﾁｪｯｸｼｰﾄ改訂版!K26","v":0},{"$f":"取組ﾁｪｯｸｼｰﾄ改訂版!L26","v":0},null,null,null,null,null,null,"　4 環境保全型商品等の販売及び消費者に対する情報提供",null,{"$f":"H130","v":1}]
["　4 出荷・販売等に際しての梱包等に関する配慮",null,null,{"$f":"取組ﾁｪｯｸｼｰﾄ改訂版!H27","v":0.5},{"$f":"取組ﾁｪｯｸｼｰﾄ改訂版!I27","v":0.5},{"$f":"取組ﾁｪｯｸｼｰﾄ改訂版!J27","v":1},{"$f":"取組ﾁｪｯｸｼｰﾄ改訂版!K27","v":5},{"$f":"取組ﾁｪｯｸｼｰﾄ改訂版!L27","v":0.1},null,null,null,null,null,null,null,null,null,null,null,"③ 化学物質","　1 化学物質の管理",null,0]
[null,null,null,{"$f":"取組ﾁｪｯｸｼｰﾄ改訂版!H28","v":""},{"$f":"取組ﾁｪｯｸｼｰﾄ改訂版!I28","v":0},{"$f":"取組ﾁｪｯｸｼｰﾄ改訂版!J28","v":1},{"$f":"取組ﾁｪｯｸｼｰﾄ改訂版!K28","v":0},{"$f":"取組ﾁｪｯｸｼｰﾄ改訂版!L28","v":0},null,null,null,null,null,"<項目⑥ ： 建築物の建築・解体、開発事業に当たっての環境配慮>",null,null,null,{"$f":"H165","v":0.89047619047619042},null,null,"　2 温室効果ガス",null,0.88888888888888884]
[null,null,null,{"$f":"取組ﾁｪｯｸｼｰﾄ改訂版!H29","v":""},{"$f":"取組ﾁｪｯｸｼｰﾄ改訂版!I29","v":0},{"$f":"取組ﾁｪｯｸｼｰﾄ改訂版!J29","v":1},{"$f":"取組ﾁｪｯｸｼｰﾄ改訂版!K29","v":0},{"$f":"取組ﾁｪｯｸｼｰﾄ改訂版!L29","v":0},null,null,null,null,null,null,"　1 新規事業を始める際の環境影響評価・環境配慮",null,{"$f":"H139","v":1}]
[null,null,null,{"$f":"取組ﾁｪｯｸｼｰﾄ改訂版!H30","v":""},{"$f":"取組ﾁｪｯｸｼｰﾄ改訂版!I30","v":0},{"$f":"取組ﾁｪｯｸｼｰﾄ改訂版!J30","v":1},{"$f":"取組ﾁｪｯｸｼｰﾄ改訂版!K30","v":0},{"$f":"取組ﾁｪｯｸｼｰﾄ改訂版!L30","v":0},null,null,null,null,null,null,"　2 環境整備と周辺の自然環境の保全",null,{"$f":"H143","v":1},null,null,"④ 節水・水の利用","　1 節水・水の利用",null,0.5]
[null,null,null,{"$f":"取組ﾁｪｯｸｼｰﾄ改訂版!H31","v":""},{"$f":"取組ﾁｪｯｸｼｰﾄ改訂版!I31","v":0},{"$f":"取組ﾁｪｯｸｼｰﾄ改訂版!J31","v":1},{"$f":"取組ﾁｪｯｸｼｰﾄ改訂版!K31","v":0},{"$f":"取組ﾁｪｯｸｼｰﾄ改訂版!L31","v":0},null,null,null,null,null,null,"　3 環境負荷の少ない建築材の使用等",null,{"$f":"H147","v":0.5}]
[null,null,null,{"$f":"取組ﾁｪｯｸｼｰﾄ改訂版!H32","v":""},{"$f":"取組ﾁｪｯｸｼｰﾄ改訂版!I32","v":0},{"$f":"取組ﾁｪｯｸｼｰﾄ改訂版!J32","v":0},{"$f":"取組ﾁｪｯｸｼｰﾄ改訂版!K32","v":0},{"$f":"取組ﾁｪｯｸｼｰﾄ改訂版!L32","v":0},null,null,null,null,null,null,"　4 環境に配慮した工法",null,{"$f":"H149","v":1}]
["　5 生産工程における取組",null,null,{"$f":"取組ﾁｪｯｸｼｰﾄ改訂版!H33","v":0.5},{"$f":"取組ﾁｪｯｸｼｰﾄ改訂版!I33","v":0.5},{"$f":"取組ﾁｪｯｸｼｰﾄ改訂版!J33","v":1},{"$f":"取組ﾁｪｯｸｼｰﾄ改訂版!K33","v":1},{"$f":"取組ﾁｪｯｸｼｰﾄ改訂版!L33","v":0.5},null,null,null,null,null,null,"　5 建築物、構築物の環境への影響を予防するための方策",null,{"$f":"H158","v":1},null,null,"⑤ 製品の開発・設計","　1 製品設計",null,1]
[null,null,null,{"$f":"取組ﾁｪｯｸｼｰﾄ改訂版!H34","v":""},{"$f":"取組ﾁｪｯｸｼｰﾄ改訂版!I34","v":0},{"$f":"取組ﾁｪｯｸｼｰﾄ改訂版!J34","v":0},{"$f":"取組ﾁｪｯｸｼｰﾄ改訂版!K34","v":0},{"$f":"取組ﾁｪｯｸｼｰﾄ改訂版!L34","v":0},null,null,null,null,null,null,"　6 施設閉鎖、建築物の解体等の際の環境配慮",null,{"$f":"H162","v":0.40000000000000008},null,null,null,"　2 製品の環境負荷の削減",null,0.10000000000000002]
["　6 産業廃棄物等の適正処理",null,null,{"$f":"取組ﾁｪｯｸｼｰﾄ改訂版!H35","v":""},{"$f":"取組ﾁｪｯｸｼｰﾄ改訂版!I35","v":0},{"$f":"取組ﾁｪｯｸｼｰﾄ改訂版!J35","v":1},{"$f":"取組ﾁｪｯｸｼｰﾄ改訂版!K35","v":6},{"$f":"取組ﾁｪｯｸｼｰﾄ改訂版!L35","v":0},null,null,null,null,null,null,null,null,null,null,null,null,"　3 製品環境アセスメント等",null,0.5]
[null,null,null,{"$f":"取組ﾁｪｯｸｼｰﾄ改訂版!H36","v":""},{"$f":"取組ﾁｪｯｸｼｰﾄ改訂版!I36","v":0},{"$f":"取組ﾁｪｯｸｼｰﾄ改訂版!J36","v":1},{"$f":"取組ﾁｪｯｸｼｰﾄ改訂版!K36","v":0},{"$f":"取組ﾁｪｯｸｼｰﾄ改訂版!L36","v":0},null,null,null,null,null,"<項目⑦ ： グリーン購入>",null,null,null,{"$f":"H184","v":0.86363636363636365},null,null,"　4 販売及び情報提供",null,1]
[null,null,null,{"$f":"取組ﾁｪｯｸｼｰﾄ改訂版!H37","v":""},{"$f":"取組ﾁｪｯｸｼｰﾄ改訂版!I37","v":0},{"$f":"取組ﾁｪｯｸｼｰﾄ改訂版!J37","v":1},{"$f":"取組ﾁｪｯｸｼｰﾄ改訂版!K37","v":0},{"$f":"取組ﾁｪｯｸｼｰﾄ改訂版!L37","v":0},null,null,null,null,null,null,"　1 再生紙の使用",null,{"$f":"H171","v":1}]
[null,null,null,{"$f":"取組ﾁｪｯｸｼｰﾄ改訂版!H38","v":""},{"$f":"取組ﾁｪｯｸｼｰﾄ改訂版!I38","v":0},{"$f":"取組ﾁｪｯｸｼｰﾄ改訂版!J38","v":1},{"$f":"取組ﾁｪｯｸｼｰﾄ改訂版!K38","v":0},{"$f":"取組ﾁｪｯｸｼｰﾄ改訂版!L38","v":0},null,null,null,null,null,null,"　2 その他環境に配慮した物品等の購入、使用",null,{"$f":"H175","v":1}]
[null,null,null,{"$f":"取組ﾁｪｯｸｼｰﾄ改訂版!H39","v":""},{"$f":"取組ﾁｪｯｸｼｰﾄ改訂版!I39","v":0},{"$f":"取組ﾁｪｯｸｼｰﾄ改訂版!J39","v":1},{"$f":"取組ﾁｪｯｸｼｰﾄ改訂版!K39","v":0},{"$f":"取組ﾁｪｯｸｼｰﾄ改訂版!L39","v":0},null,null,null,null,null,null,"　3 環境に配慮した物品等の調達に係る基準等",null,{"$f":"H181","v":0.5},null,null,"⑥ 事業の環境配慮","　1 環境影響評価・環境配慮",null,1]
[null,null,null,{"$f":"取組ﾁｪｯｸｼｰﾄ改訂版!H40","v":""},{"$f":"取組ﾁｪｯｸｼｰﾄ改訂版!I40","v":0},{"$f":"取組ﾁｪｯｸｼｰﾄ改訂版!J40","v":1},{"$f":"取組ﾁｪｯｸｼｰﾄ改訂版!K40","v":0},{"$f":"取組ﾁｪｯｸｼｰﾄ改訂版!L40","v":0},null,null,null,null,null,null,null,null,null,null,null,null,"　2 環境整備・自然環境の保全",null,1]
[null,null,null,{"$f":"取組ﾁｪｯｸｼｰﾄ改訂版!H41","v":""},{"$f":"取組ﾁｪｯｸｼｰﾄ改訂版!I41","v":10},{"$f":"取組ﾁｪｯｸｼｰﾄ改訂版!J41","v":0},{"$f":"取組ﾁｪｯｸｼｰﾄ改訂版!K41","v":31},{"$f":"取組ﾁｪｯｸｼｰﾄ改訂版!L41","v":0.32258064516129031},null,null,null,null,null,"<項目⑧ ： 環境教育、環境保全のための仕組みの整備>",null,null,null,{"$f":"H220","v":0.84},null,null,"　3 環境負荷の少ない材料",null,0.5]
[null,null,null,null,null,null,null,null,null,null,null,null,null,null,"　1 環境保全に関する職員等への教育、意識の向上",null,{"$f":"H189","v":1},null,null,null,"　4 環境配慮工法",null,1]
[null,null,null,null,null,null,null,null,null,null,null,null,null,null,"　2 職員等の自主的なボランティア活動に対する支援",null,{"$f":"H195","v":1},null,null,null,"　5 建築物、構築物の予防方策",null,1]
[null,null,null,null,null,null,null,null,null,null,null,null,null,null,"　3 通勤に係る環境への負荷の低減",null,{"$f":"H198","v":0.5},null,null,null,"　6 建築物等の解体",null,0.40000000000000008]
["<項目② ： 大気汚染、水質汚濁等の防止>",null,null,null,null,null,null,null,null,null,null,null,null,null,"　4 法規制等への対応",null,{"$f":"H200","v":0.75}]
["　1 大気汚染物質排出量の削減",null,null,{"$f":"取組ﾁｪｯｸｼｰﾄ改訂版!H46","v":""},{"$f":"取組ﾁｪｯｸｼｰﾄ改訂版!I46","v":0},{"$f":"取組ﾁｪｯｸｼｰﾄ改訂版!J46","v":1},{"$f":"取組ﾁｪｯｸｼｰﾄ改訂版!K46","v":7},{"$f":"取組ﾁｪｯｸｼｰﾄ改訂版!L46","v":0},null,null,null,null,null,null,"　5 環境対応のための組織体制整備",null,{"$f":"H204","v":1}]
[null,null,null,{"$f":"取組ﾁｪｯｸｼｰﾄ改訂版!H47","v":""},{"$f":"取組ﾁｪｯｸｼｰﾄ改訂版!I47","v":0},{"$f":"取組ﾁｪｯｸｼｰﾄ改訂版!J47","v":1},{"$f":"取組ﾁｪｯｸｼｰﾄ改訂版!K47","v":0},{"$f":"取組ﾁｪｯｸｼｰﾄ改訂版!L47","v":0},null,null,null,null,null,null,"　6 コミュニケーション",null,{"$f":"H210","v":0.5},null,null,"⑦ グリーン購入","　1 再生紙の使用",null,{"$f":"Q37","v":1}]
[null,null,null,{"$f":"取組ﾁｪｯｸｼｰﾄ改訂版!H48","v":""},{"$f":"取組ﾁｪｯｸｼｰﾄ改訂版!I48","v":0},{"$f":"取組ﾁｪｯｸｼｰﾄ改訂版!J48","v":1},{"$f":"取組ﾁｪｯｸｼｰﾄ改訂版!K48","v":0},{"$f":"取組ﾁｪｯｸｼｰﾄ改訂版!L48","v":0},null,null,null,null,null,null,"　7 運用管理",null,{"$f":"H213","v":1},null,null,null,"　2 物品等の購入、使用",null,1]
[null,null,null,{"$f":"取組ﾁｪｯｸｼｰﾄ改訂版!H49","v":""},{"$f":"取組ﾁｪｯｸｼｰﾄ改訂版!I49","v":0},{"$f":"取組ﾁｪｯｸｼｰﾄ改訂版!J49","v":1},{"$f":"取組ﾁｪｯｸｼｰﾄ改訂版!K49","v":0},{"$f":"取組ﾁｪｯｸｼｰﾄ改訂版!L49","v":0},null,null,null,null,null,null,"　8 取引先への働きかけ等",null,{"$f":"H216","v":0.625},null,null,null,"　3 調達に係る基準等",null,0.5]
[null,null,null,{"$f":"取組ﾁｪｯｸｼｰﾄ改訂版!H50","v":""},{"$f":"取組ﾁｪｯｸｼｰﾄ改訂版!I50","v":0},{"$f":"取組ﾁｪｯｸｼｰﾄ改訂版!J50","v":1},{"$f":"取組ﾁｪｯｸｼｰﾄ改訂版!K50","v":0},{"$f":"取組ﾁｪｯｸｼｰﾄ改訂版!L50","v":0}]
[null,null,null,{"$f":"取組ﾁｪｯｸｼｰﾄ改訂版!H51","v":""},{"$f":"取組ﾁｪｯｸｼｰﾄ改訂版!I51","v":0},{"$f":"取組ﾁｪｯｸｼｰﾄ改訂版!J51","v":1},{"$f":"取組ﾁｪｯｸｼｰﾄ改訂版!K51","v":0},{"$f":"取組ﾁｪｯｸｼｰﾄ改訂版!L51","v":0},null,null,null,null,null,"<項目⑨ ： その他（情報提供、社会貢献、地域の環境保全ほか）>",null,null,null,{"$f":"H252","v":0.76428571428571423}]
[null,null,null,{"$f":"取組ﾁｪｯｸｼｰﾄ改訂版!H52","v":""},{"$f":"取組ﾁｪｯｸｼｰﾄ改訂版!I52","v":0},{"$f":"取組ﾁｪｯｸｼｰﾄ改訂版!J52","v":1},{"$f":"取組ﾁｪｯｸｼｰﾄ改訂版!K52","v":0},{"$f":"取組ﾁｪｯｸｼｰﾄ改訂版!L52","v":0},null,null,null,null,null,null,"　1 事業上の環境に関する情報の提供、公表",null,{"$f":"H225","v":1},null,null,"⑧ 環境教育、環境保全","　1 環境教育、意識の向上",null,1]
[null,null,null,{"$f":"取組ﾁｪｯｸｼｰﾄ改訂版!H53","v":""},{"$f":"取組ﾁｪｯｸｼｰﾄ改訂版!I53","v":0},{"$f":"取組ﾁｪｯｸｼｰﾄ改訂版!J53","v":0},{"$f":"取組ﾁｪｯｸｼｰﾄ改訂版!K53","v":0},{"$f":"取組ﾁｪｯｸｼｰﾄ改訂版!L53","v":0},null,null,null,null,null,null,"　2 環境に関する取組等に関する外部の関係者の意見等の聴取",null,{"$f":"H229","v":1},null,null,null,"　2 自主的ボランティア活動支援",null,1]
["　2 水質汚濁物質排出量の削減",null,null,{"$f":"取組ﾁｪｯｸｼｰﾄ改訂版!H54","v":""},{"$f":"取組ﾁｪｯｸｼｰﾄ改訂版!I54","v":0},{"$f":"取組ﾁｪｯｸｼｰﾄ改訂版!J54","v":1},{"$f":"取組ﾁｪｯｸｼｰﾄ改訂版!K54","v":9},{"$f":"取組ﾁｪｯｸｼｰﾄ改訂版!L54","v":0},null,null,null,null,null,null,"　3 環境保全に関する社内、団体等への参加・支援",null,{"$f":"H231","v":0.8},null,null,null,"　3 通勤への環境負荷",null,0.5]
[null,null,null,{"$f":"取組ﾁｪｯｸｼｰﾄ改訂版!H55","v":""},{"$f":"取組ﾁｪｯｸｼｰﾄ改訂版!I55","v":0},{"$f":"取組ﾁｪｯｸｼｰﾄ改訂版!J55","v":1},{"$f":"取組ﾁｪｯｸｼｰﾄ改訂版!K55","v":0},{"$f":"取組ﾁｪｯｸｼｰﾄ改訂版!L55","v":0},null,null,null,null,null,null,"　4 国際協力及び海外における環境配慮",null,{"$f":"H237","v":{"$error":"#DIV/0!"}},null,null,null,"　4 法規制等の対応",null,0.75]
[null,null,null,{"$f":"取組ﾁｪｯｸｼｰﾄ改訂版!H56","v":""},{"$f":"取組ﾁｪｯｸｼｰﾄ改訂版!I56","v":0},{"$f":"取組ﾁｪｯｸｼｰﾄ改訂版!J56","v":1},{"$f":"取組ﾁｪｯｸｼｰﾄ改訂版!K56","v":0},{"$f":"取組ﾁｪｯｸｼｰﾄ改訂版!L56","v":0},null,null,null,null,null,null,"　5 投資・融資における環境配慮",null,{"$f":"H245","v":0.54},null,null,null,"　5 組織体制整備",null,1]
[null,null,null,{"$f":"取組ﾁｪｯｸｼｰﾄ改訂版!H57","v":""},{"$f":"取組ﾁｪｯｸｼｰﾄ改訂版!I57","v":0},{"$f":"取組ﾁｪｯｸｼｰﾄ改訂版!J57","v":1},{"$f":"取組ﾁｪｯｸｼｰﾄ改訂版!K57","v":0},{"$f":"取組ﾁｪｯｸｼｰﾄ改訂版!L57","v":0},null,null,null,null,null,null,null,null,null,null,null,null,"　6 コミュニケーション",null,0.5]
[null,null,null,{"$f":"取組ﾁｪｯｸｼｰﾄ改訂版!H58","v":""},{"$f":"取組ﾁｪｯｸｼｰﾄ改訂版!I58","v":0},{"$f":"取組ﾁｪｯｸｼｰﾄ改訂版!J58","v":1},{"$f":"取組ﾁｪｯｸｼｰﾄ改訂版!K58","v":0},{"$f":"取組ﾁｪｯｸｼｰﾄ改訂版!L58","v":0},null,null,null,null,null,null,null,null,null,null,null,null,"　7 運用管理",null,1]
[null,null,null,{"$f":"取組ﾁｪｯｸｼｰﾄ改訂版!H59","v":""},{"$f":"取組ﾁｪｯｸｼｰﾄ改訂版!I59","v":0},{"$f":"取組ﾁｪｯｸｼｰﾄ改訂版!J59","v":1},{"$f":"取組ﾁｪｯｸｼｰﾄ改訂版!K59","v":0},{"$f":"取組ﾁｪｯｸｼｰﾄ改訂版!L59","v":0},null,null,null,null,null,null,null,null,null,null,null,null,"　8 取引先",null,0.625]
[null,null,null,{"$f":"取組ﾁｪｯｸｼｰﾄ改訂版!H60","v":""},{"$f":"取組ﾁｪｯｸｼｰﾄ改訂版!I60","v":0},{"$f":"取組ﾁｪｯｸｼｰﾄ改訂版!J60","v":1},{"$f":"取組ﾁｪｯｸｼｰﾄ改訂版!K60","v":0},{"$f":"取組ﾁｪｯｸｼｰﾄ改訂版!L60","v":0}]
[null,null,null,{"$f":"取組ﾁｪｯｸｼｰﾄ改訂版!H61","v":""},{"$f":"取組ﾁｪｯｸｼｰﾄ改訂版!I61","v":0},{"$f":"取組ﾁｪｯｸｼｰﾄ改訂版!J61","v":1},{"$f":"取組ﾁｪｯｸｼｰﾄ改訂版!K61","v":0},{"$f":"取組ﾁｪｯｸｼｰﾄ改訂版!L61","v":0}]
[null,null,null,{"$f":"取組ﾁｪｯｸｼｰﾄ改訂版!H62","v":""},{"$f":"取組ﾁｪｯｸｼｰﾄ改訂版!I62","v":0},{"$f":"取組ﾁｪｯｸｼｰﾄ改訂版!J62","v":1},{"$f":"取組ﾁｪｯｸｼｰﾄ改訂版!K62","v":0},{"$f":"取組ﾁｪｯｸｼｰﾄ改訂版!L62","v":0},null,null,null,null,null,null,null,null,null,null,null,"⑨ その他","　1 環境情報の提供、公表",null,1]
[null,null,null,{"$f":"取組ﾁｪｯｸｼｰﾄ改訂版!H63","v":""},{"$f":"取組ﾁｪｯｸｼｰﾄ改訂版!I63","v":0},{"$f":"取組ﾁｪｯｸｼｰﾄ改訂版!J63","v":0},{"$f":"取組ﾁｪｯｸｼｰﾄ改訂版!K63","v":0},{"$f":"取組ﾁｪｯｸｼｰﾄ改訂版!L63","v":0},null,null,null,null,null,null,null,null,null,null,null,null,"　2 外部の関係者",null,1]
["　3 悪臭、騒音、振動等の防止",null,null,{"$f":"取組ﾁｪｯｸｼｰﾄ改訂版!H64","v":""},{"$f":"取組ﾁｪｯｸｼｰﾄ改訂版!I64","v":0},{"$f":"取組ﾁｪｯｸｼｰﾄ改訂版!J64","v":1},{"$f":"取組ﾁｪｯｸｼｰﾄ改訂版!K64","v":3},{"$f":"取組ﾁｪｯｸｼｰﾄ改訂版!L64","v":0},null,null,null,null,null,null,null,null,null,null,null,null,"　3 社内、団体等",null,0.8]
[null,null,null,{"$f":"取組ﾁｪｯｸｼｰﾄ改訂版!H65","v":""},{"$f":"取組ﾁｪｯｸｼｰﾄ改訂版!I65","v":0},{"$f":"取組ﾁｪｯｸｼｰﾄ改訂版!J65","v":1},{"$f":"取組ﾁｪｯｸｼｰﾄ改訂版!K65","v":0},{"$f":"取組ﾁｪｯｸｼｰﾄ改訂版!L65","v":0},null,null,null,null,null,null,null,null,null,null,null,null,"　4 国際協力及び海外",null,{"$error":"#DIV/0!"}]
[null,null,null,{"$f":"取組ﾁｪｯｸｼｰﾄ改訂版!H66","v":""},{"$f":"取組ﾁｪｯｸｼｰﾄ改訂版!I66","v":0},{"$f":"取組ﾁｪｯｸｼｰﾄ改訂版!J66","v":1},{"$f":"取組ﾁｪｯｸｼｰﾄ改訂版!K66","v":0},{"$f":"取組ﾁｪｯｸｼｰﾄ改訂版!L66","v":0},null,null,null,null,null,null,null,null,null,null,null,null,"　5 投資・融資",null,0.54]
[null,null,null,{"$f":"取組ﾁｪｯｸｼｰﾄ改訂版!H67","v":0},{"$f":"取組ﾁｪｯｸｼｰﾄ改訂版!I67","v":0},{"$f":"取組ﾁｪｯｸｼｰﾄ改訂版!J67","v":0},{"$f":"取組ﾁｪｯｸｼｰﾄ改訂版!K67","v":19},{"$f":"取組ﾁｪｯｸｼｰﾄ改訂版!L67","v":0}]
[]
[]
[]
["<項目③ ： 化学物質対策>"]
["　1 化学物質の管理の徹底",null,null,{"$f":"取組ﾁｪｯｸｼｰﾄ改訂版!H72","v":""},{"$f":"取組ﾁｪｯｸｼｰﾄ改訂版!I72","v":0},{"$f":"取組ﾁｪｯｸｼｰﾄ改訂版!J72","v":1},{"$f":"取組ﾁｪｯｸｼｰﾄ改訂版!K72","v":12},{"$f":"取組ﾁｪｯｸｼｰﾄ改訂版!L72","v":0}]
[null,null,null,{"$f":"取組ﾁｪｯｸｼｰﾄ改訂版!H73","v":""},{"$f":"取組ﾁｪｯｸｼｰﾄ改訂版!I73","v":0},{"$f":"取組ﾁｪｯｸｼｰﾄ改訂版!J73","v":1},{"$f":"取組ﾁｪｯｸｼｰﾄ改訂版!K73","v":0},{"$f":"取組ﾁｪｯｸｼｰﾄ改訂版!L73","v":0}]
[null,null,null,{"$f":"取組ﾁｪｯｸｼｰﾄ改訂版!H74","v":""},{"$f":"取組ﾁｪｯｸｼｰﾄ改訂版!I74","v":0},{"$f":"取組ﾁｪｯｸｼｰﾄ改訂版!J74","v":1},{"$f":"取組ﾁｪｯｸｼｰﾄ改訂版!K74","v":0},{"$f":"取組ﾁｪｯｸｼｰﾄ改訂版!L74","v":0}]
[null,null,null,{"$f":"取組ﾁｪｯｸｼｰﾄ改訂版!H75","v":""},{"$f":"取組ﾁｪｯｸｼｰﾄ改訂版!I75","v":0},{"$f":"取組ﾁｪｯｸｼｰﾄ改訂版!J75","v":1},{"$f":"取組ﾁｪｯｸｼｰﾄ改訂版!K75","v":0},{"$f":"取組ﾁｪｯｸｼｰﾄ改訂版!L75","v":0}]
[null,null,null,{"$f":"取組ﾁｪｯｸｼｰﾄ改訂版!H76","v":""},{"$f":"取組ﾁｪｯｸｼｰﾄ改訂版!I76","v":0},{"$f":"取組ﾁｪｯｸｼｰﾄ改訂版!J76","v":1},{"$f":"取組ﾁｪｯｸｼｰﾄ改訂版!K76","v":0},{"$f":"取組ﾁｪｯｸｼｰﾄ改訂版!L76","v":0}]
[null,null,null,{"$f":"取組ﾁｪｯｸｼｰﾄ改訂版!H77","v":""},{"$f":"取組ﾁｪｯｸｼｰﾄ改訂版!I77","v":0},{"$f":"取組ﾁｪｯｸｼｰﾄ改訂版!J77","v":1},{"$f":"取組ﾁｪｯｸｼｰﾄ改訂版!K77","v":0},{"$f":"取組ﾁｪｯｸｼｰﾄ改訂版!L77","v":0}]
[null,null,null,{"$f":"取組ﾁｪｯｸｼｰﾄ改訂版!H78","v":""},{"$f":"取組ﾁｪｯｸｼｰﾄ改訂版!I78","v":0},{"$f":"取組ﾁｪｯｸｼｰﾄ改訂版!J78","v":1},{"$f":"取組ﾁｪｯｸｼｰﾄ改訂版!K78","v":0},{"$f":"取組ﾁｪｯｸｼｰﾄ改訂版!L78","v":0}]
[null,null,null,{"$f":"取組ﾁｪｯｸｼｰﾄ改訂版!H79","v":""},{"$f":"取組ﾁｪｯｸｼｰﾄ改訂版!I79","v":0},{"$f":"取組ﾁｪｯｸｼｰﾄ改訂版!J79","v":1},{"$f":"取組ﾁｪｯｸｼｰﾄ改訂版!K79","v":0},{"$f":"取組ﾁｪｯｸｼｰﾄ改訂版!L79","v":0}]
[null,null,null,{"$f":"取組ﾁｪｯｸｼｰﾄ改訂版!H80","v":""},{"$f":"取組ﾁｪｯｸｼｰﾄ改訂版!I80","v":0},{"$f":"取組ﾁｪｯｸｼｰﾄ改訂版!J80","v":1},{"$f":"取組ﾁｪｯｸｼｰﾄ改訂版!K80","v":0},{"$f":"取組ﾁｪｯｸｼｰﾄ改訂版!L80","v":0}]
[null,null,null,{"$f":"取組ﾁｪｯｸｼｰﾄ改訂版!H81","v":""},{"$f":"取組ﾁｪｯｸｼｰﾄ改訂版!I81","v":0},{"$f":"取組ﾁｪｯｸｼｰﾄ改訂版!J81","v":1},{"$f":"取組ﾁｪｯｸｼｰﾄ改訂版!K81","v":0},{"$f":"取組ﾁｪｯｸｼｰﾄ改訂版!L81","v":0}]
[null,null,null,{"$f":"取組ﾁｪｯｸｼｰﾄ改訂版!H82","v":""},{"$f":"取組ﾁｪｯｸｼｰﾄ改訂版!I82","v":0},{"$f":"取組ﾁｪｯｸｼｰﾄ改訂版!J82","v":1},{"$f":"取組ﾁｪｯｸｼｰﾄ改訂版!K82","v":0},{"$f":"取組ﾁｪｯｸｼｰﾄ改訂版!L82","v":0}]
[null,null,null,{"$f":"取組ﾁｪｯｸｼｰﾄ改訂版!H83","v":""},{"$f":"取組ﾁｪｯｸｼｰﾄ改訂版!I83","v":0},{"$f":"取組ﾁｪｯｸｼｰﾄ改訂版!J83","v":1},{"$f":"取組ﾁｪｯｸｼｰﾄ改訂版!K83","v":0},{"$f":"取組ﾁｪｯｸｼｰﾄ改訂版!L83","v":0}]
[null,null,null,{"$f":"取組ﾁｪｯｸｼｰﾄ改訂版!H84","v":""},{"$f":"取組ﾁｪｯｸｼｰﾄ改訂版!I84","v":0},{"$f":"取組ﾁｪｯｸｼｰﾄ改訂版!J84","v":0},{"$f":"取組ﾁｪｯｸｼｰﾄ改訂版!K84","v":0},{"$f":"取組ﾁｪｯｸｼｰﾄ改訂版!L84","v":0}]
["　2 温室効果ガス特定フロン（CFC,CHFC等)、代替フロン（ＨＦＣ、ＰＦＣ、ＳＦ６ 等）の排出抑制、削減、適正処理",null,null,{"$f":"取組ﾁｪｯｸｼｰﾄ改訂版!H85","v":1},{"$f":"取組ﾁｪｯｸｼｰﾄ改訂版!I85","v":8},{"$f":"取組ﾁｪｯｸｼｰﾄ改訂版!J85","v":1},{"$f":"取組ﾁｪｯｸｼｰﾄ改訂版!K85","v":9},{"$f":"取組ﾁｪｯｸｼｰﾄ改訂版!L85","v":0.88888888888888884}]
[null,null,null,{"$f":"取組ﾁｪｯｸｼｰﾄ改訂版!H86","v":1},{"$f":"取組ﾁｪｯｸｼｰﾄ改訂版!I86","v":0},{"$f":"取組ﾁｪｯｸｼｰﾄ改訂版!J86","v":1},{"$f":"取組ﾁｪｯｸｼｰﾄ改訂版!K86","v":0},{"$f":"取組ﾁｪｯｸｼｰﾄ改訂版!L86","v":0}]
[null,null,null,{"$f":"取組ﾁｪｯｸｼｰﾄ改訂版!H87","v":1},{"$f":"取組ﾁｪｯｸｼｰﾄ改訂版!I87","v":0},{"$f":"取組ﾁｪｯｸｼｰﾄ改訂版!J87","v":1},{"$f":"取組ﾁｪｯｸｼｰﾄ改訂版!K87","v":0},{"$f":"取組ﾁｪｯｸｼｰﾄ改訂版!L87","v":0}]
[null,null,null,{"$f":"取組ﾁｪｯｸｼｰﾄ改訂版!H88","v":1},{"$f":"取組ﾁｪｯｸｼｰﾄ改訂版!I88","v":0},{"$f":"取組ﾁｪｯｸｼｰﾄ改訂版!J88","v":1},{"$f":"取組ﾁｪｯｸｼｰﾄ改訂版!K88","v":0},{"$f":"取組ﾁｪｯｸｼｰﾄ改訂版!L88","v":0}]
[null,null,null,{"$f":"取組ﾁｪｯｸｼｰﾄ改訂版!H89","v":1},{"$f":"取組ﾁｪｯｸｼｰﾄ改訂版!I89","v":0},{"$f":"取組ﾁｪｯｸｼｰﾄ改訂版!J89","v":1},{"$f":"取組ﾁｪｯｸｼｰﾄ改訂版!K89","v":0},{"$f":"取組ﾁｪｯｸｼｰﾄ改訂版!L89","v":0}]
[null,null,null,{"$f":"取組ﾁｪｯｸｼｰﾄ改訂版!H90","v":1},{"$f":"取組ﾁｪｯｸｼｰﾄ改訂版!I90","v":0},{"$f":"取組ﾁｪｯｸｼｰﾄ改訂版!J90","v":1},{"$f":"取組ﾁｪｯｸｼｰﾄ改訂版!K90","v":0},{"$f":"取組ﾁｪｯｸｼｰﾄ改訂版!L90","v":0}]
[null,null,null,{"$f":"取組ﾁｪｯｸｼｰﾄ改訂版!H91","v":1},{"$f":"取組ﾁｪｯｸｼｰﾄ改訂版!I91","v":0},{"$f":"取組ﾁｪｯｸｼｰﾄ改訂版!J91","v":1},{"$f":"取組ﾁｪｯｸｼｰﾄ改訂版!K91","v":0},{"$f":"取組ﾁｪｯｸｼｰﾄ改訂版!L91","v":0}]
[null,null,null,{"$f":"取組ﾁｪｯｸｼｰﾄ改訂版!H92","v":1},{"$f":"取組ﾁｪｯｸｼｰﾄ改訂版!I92","v":0},{"$f":"取組ﾁｪｯｸｼｰﾄ改訂版!J92","v":1},{"$f":"取組ﾁｪｯｸｼｰﾄ改訂版!K92","v":0},{"$f":"取組ﾁｪｯｸｼｰﾄ改訂版!L92","v":0}]
[null,null,null,{"$f":"取組ﾁｪｯｸｼｰﾄ改訂版!H93","v":""},{"$f":"取組ﾁｪｯｸｼｰﾄ改訂版!I93","v":0},{"$f":"取組ﾁｪｯｸｼｰﾄ改訂版!J93","v":1},{"$f":"取組ﾁｪｯｸｼｰﾄ改訂版!K93","v":0},{"$f":"取組ﾁｪｯｸｼｰﾄ改訂版!L93","v":0}]
[null,null,null,{"$f":"取組ﾁｪｯｸｼｰﾄ改訂版!H94","v":0},{"$f":"取組ﾁｪｯｸｼｰﾄ改訂版!I94","v":8},{"$f":"取組ﾁｪｯｸｼｰﾄ改訂版!J94","v":0},{"$f":"取組ﾁｪｯｸｼｰﾄ改訂版!K94","v":21},{"$f":"取組ﾁｪｯｸｼｰﾄ改訂版!L94","v":0.38095238095238093}]
[]
[]
[" <項目④ ： 節水・水の効率利用>"]
[null,null,null,{"$f":"取組ﾁｪｯｸｼｰﾄ改訂版!H98","v":0.5},{"$f":"取組ﾁｪｯｸｼｰﾄ改訂版!I98","v":3.5},{"$f":"取組ﾁｪｯｸｼｰﾄ改訂版!J98","v":1},{"$f":"取組ﾁｪｯｸｼｰﾄ改訂版!K98","v":7},{"$f":"取組ﾁｪｯｸｼｰﾄ改訂版!L98","v":0.5}]
[null,null,null,{"$f":"取組ﾁｪｯｸｼｰﾄ改訂版!H99","v":0.5},{"$f":"取組ﾁｪｯｸｼｰﾄ改訂版!I99","v":0},{"$f":"取組ﾁｪｯｸｼｰﾄ改訂版!J99","v":1},{"$f":"取組ﾁｪｯｸｼｰﾄ改訂版!K99","v":0},{"$f":"取組ﾁｪｯｸｼｰﾄ改訂版!L99","v":0}]
[null,null,null,{"$f":"取組ﾁｪｯｸｼｰﾄ改訂版!H100","v":0.5},{"$f":"取組ﾁｪｯｸｼｰﾄ改訂版!I100","v":0},{"$f":"取組ﾁｪｯｸｼｰﾄ改訂版!J100","v":1},{"$f":"取組ﾁｪｯｸｼｰﾄ改訂版!K100","v":0},{"$f":"取組ﾁｪｯｸｼｰﾄ改訂版!L100","v":0}]
[null,null,null,{"$f":"取組ﾁｪｯｸｼｰﾄ改訂版!H101","v":0.5},{"$f":"取組ﾁｪｯｸｼｰﾄ改訂版!I101","v":0},{"$f":"取組ﾁｪｯｸｼｰﾄ改訂版!J101","v":1},{"$f":"取組ﾁｪｯｸｼｰﾄ改訂版!K101","v":0},{"$f":"取組ﾁｪｯｸｼｰﾄ改訂版!L101","v":0}]
[null,null,null,{"$f":"取組ﾁｪｯｸｼｰﾄ改訂版!H102","v":0.5},{"$f":"取組ﾁｪｯｸｼｰﾄ改訂版!I102","v":0},{"$f":"取組ﾁｪｯｸｼｰﾄ改訂版!J102","v":1},{"$f":"取組ﾁｪｯｸｼｰﾄ改訂版!K102","v":0},{"$f":"取組ﾁｪｯｸｼｰﾄ改訂版!L102","v":0}]
[null,null,null,{"$f":"取組ﾁｪｯｸｼｰﾄ改訂版!H103","v":0.5},{"$f":"取組ﾁｪｯｸｼｰﾄ改訂版!I103","v":0},{"$f":"取組ﾁｪｯｸｼｰﾄ改訂版!J103","v":1},{"$f":"取組ﾁｪｯｸｼｰﾄ改訂版!K103","v":0},{"$f":"取組ﾁｪｯｸｼｰﾄ改訂版!L103","v":0}]
[null,null,null,{"$f":"取組ﾁｪｯｸｼｰﾄ改訂版!H104","v":0.5},{"$f":"取組ﾁｪｯｸｼｰﾄ改訂版!I104","v":0},{"$f":"取組ﾁｪｯｸｼｰﾄ改訂版!J104","v":1},{"$f":"取組ﾁｪｯｸｼｰﾄ改訂版!K104","v":0},{"$f":"取組ﾁｪｯｸｼｰﾄ改訂版!L104","v":0}]
[null,null,null,{"$f":"取組ﾁｪｯｸｼｰﾄ改訂版!H105","v":0},{"$f":"取組ﾁｪｯｸｼｰﾄ改訂版!I105","v":3.5},{"$f":"取組ﾁｪｯｸｼｰﾄ改訂版!J105","v":0},{"$f":"取組ﾁｪｯｸｼｰﾄ改訂版!K105","v":7},{"$f":"取組ﾁｪｯｸｼｰﾄ改訂版!L105","v":0.5}]
[]
[]
[]
["<項目⑤ ： 製品の開発・設計等における環境配慮>"]
["　1 製品（プライベートブランド商品を含む）設計に当たっての環境配慮",null,null,{"$f":"取組ﾁｪｯｸｼｰﾄ改訂版!H110","v":1},{"$f":"取組ﾁｪｯｸｼｰﾄ改訂版!I110","v":8},{"$f":"取組ﾁｪｯｸｼｰﾄ改訂版!J110","v":1},{"$f":"取組ﾁｪｯｸｼｰﾄ改訂版!K110","v":8},{"$f":"取組ﾁｪｯｸｼｰﾄ改訂版!L110","v":1}]
[null,null,null,{"$f":"取組ﾁｪｯｸｼｰﾄ改訂版!H111","v":1},{"$f":"取組ﾁｪｯｸｼｰﾄ改訂版!I111","v":0},{"$f":"取組ﾁｪｯｸｼｰﾄ改訂版!J111","v":1},{"$f":"取組ﾁｪｯｸｼｰﾄ改訂版!K111","v":0},{"$f":"取組ﾁｪｯｸｼｰﾄ改訂版!L111","v":0}]
[null,null,null,{"$f":"取組ﾁｪｯｸｼｰﾄ改訂版!H112","v":1},{"$f":"取組ﾁｪｯｸｼｰﾄ改訂版!I112","v":0},{"$f":"取組ﾁｪｯｸｼｰﾄ改訂版!J112","v":1},{"$f":"取組ﾁｪｯｸｼｰﾄ改訂版!K112","v":0},{"$f":"取組ﾁｪｯｸｼｰﾄ改訂版!L112","v":0}]
[null,null,null,{"$f":"取組ﾁｪｯｸｼｰﾄ改訂版!H113","v":1},{"$f":"取組ﾁｪｯｸｼｰﾄ改訂版!I113","v":0},{"$f":"取組ﾁｪｯｸｼｰﾄ改訂版!J113","v":1},{"$f":"取組ﾁｪｯｸｼｰﾄ改訂版!K113","v":0},{"$f":"取組ﾁｪｯｸｼｰﾄ改訂版!L113","v":0}]
[null,null,null,{"$f":"取組ﾁｪｯｸｼｰﾄ改訂版!H114","v":1},{"$f":"取組ﾁｪｯｸｼｰﾄ改訂版!I114","v":0},{"$f":"取組ﾁｪｯｸｼｰﾄ改訂版!J114","v":1},{"$f":"取組ﾁｪｯｸｼｰﾄ改訂版!K114","v":0},{"$f":"取組ﾁｪｯｸｼｰﾄ改訂版!L114","v":0}]
[null,null,null,{"$f":"取組ﾁｪｯｸｼｰﾄ改訂版!H115","v":1},{"$f":"取組ﾁｪｯｸｼｰﾄ改訂版!I115","v":0},{"$f":"取組ﾁｪｯｸｼｰﾄ改訂版!J115","v":1},{"$f":"取組ﾁｪｯｸｼｰﾄ改訂版!K115","v":0},{"$f":"取組ﾁｪｯｸｼｰﾄ改訂版!L115","v":0}]
[null,null,null,{"$f":"取組ﾁｪｯｸｼｰﾄ改訂版!H116","v":1},{"$f":"取組ﾁｪｯｸｼｰﾄ改訂版!I116","v":0},{"$f":"取組ﾁｪｯｸｼｰﾄ改訂版!J116","v":1},{"$f":"取組ﾁｪｯｸｼｰﾄ改訂版!K116","v":0},{"$f":"取組ﾁｪｯｸｼｰﾄ改訂版!L116","v":0}]
[null,null,null,{"$f":"取組ﾁｪｯｸｼｰﾄ改訂版!H117","v":1},{"$f":"取組ﾁｪｯｸｼｰﾄ改訂版!I117","v":0},{"$f":"取組ﾁｪｯｸｼｰﾄ改訂版!J117","v":1},{"$f":"取組ﾁｪｯｸｼｰﾄ改訂版!K117","v":0},{"$f":"取組ﾁｪｯｸｼｰﾄ改訂版!L117","v":0}]
[null,null,null,{"$f":"取組ﾁｪｯｸｼｰﾄ改訂版!H118","v":""},{"$f":"取組ﾁｪｯｸｼｰﾄ改訂版!I118","v":0},{"$f":"取組ﾁｪｯｸｼｰﾄ改訂版!J118","v":0},{"$f":"取組ﾁｪｯｸｼｰﾄ改訂版!K118","v":0},{"$f":"取組ﾁｪｯｸｼｰﾄ改訂版!L118","v":0}]
["　2 製品の出荷、販売後における環境負荷の削減",null,null,{"$f":"取組ﾁｪｯｸｼｰﾄ改訂版!H119","v":0.1},{"$f":"取組ﾁｪｯｸｼｰﾄ改訂版!I119","v":0.30000000000000004},{"$f":"取組ﾁｪｯｸｼｰﾄ改訂版!J119","v":1},{"$f":"取組ﾁｪｯｸｼｰﾄ改訂版!K119","v":3},{"$f":"取組ﾁｪｯｸｼｰﾄ改訂版!L119","v":0.10000000000000002}]
[null,null,null,{"$f":"取組ﾁｪｯｸｼｰﾄ改訂版!H120","v":0.1},{"$f":"取組ﾁｪｯｸｼｰﾄ改訂版!I120","v":0},{"$f":"取組ﾁｪｯｸｼｰﾄ改訂版!J120","v":1},{"$f":"取組ﾁｪｯｸｼｰﾄ改訂版!K120","v":0},{"$f":"取組ﾁｪｯｸｼｰﾄ改訂版!L120","v":0}]
[null,null,null,{"$f":"取組ﾁｪｯｸｼｰﾄ改訂版!H121","v":0.1},{"$f":"取組ﾁｪｯｸｼｰﾄ改訂版!I121","v":0},{"$f":"取組ﾁｪｯｸｼｰﾄ改訂版!J121","v":1},{"$f":"取組ﾁｪｯｸｼｰﾄ改訂版!K121","v":0},{"$f":"取組ﾁｪｯｸｼｰﾄ改訂版!L121","v":0}]
[null,null,null,{"$f":"取組ﾁｪｯｸｼｰﾄ改訂版!H122","v":""},{"$f":"取組ﾁｪｯｸｼｰﾄ改訂版!I122","v":0},{"$f":"取組ﾁｪｯｸｼｰﾄ改訂版!J122","v":0},{"$f":"取組ﾁｪｯｸｼｰﾄ改訂版!K122","v":0},{"$f":"取組ﾁｪｯｸｼｰﾄ改訂版!L122","v":0}]
[null,null,null,{"$f":"取組ﾁｪｯｸｼｰﾄ改訂版!H123","v":""},{"$f":"取組ﾁｪｯｸｼｰﾄ改訂版!I123","v":0},{"$f":"取組ﾁｪｯｸｼｰﾄ改訂版!J123","v":0},{"$f":"取組ﾁｪｯｸｼｰﾄ改訂版!K123","v":0},{"$f":"取組ﾁｪｯｸｼｰﾄ改訂版!L123","v":0}]
["　3 製品（プライベートブランド商品を含む）に係る製品アセスメント等",null,null,{"$f":"取組ﾁｪｯｸｼｰﾄ改訂版!H124","v":0.5},{"$f":"取組ﾁｪｯｸｼｰﾄ改訂版!I124","v":2.5},{"$f":"取組ﾁｪｯｸｼｰﾄ改訂版!J124","v":1},{"$f":"取組ﾁｪｯｸｼｰﾄ改訂版!K124","v":5},{"$f":"取組ﾁｪｯｸｼｰﾄ改訂版!L124","v":0.5}]
[null,null,null,{"$f":"取組ﾁｪｯｸｼｰﾄ改訂版!H125","v":0.5},{"$f":"取組ﾁｪｯｸｼｰﾄ改訂版!I125","v":0},{"$f":"取組ﾁｪｯｸｼｰﾄ改訂版!J125","v":1},{"$f":"取組ﾁｪｯｸｼｰﾄ改訂版!K125","v":0},{"$f":"取組ﾁｪｯｸｼｰﾄ改訂版!L125","v":0}]
[null,null,null,{"$f":"取組ﾁｪｯｸｼｰﾄ改訂版!H126","v":0.5},{"$f":"取組ﾁｪｯｸｼｰﾄ改訂版!I126","v":0},{"$f":"取組ﾁｪｯｸｼｰﾄ改訂版!J126","v":1},{"$f":"取組ﾁｪｯｸｼｰﾄ改訂版!K126","v":0},{"$f":"取組ﾁｪｯｸｼｰﾄ改訂版!L126","v":0}]
[null,null,null,{"$f":"取組ﾁｪｯｸｼｰﾄ改訂版!H127","v":0.5},{"$f":"取組ﾁｪｯｸｼｰﾄ改訂版!I127","v":0},{"$f":"取組ﾁｪｯｸｼｰﾄ改訂版!J127","v":1},{"$f":"取組ﾁｪｯｸｼｰﾄ改訂版!K127","v":0},{"$f":"取組ﾁｪｯｸｼｰﾄ改訂版!L127","v":0}]
[null,null,null,{"$f":"取組ﾁｪｯｸｼｰﾄ改訂版!H128","v":0.5},{"$f":"取組ﾁｪｯｸｼｰﾄ改訂版!I128","v":0},{"$f":"取組ﾁｪｯｸｼｰﾄ改訂版!J128","v":1},{"$f":"取組ﾁｪｯｸｼｰﾄ改訂版!K128","v":0},{"$f":"取組ﾁｪｯｸｼｰﾄ改訂版!L128","v":0}]
[null,null,null,{"$f":"取組ﾁｪｯｸｼｰﾄ改訂版!H129","v":""},{"$f":"取組ﾁｪｯｸｼｰﾄ改訂版!I129","v":0},{"$f":"取組ﾁｪｯｸｼｰﾄ改訂版!J129","v":0},{"$f":"取組ﾁｪｯｸｼｰﾄ改訂版!K129","v":0},{"$f":"取組ﾁｪｯｸｼｰﾄ改訂版!L129","v":0}]
["　4 環境保全型商品等の販売及び消費者に対する情報提供",null,null,{"$f":"取組ﾁｪｯｸｼｰﾄ改訂版!H130","v":1},{"$f":"取組ﾁｪｯｸｼｰﾄ改訂版!I130","v":1},{"$f":"取組ﾁｪｯｸｼｰﾄ改訂版!J130","v":1},{"$f":"取組ﾁｪｯｸｼｰﾄ改訂版!K130","v":1},{"$f":"取組ﾁｪｯｸｼｰﾄ改訂版!L130","v":1}]
[null,null,null,{"$f":"取組ﾁｪｯｸｼｰﾄ改訂版!H131","v":""},{"$f":"取組ﾁｪｯｸｼｰﾄ改訂版!I131","v":0},{"$f":"取組ﾁｪｯｸｼｰﾄ改訂版!J131","v":0},{"$f":"取組ﾁｪｯｸｼｰﾄ改訂版!K131","v":0},{"$f":"取組ﾁｪｯｸｼｰﾄ改訂版!L131","v":0}]
[null,null,null,{"$f":"取組ﾁｪｯｸｼｰﾄ改訂版!H132","v":""},{"$f":"取組ﾁｪｯｸｼｰﾄ改訂版!I132","v":0},{"$f":"取組ﾁｪｯｸｼｰﾄ改訂版!J132","v":0},{"$f":"取組ﾁｪｯｸｼｰﾄ改訂版!K132","v":0},{"$f":"取組ﾁｪｯｸｼｰﾄ改訂版!L132","v":0}]
[null,null,null,{"$f":"取組ﾁｪｯｸｼｰﾄ改訂版!H133","v":""},{"$f":"取組ﾁｪｯｸｼｰﾄ改訂版!I133","v":0},{"$f":"取組ﾁｪｯｸｼｰﾄ改訂版!J133","v":0},{"$f":"取組ﾁｪｯｸｼｰﾄ改訂版!K133","v":0},{"$f":"取組ﾁｪｯｸｼｰﾄ改訂版!L133","v":0}]
[null,null,null,{"$f":"取組ﾁｪｯｸｼｰﾄ改訂版!H134","v":0},{"$f":"取組ﾁｪｯｸｼｰﾄ改訂版!I134","v":11.8},{"$f":"取組ﾁｪｯｸｼｰﾄ改訂版!J134","v":0},{"$f":"取組ﾁｪｯｸｼｰﾄ改訂版!K134","v":17},{"$f":"取組ﾁｪｯｸｼｰﾄ改訂版!L134","v":0.69411764705882362}]
[]
[]
[]
["<項目⑥ ： 建築物の建築・解体、開発事業に当たっての環境配慮>"]
["　1 新規事業を始める際の環境影響評価・環境配慮",null,null,{"$f":"取組ﾁｪｯｸｼｰﾄ改訂版!H139","v":1},{"$f":"取組ﾁｪｯｸｼｰﾄ改訂版!I139","v":3},{"$f":"取組ﾁｪｯｸｼｰﾄ改訂版!J139","v":1},{"$f":"取組ﾁｪｯｸｼｰﾄ改訂版!K139","v":3},{"$f":"取組ﾁｪｯｸｼｰﾄ改訂版!L139","v":1}]
[null,null,null,{"$f":"取組ﾁｪｯｸｼｰﾄ改訂版!H140","v":1},{"$f":"取組ﾁｪｯｸｼｰﾄ改訂版!I140","v":0},{"$f":"取組ﾁｪｯｸｼｰﾄ改訂版!J140","v":1},{"$f":"取組ﾁｪｯｸｼｰﾄ改訂版!K140","v":0},{"$f":"取組ﾁｪｯｸｼｰﾄ改訂版!L140","v":0}]
[null,null,null,{"$f":"取組ﾁｪｯｸｼｰﾄ改訂版!H141","v":1},{"$f":"取組ﾁｪｯｸｼｰﾄ改訂版!I141","v":0},{"$f":"取組ﾁｪｯｸｼｰﾄ改訂版!J141","v":1},{"$f":"取組ﾁｪｯｸｼｰﾄ改訂版!K141","v":0},{"$f":"取組ﾁｪｯｸｼｰﾄ改訂版!L141","v":0}]
[null,null,null,{"$f":"取組ﾁｪｯｸｼｰﾄ改訂版!H142","v":""},{"$f":"取組ﾁｪｯｸｼｰﾄ改訂版!I142","v":0},{"$f":"取組ﾁｪｯｸｼｰﾄ改訂版!J142","v":0},{"$f":"取組ﾁｪｯｸｼｰﾄ改訂版!K142","v":0},{"$f":"取組ﾁｪｯｸｼｰﾄ改訂版!L142","v":0}]
["　2 環境整備と周辺の自然環境の保全",null,null,{"$f":"取組ﾁｪｯｸｼｰﾄ改訂版!H143","v":1},{"$f":"取組ﾁｪｯｸｼｰﾄ改訂版!I143","v":3},{"$f":"取組ﾁｪｯｸｼｰﾄ改訂版!J143","v":1},{"$f":"取組ﾁｪｯｸｼｰﾄ改訂版!K143","v":3},{"$f":"取組ﾁｪｯｸｼｰﾄ改訂版!L143","v":1}]
[null,null,null,{"$f":"取組ﾁｪｯｸｼｰﾄ改訂版!H144","v":1},{"$f":"取組ﾁｪｯｸｼｰﾄ改訂版!I144","v":0},{"$f":"取組ﾁｪｯｸｼｰﾄ改訂版!J144","v":1},{"$f":"取組ﾁｪｯｸｼｰﾄ改訂版!K144","v":0},{"$f":"取組ﾁｪｯｸｼｰﾄ改訂版!L144","v":0}]
[null,null,null,{"$f":"取組ﾁｪｯｸｼｰﾄ改訂版!H145","v":1},{"$f":"取組ﾁｪｯｸｼｰﾄ改訂版!I145","v":0},{"$f":"取組ﾁｪｯｸｼｰﾄ改訂版!J145","v":1},{"$f":"取組ﾁｪｯｸｼｰﾄ改訂版!K145","v":0},{"$f":"取組ﾁｪｯｸｼｰﾄ改訂版!L145","v":0}]
[null,null,null,{"$f":"取組ﾁｪｯｸｼｰﾄ改訂版!H146","v":""},{"$f":"取組ﾁｪｯｸｼｰﾄ改訂版!I146","v":0},{"$f":"取組ﾁｪｯｸｼｰﾄ改訂版!J146","v":0},{"$f":"取組ﾁｪｯｸｼｰﾄ改訂版!K146","v":0},{"$f":"取組ﾁｪｯｸｼｰﾄ改訂版!L146","v":0}]
["　3 環境負荷の少ない建築材の使用等",null,null,{"$f":"取組ﾁｪｯｸｼｰﾄ改訂版!H147","v":0.5},{"$f":"取組ﾁｪｯｸｼｰﾄ改訂版!I147","v":0.5},{"$f":"取組ﾁｪｯｸｼｰﾄ改訂版!J147","v":1},{"$f":"取組ﾁｪｯｸｼｰﾄ改訂版!K147","v":1},{"$f":"取組ﾁｪｯｸｼｰﾄ改訂版!L147","v":0.5}]
[null,null,null,{"$f":"取組ﾁｪｯｸｼｰﾄ改訂版!H148","v":""},{"$f":"取組ﾁｪｯｸｼｰﾄ改訂版!I148","v":0},{"$f":"取組ﾁｪｯｸｼｰﾄ改訂版!J148","v":0},{"$f":"取組ﾁｪｯｸｼｰﾄ改訂版!K148","v":0},{"$f":"取組ﾁｪｯｸｼｰﾄ改訂版!L148","v":0}]
["　4 環境に配慮した工法",null,null,{"$f":"取組ﾁｪｯｸｼｰﾄ改訂版!H149","v":1},{"$f":"取組ﾁｪｯｸｼｰﾄ改訂版!I149","v":8},{"$f":"取組ﾁｪｯｸｼｰﾄ改訂版!J149","v":1},{"$f":"取組ﾁｪｯｸｼｰﾄ改訂版!K149","v":8},{"$f":"取組ﾁｪｯｸｼｰﾄ改訂版!L149","v":1}]
[null,null,null,{"$f":"取組ﾁｪｯｸｼｰﾄ改訂版!H150","v":1},{"$f":"取組ﾁｪｯｸｼｰﾄ改訂版!I150","v":0},{"$f":"取組ﾁｪｯｸｼｰﾄ改訂版!J150","v":1},{"$f":"取組ﾁｪｯｸｼｰﾄ改訂版!K150","v":0},{"$f":"取組ﾁｪｯｸｼｰﾄ改訂版!L150","v":0}]
[null,null,null,{"$f":"取組ﾁｪｯｸｼｰﾄ改訂版!H151","v":1},{"$f":"取組ﾁｪｯｸｼｰﾄ改訂版!I151","v":0},{"$f":"取組ﾁｪｯｸｼｰﾄ改訂版!J151","v":1},{"$f":"取組ﾁｪｯｸｼｰﾄ改訂版!K151","v":0},{"$f":"取組ﾁｪｯｸｼｰﾄ改訂版!L151","v":0}]
[null,null,null,{"$f":"取組ﾁｪｯｸｼｰﾄ改訂版!H152","v":1},{"$f":"取組ﾁｪｯｸｼｰﾄ改訂版!I152","v":0},{"$f":"取組ﾁｪｯｸｼｰﾄ改訂版!J152","v":1},{"$f":"取組ﾁｪｯｸｼｰﾄ改訂版!K152","v":0},{"$f":"取組ﾁｪｯｸｼｰﾄ改訂版!L152","v":0}]
[null,null,null,{"$f":"取組ﾁｪｯｸｼｰﾄ改訂版!H153","v":1},{"$f":"取組ﾁｪｯｸｼｰﾄ改訂版!I153","v":0},{"$f":"取組ﾁｪｯｸｼｰﾄ改訂版!J153","v":1},{"$f":"取組ﾁｪｯｸｼｰﾄ改訂版!K153","v":0},{"$f":"取組ﾁｪｯｸｼｰﾄ改訂版!L153","v":0}]
[null,null,null,{"$f":"取組ﾁｪｯｸｼｰﾄ改訂版!H154","v":1},{"$f":"取組ﾁｪｯｸｼｰﾄ改訂版!I154","v":0},{"$f":"取組ﾁｪｯｸｼｰﾄ改訂版!J154","v":1},{"$f":"取組ﾁｪｯｸｼｰﾄ改訂版!K154","v":0},{"$f":"取組ﾁｪｯｸｼｰﾄ改訂版!L154","v":0}]
[null,null,null,{"$f":"取組ﾁｪｯｸｼｰﾄ改訂版!H155","v":1},{"$f":"取組ﾁｪｯｸｼｰﾄ改訂版!I155","v":0},{"$f":"取組ﾁｪｯｸｼｰﾄ改訂版!J155","v":1},{"$f":"取組ﾁｪｯｸｼｰﾄ改訂版!K155","v":0},{"$f":"取組ﾁｪｯｸｼｰﾄ改訂版!L155","v":0}]
[null,null,null,{"$f":"取組ﾁｪｯｸｼｰﾄ改訂版!H156","v":1},{"$f":"取組ﾁｪｯｸｼｰﾄ改訂版!I156","v":0},{"$f":"取組ﾁｪｯｸｼｰﾄ改訂版!J156","v":1},{"$f":"取組ﾁｪｯｸｼｰﾄ改訂版!K156","v":0},{"$f":"取組ﾁｪｯｸｼｰﾄ改訂版!L156","v":0}]
[null,null,null,{"$f":"取組ﾁｪｯｸｼｰﾄ改訂版!H157","v":""},{"$f":"取組ﾁｪｯｸｼｰﾄ改訂版!I157","v":0},{"$f":"取組ﾁｪｯｸｼｰﾄ改訂版!J157","v":0},{"$f":"取組ﾁｪｯｸｼｰﾄ改訂版!K157","v":0},{"$f":"取組ﾁｪｯｸｼｰﾄ改訂版!L157","v":0}]
["　5 建築物、構築物の環境への影響を予防するための方策",null,null,{"$f":"取組ﾁｪｯｸｼｰﾄ改訂版!H158","v":1},{"$f":"取組ﾁｪｯｸｼｰﾄ改訂版!I158","v":3},{"$f":"取組ﾁｪｯｸｼｰﾄ改訂版!J158","v":1},{"$f":"取組ﾁｪｯｸｼｰﾄ改訂版!K158","v":3},{"$f":"取組ﾁｪｯｸｼｰﾄ改訂版!L158","v":1}]
[null,null,null,{"$f":"取組ﾁｪｯｸｼｰﾄ改訂版!H159","v":1},{"$f":"取組ﾁｪｯｸｼｰﾄ改訂版!I159","v":0},{"$f":"取組ﾁｪｯｸｼｰﾄ改訂版!J159","v":1},{"$f":"取組ﾁｪｯｸｼｰﾄ改訂版!K159","v":0},{"$f":"取組ﾁｪｯｸｼｰﾄ改訂版!L159","v":0}]
[null,null,null,{"$f":"取組ﾁｪｯｸｼｰﾄ改訂版!H160","v":1},{"$f":"取組ﾁｪｯｸｼｰﾄ改訂版!I160","v":0},{"$f":"取組ﾁｪｯｸｼｰﾄ改訂版!J160","v":1},{"$f":"取組ﾁｪｯｸｼｰﾄ改訂版!K160","v":0},{"$f":"取組ﾁｪｯｸｼｰﾄ改訂版!L160","v":0}]
[null,null,null,{"$f":"取組ﾁｪｯｸｼｰﾄ改訂版!H161","v":""},{"$f":"取組ﾁｪｯｸｼｰﾄ改訂版!I161","v":0},{"$f":"取組ﾁｪｯｸｼｰﾄ改訂版!J161","v":0},{"$f":"取組ﾁｪｯｸｼｰﾄ改訂版!K161","v":0},{"$f":"取組ﾁｪｯｸｼｰﾄ改訂版!L161","v":0}]
["　6 施設閉鎖、建築物の解体等の際の環境配慮",null,null,{"$f":"取組ﾁｪｯｸｼｰﾄ改訂版!H162","v":0.1},{"$f":"取組ﾁｪｯｸｼｰﾄ改訂版!I162","v":1.2000000000000002},{"$f":"取組ﾁｪｯｸｼｰﾄ改訂版!J162","v":1},{"$f":"取組ﾁｪｯｸｼｰﾄ改訂版!K162","v":3},{"$f":"取組ﾁｪｯｸｼｰﾄ改訂版!L162","v":0.40000000000000008}]
[null,null,null,{"$f":"取組ﾁｪｯｸｼｰﾄ改訂版!H163","v":1},{"$f":"取組ﾁｪｯｸｼｰﾄ改訂版!I163","v":0},{"$f":"取組ﾁｪｯｸｼｰﾄ改訂版!J163","v":1},{"$f":"取組ﾁｪｯｸｼｰﾄ改訂版!K163","v":0},{"$f":"取組ﾁｪｯｸｼｰﾄ改訂版!L163","v":0}]
[null,null,null,{"$f":"取組ﾁｪｯｸｼｰﾄ改訂版!H164","v":0.1},{"$f":"取組ﾁｪｯｸｼｰﾄ改訂版!I164","v":0},{"$f":"取組ﾁｪｯｸｼｰﾄ改訂版!J164","v":1},{"$f":"取組ﾁｪｯｸｼｰﾄ改訂版!K164","v":0},{"$f":"取組ﾁｪｯｸｼｰﾄ改訂版!L164","v":0}]
[null,null,null,{"$f":"取組ﾁｪｯｸｼｰﾄ改訂版!H165","v":0},{"$f":"取組ﾁｪｯｸｼｰﾄ改訂版!I165","v":18.7},{"$f":"取組ﾁｪｯｸｼｰﾄ改訂版!J165","v":0},{"$f":"取組ﾁｪｯｸｼｰﾄ改訂版!K165","v":21},{"$f":"取組ﾁｪｯｸｼｰﾄ改訂版!L165","v":0.89047619047619042}]
[]
[]
[]
[]
["<項目⑦ ： グリーン購入>"]
["　1 再生紙の使用",null,null,{"$f":"取組ﾁｪｯｸｼｰﾄ改訂版!H171","v":1},{"$f":"取組ﾁｪｯｸｼｰﾄ改訂版!I171","v":3},{"$f":"取組ﾁｪｯｸｼｰﾄ改訂版!J171","v":1},{"$f":"取組ﾁｪｯｸｼｰﾄ改訂版!K171","v":3},{"$f":"取組ﾁｪｯｸｼｰﾄ改訂版!L171","v":1}]
[null,null,null,{"$f":"取組ﾁｪｯｸｼｰﾄ改訂版!H172","v":1},{"$f":"取組ﾁｪｯｸｼｰﾄ改訂版!I172","v":0},{"$f":"取組ﾁｪｯｸｼｰﾄ改訂版!J172","v":1},{"$f":"取組ﾁｪｯｸｼｰﾄ改訂版!K172","v":0},{"$f":"取組ﾁｪｯｸｼｰﾄ改訂版!L172","v":0}]
[null,null,null,{"$f":"取組ﾁｪｯｸｼｰﾄ改訂版!H173","v":1},{"$f":"取組ﾁｪｯｸｼｰﾄ改訂版!I173","v":0},{"$f":"取組ﾁｪｯｸｼｰﾄ改訂版!J173","v":1},{"$f":"取組ﾁｪｯｸｼｰﾄ改訂版!K173","v":0},{"$f":"取組ﾁｪｯｸｼｰﾄ改訂版!L173","v":0}]
[null,null,null,{"$f":"取組ﾁｪｯｸｼｰﾄ改訂版!H174","v":""},{"$f":"取組ﾁｪｯｸｼｰﾄ改訂版!I174","v":0},{"$f":"取組ﾁｪｯｸｼｰﾄ改訂版!J174","v":0},{"$f":"取組ﾁｪｯｸｼｰﾄ改訂版!K174","v":0},{"$f":"取組ﾁｪｯｸｼｰﾄ改訂版!L174","v":0}]
["　2 その他環境に配慮した物品等の購入、使用",null,null,{"$f":"取組ﾁｪｯｸｼｰﾄ改訂版!H175","v":1},{"$f":"取組ﾁｪｯｸｼｰﾄ改訂版!I175","v":5},{"$f":"取組ﾁｪｯｸｼｰﾄ改訂版!J175","v":1},{"$f":"取組ﾁｪｯｸｼｰﾄ改訂版!K175","v":5},{"$f":"取組ﾁｪｯｸｼｰﾄ改訂版!L175","v":1}]
[null,null,null,{"$f":"取組ﾁｪｯｸｼｰﾄ改訂版!H176","v":1},{"$f":"取組ﾁｪｯｸｼｰﾄ改訂版!I176","v":0},{"$f":"取組ﾁｪｯｸｼｰﾄ改訂版!J176","v":1},{"$f":"取組ﾁｪｯｸｼｰﾄ改訂版!K176","v":0},{"$f":"取組ﾁｪｯｸｼｰﾄ改訂版!L176","v":0}]
[null,null,null,{"$f":"取組ﾁｪｯｸｼｰﾄ改訂版!H177","v":1},{"$f":"取組ﾁｪｯｸｼｰﾄ改訂版!I177","v":0},{"$f":"取組ﾁｪｯｸｼｰﾄ改訂版!J177","v":1},{"$f":"取組ﾁｪｯｸｼｰﾄ改訂版!K177","v":0},{"$f":"取組ﾁｪｯｸｼｰﾄ改訂版!L177","v":0}]
[null,null,null,{"$f":"取組ﾁｪｯｸｼｰﾄ改訂版!H178","v":1},{"$f":"取組ﾁｪｯｸｼｰﾄ改訂版!I178","v":0},{"$f":"取組ﾁｪｯｸｼｰﾄ改訂版!J178","v":1},{"$f":"取組ﾁｪｯｸｼｰﾄ改訂版!K178","v":0},{"$f":"取組ﾁｪｯｸｼｰﾄ改訂版!L178","v":0}]
[null,null,null,{"$f":"取組ﾁｪｯｸｼｰﾄ改訂版!H179","v":1},{"$f":"取組ﾁｪｯｸｼｰﾄ改訂版!I179","v":0},{"$f":"取組ﾁｪｯｸｼｰﾄ改訂版!J179","v":1},{"$f":"取組ﾁｪｯｸｼｰﾄ改訂版!K179","v":0},{"$f":"取組ﾁｪｯｸｼｰﾄ改訂版!L179","v":0}]
[null,null,null,{"$f":"取組ﾁｪｯｸｼｰﾄ改訂版!H180","v":""},{"$f":"取組ﾁｪｯｸｼｰﾄ改訂版!I180","v":0},{"$f":"取組ﾁｪｯｸｼｰﾄ改訂版!J180","v":0},{"$f":"取組ﾁｪｯｸｼｰﾄ改訂版!K180","v":0},{"$f":"取組ﾁｪｯｸｼｰﾄ改訂版!L180","v":0}]
["　3 環境に配慮した物品等の調達に係る基準等",null,null,{"$f":"取組ﾁｪｯｸｼｰﾄ改訂版!H181","v":0.5},{"$f":"取組ﾁｪｯｸｼｰﾄ改訂版!I181","v":1.5},{"$f":"取組ﾁｪｯｸｼｰﾄ改訂版!J181","v":1},{"$f":"取組ﾁｪｯｸｼｰﾄ改訂版!K181","v":3},{"$f":"取組ﾁｪｯｸｼｰﾄ改訂版!L181","v":0.5}]
[null,null,null,{"$f":"取組ﾁｪｯｸｼｰﾄ改訂版!H182","v":0.5},{"$f":"取組ﾁｪｯｸｼｰﾄ改訂版!I182","v":0},{"$f":"取組ﾁｪｯｸｼｰﾄ改訂版!J182","v":1},{"$f":"取組ﾁｪｯｸｼｰﾄ改訂版!K182","v":0},{"$f":"取組ﾁｪｯｸｼｰﾄ改訂版!L182","v":0}]
[null,null,null,{"$f":"取組ﾁｪｯｸｼｰﾄ改訂版!H183","v":0.5},{"$f":"取組ﾁｪｯｸｼｰﾄ改訂版!I183","v":0},{"$f":"取組ﾁｪｯｸｼｰﾄ改訂版!J183","v":1},{"$f":"取組ﾁｪｯｸｼｰﾄ改訂版!K183","v":0},{"$f":"取組ﾁｪｯｸｼｰﾄ改訂版!L183","v":0}]
[null,null,null,{"$f":"取組ﾁｪｯｸｼｰﾄ改訂版!H184","v":0},{"$f":"取組ﾁｪｯｸｼｰﾄ改訂版!I184","v":9.5},{"$f":"取組ﾁｪｯｸｼｰﾄ改訂版!J184","v":0},{"$f":"取組ﾁｪｯｸｼｰﾄ改訂版!K184","v":11},{"$f":"取組ﾁｪｯｸｼｰﾄ改訂版!L184","v":0.86363636363636365}]
[]
[]
[]
["<項目⑧ ： 環境教育、環境保全のための仕組みの整備>"]
["　1 環境保全に関する職員等への教育、意識の向上",null,null,{"$f":"取組ﾁｪｯｸｼｰﾄ改訂版!H189","v":1},{"$f":"取組ﾁｪｯｸｼｰﾄ改訂版!I189","v":5},{"$f":"取組ﾁｪｯｸｼｰﾄ改訂版!J189","v":1},{"$f":"取組ﾁｪｯｸｼｰﾄ改訂版!K189","v":5},{"$f":"取組ﾁｪｯｸｼｰﾄ改訂版!L189","v":1}]
[null,null,null,{"$f":"取組ﾁｪｯｸｼｰﾄ改訂版!H190","v":1},{"$f":"取組ﾁｪｯｸｼｰﾄ改訂版!I190","v":0},{"$f":"取組ﾁｪｯｸｼｰﾄ改訂版!J190","v":1},{"$f":"取組ﾁｪｯｸｼｰﾄ改訂版!K190","v":0},{"$f":"取組ﾁｪｯｸｼｰﾄ改訂版!L190","v":0}]
[null,null,null,{"$f":"取組ﾁｪｯｸｼｰﾄ改訂版!H191","v":1},{"$f":"取組ﾁｪｯｸｼｰﾄ改訂版!I191","v":0},{"$f":"取組ﾁｪｯｸｼｰﾄ改訂版!J191","v":1},{"$f":"取組ﾁｪｯｸｼｰﾄ改訂版!K191","v":0},{"$f":"取組ﾁｪｯｸｼｰﾄ改訂版!L191","v":0}]
[null,null,null,{"$f":"取組ﾁｪｯｸｼｰﾄ改訂版!H192","v":1},{"$f":"取組ﾁｪｯｸｼｰﾄ改訂版!I192","v":0},{"$f":"取組ﾁｪｯｸｼｰﾄ改訂版!J192","v":1},{"$f":"取組ﾁｪｯｸｼｰﾄ改訂版!K192","v":0},{"$f":"取組ﾁｪｯｸｼｰﾄ改訂版!L192","v":0}]
[null,null,null,{"$f":"取組ﾁｪｯｸｼｰﾄ改訂版!H193","v":1},{"$f":"取組ﾁｪｯｸｼｰﾄ改訂版!I193","v":0},{"$f":"取組ﾁｪｯｸｼｰﾄ改訂版!J193","v":1},{"$f":"取組ﾁｪｯｸｼｰﾄ改訂版!K193","v":0},{"$f":"取組ﾁｪｯｸｼｰﾄ改訂版!L193","v":0}]
[null,null,null,{"$f":"取組ﾁｪｯｸｼｰﾄ改訂版!H194","v":""},{"$f":"取組ﾁｪｯｸｼｰﾄ改訂版!I194","v":0},{"$f":"取組ﾁｪｯｸｼｰﾄ改訂版!J194","v":0},{"$f":"取組ﾁｪｯｸｼｰﾄ改訂版!K194","v":0},{"$f":"取組ﾁｪｯｸｼｰﾄ改訂版!L194","v":0}]
["　2 職員等の自主的なボランティア活動に対する支援",null,null,{"$f":"取組ﾁｪｯｸｼｰﾄ改訂版!H195","v":1},{"$f":"取組ﾁｪｯｸｼｰﾄ改訂版!I195","v":2},{"$f":"取組ﾁｪｯｸｼｰﾄ改訂版!J195","v":1},{"$f":"取組ﾁｪｯｸｼｰﾄ改訂版!K195","v":2},{"$f":"取組ﾁｪｯｸｼｰﾄ改訂版!L195","v":1}]
[null,null,null,{"$f":"取組ﾁｪｯｸｼｰﾄ改訂版!H196","v":1},{"$f":"取組ﾁｪｯｸｼｰﾄ改訂版!I196","v":0},{"$f":"取組ﾁｪｯｸｼｰﾄ改訂版!J196","v":1},{"$f":"取組ﾁｪｯｸｼｰﾄ改訂版!K196","v":0},{"$f":"取組ﾁｪｯｸｼｰﾄ改訂版!L196","v":0}]
[null,null,null,{"$f":"取組ﾁｪｯｸｼｰﾄ改訂版!H197","v":""},{"$f":"取組ﾁｪｯｸｼｰﾄ改訂版!I197","v":0},{"$f":"取組ﾁｪｯｸｼｰﾄ改訂版!J197","v":0},{"$f":"取組ﾁｪｯｸｼｰﾄ改訂版!K197","v":0},{"$f":"取組ﾁｪｯｸｼｰﾄ改訂版!L197","v":0}]
["　3 通勤に係る環境への負荷の低減",null,null,{"$f":"取組ﾁｪｯｸｼｰﾄ改訂版!H198","v":0.5},{"$f":"取組ﾁｪｯｸｼｰﾄ改訂版!I198","v":0.5},{"$f":"取組ﾁｪｯｸｼｰﾄ改訂版!J198","v":1},{"$f":"取組ﾁｪｯｸｼｰﾄ改訂版!K198","v":1},{"$f":"取組ﾁｪｯｸｼｰﾄ改訂版!L198","v":0.5}]
[null,null,null,{"$f":"取組ﾁｪｯｸｼｰﾄ改訂版!H199","v":""},{"$f":"取組ﾁｪｯｸｼｰﾄ改訂版!I199","v":0},{"$f":"取組ﾁｪｯｸｼｰﾄ改訂版!J199","v":0},{"$f":"取組ﾁｪｯｸｼｰﾄ改訂版!K199","v":0},{"$f":"取組ﾁｪｯｸｼｰﾄ改訂版!L199","v":0}]
["　4 法規制等への対応",null,null,{"$f":"取組ﾁｪｯｸｼｰﾄ改訂版!H200","v":1},{"$f":"取組ﾁｪｯｸｼｰﾄ改訂版!I200","v":3},{"$f":"取組ﾁｪｯｸｼｰﾄ改訂版!J200","v":1},{"$f":"取組ﾁｪｯｸｼｰﾄ改訂版!K200","v":4},{"$f":"取組ﾁｪｯｸｼｰﾄ改訂版!L200","v":0.75}]
[null,null,null,{"$f":"取組ﾁｪｯｸｼｰﾄ改訂版!H201","v":1},{"$f":"取組ﾁｪｯｸｼｰﾄ改訂版!I201","v":0},{"$f":"取組ﾁｪｯｸｼｰﾄ改訂版!J201","v":1},{"$f":"取組ﾁｪｯｸｼｰﾄ改訂版!K201","v":0},{"$f":"取組ﾁｪｯｸｼｰﾄ改訂版!L201","v":0}]
[null,null,null,{"$f":"取組ﾁｪｯｸｼｰﾄ改訂版!H203","v":""},{"$f":"取組ﾁｪｯｸｼｰﾄ改訂版!I203","v":0},{"$f":"取組ﾁｪｯｸｼｰﾄ改訂版!J203","v":1},{"$f":"取組ﾁｪｯｸｼｰﾄ改訂版!K203","v":0},{"$f":"取組ﾁｪｯｸｼｰﾄ改訂版!L203","v":0}]
[null,null,null,{"$f":"取組ﾁｪｯｸｼｰﾄ改訂版!H204","v":""},{"$f":"取組ﾁｪｯｸｼｰﾄ改訂版!I204","v":0},{"$f":"取組ﾁｪｯｸｼｰﾄ改訂版!J204","v":0},{"$f":"取組ﾁｪｯｸｼｰﾄ改訂版!K204","v":0},{"$f":"取組ﾁｪｯｸｼｰﾄ改訂版!L204","v":0}]
["　5 環境対応のための組織体制整備",null,null,{"$f":"取組ﾁｪｯｸｼｰﾄ改訂版!H205","v":1},{"$f":"取組ﾁｪｯｸｼｰﾄ改訂版!I205","v":5},{"$f":"取組ﾁｪｯｸｼｰﾄ改訂版!J205","v":1},{"$f":"取組ﾁｪｯｸｼｰﾄ改訂版!K205","v":5},{"$f":"取組ﾁｪｯｸｼｰﾄ改訂版!L205","v":1}]
[null,null,null,{"$f":"取組ﾁｪｯｸｼｰﾄ改訂版!H206","v":1},{"$f":"取組ﾁｪｯｸｼｰﾄ改訂版!I206","v":0},{"$f":"取組ﾁｪｯｸｼｰﾄ改訂版!J206","v":1},{"$f":"取組ﾁｪｯｸｼｰﾄ改訂版!K206","v":0},{"$f":"取組ﾁｪｯｸｼｰﾄ改訂版!L206","v":0}]
[null,null,null,{"$f":"取組ﾁｪｯｸｼｰﾄ改訂版!H207","v":1},{"$f":"取組ﾁｪｯｸｼｰﾄ改訂版!I207","v":0},{"$f":"取組ﾁｪｯｸｼｰﾄ改訂版!J207","v":1},{"$f":"取組ﾁｪｯｸｼｰﾄ改訂版!K207","v":0},{"$f":"取組ﾁｪｯｸｼｰﾄ改訂版!L207","v":0}]
[null,null,null,{"$f":"取組ﾁｪｯｸｼｰﾄ改訂版!H208","v":1},{"$f":"取組ﾁｪｯｸｼｰﾄ改訂版!I208","v":0},{"$f":"取組ﾁｪｯｸｼｰﾄ改訂版!J208","v":1},{"$f":"取組ﾁｪｯｸｼｰﾄ改訂版!K208","v":0},{"$f":"取組ﾁｪｯｸｼｰﾄ改訂版!L208","v":0}]
[null,null,null,{"$f":"取組ﾁｪｯｸｼｰﾄ改訂版!H209","v":1},{"$f":"取組ﾁｪｯｸｼｰﾄ改訂版!I209","v":0},{"$f":"取組ﾁｪｯｸｼｰﾄ改訂版!J209","v":1},{"$f":"取組ﾁｪｯｸｼｰﾄ改訂版!K209","v":0},{"$f":"取組ﾁｪｯｸｼｰﾄ改訂版!L209","v":0}]
[null,null,null,{"$f":"取組ﾁｪｯｸｼｰﾄ改訂版!H210","v":""},{"$f":"取組ﾁｪｯｸｼｰﾄ改訂版!I210","v":0},{"$f":"取組ﾁｪｯｸｼｰﾄ改訂版!J210","v":0},{"$f":"取組ﾁｪｯｸｼｰﾄ改訂版!K210","v":0},{"$f":"取組ﾁｪｯｸｼｰﾄ改訂版!L210","v":0}]
["　6 コミュニケーション",null,null,{"$f":"取組ﾁｪｯｸｼｰﾄ改訂版!H211","v":0.5},{"$f":"取組ﾁｪｯｸｼｰﾄ改訂版!I211","v":1},{"$f":"取組ﾁｪｯｸｼｰﾄ改訂版!J211","v":1},{"$f":"取組ﾁｪｯｸｼｰﾄ改訂版!K211","v":2},{"$f":"取組ﾁｪｯｸｼｰﾄ改訂版!L211","v":0.5}]
[null,null,null,{"$f":"取組ﾁｪｯｸｼｰﾄ改訂版!H212","v":0.5},{"$f":"取組ﾁｪｯｸｼｰﾄ改訂版!I212","v":0},{"$f":"取組ﾁｪｯｸｼｰﾄ改訂版!J212","v":1},{"$f":"取組ﾁｪｯｸｼｰﾄ改訂版!K212","v":0},{"$f":"取組ﾁｪｯｸｼｰﾄ改訂版!L212","v":0}]
[null,null,null,{"$f":"取組ﾁｪｯｸｼｰﾄ改訂版!H213","v":""},{"$f":"取組ﾁｪｯｸｼｰﾄ改訂版!I213","v":0},{"$f":"取組ﾁｪｯｸｼｰﾄ改訂版!J213","v":0},{"$f":"取組ﾁｪｯｸｼｰﾄ改訂版!K213","v":0},{"$f":"取組ﾁｪｯｸｼｰﾄ改訂版!L213","v":0}]
["　7 運用管理",null,null,{"$f":"取組ﾁｪｯｸｼｰﾄ改訂版!H214","v":1},{"$f":"取組ﾁｪｯｸｼｰﾄ改訂版!I214","v":2},{"$f":"取組ﾁｪｯｸｼｰﾄ改訂版!J214","v":1},{"$f":"取組ﾁｪｯｸｼｰﾄ改訂版!K214","v":2},{"$f":"取組ﾁｪｯｸｼｰﾄ改訂版!L214","v":1}]
[null,null,null,{"$f":"取組ﾁｪｯｸｼｰﾄ改訂版!H215","v":1},{"$f":"取組ﾁｪｯｸｼｰﾄ改訂版!I215","v":0},{"$f":"取組ﾁｪｯｸｼｰﾄ改訂版!J215","v":1},{"$f":"取組ﾁｪｯｸｼｰﾄ改訂版!K215","v":0},{"$f":"取組ﾁｪｯｸｼｰﾄ改訂版!L215","v":0}]
[null,null,null,{"$f":"取組ﾁｪｯｸｼｰﾄ改訂版!H216","v":""},{"$f":"取組ﾁｪｯｸｼｰﾄ改訂版!I216","v":0},{"$f":"取組ﾁｪｯｸｼｰﾄ改訂版!J216","v":0},{"$f":"取組ﾁｪｯｸｼｰﾄ改訂版!K216","v":0},{"$f":"取組ﾁｪｯｸｼｰﾄ改訂版!L216","v":0}]
["　8 取引先への働きかけ等",null,null,{"$f":"取組ﾁｪｯｸｼｰﾄ改訂版!H217","v":0.5},{"$f":"取組ﾁｪｯｸｼｰﾄ改訂版!I217","v":2.5},{"$f":"取組ﾁｪｯｸｼｰﾄ改訂版!J217","v":1},{"$f":"取組ﾁｪｯｸｼｰﾄ改訂版!K217","v":4},{"$f":"取組ﾁｪｯｸｼｰﾄ改訂版!L217","v":0.625}]
[null,null,null,{"$f":"取組ﾁｪｯｸｼｰﾄ改訂版!H218","v":1},{"$f":"取組ﾁｪｯｸｼｰﾄ改訂版!I218","v":0},{"$f":"取組ﾁｪｯｸｼｰﾄ改訂版!J218","v":1},{"$f":"取組ﾁｪｯｸｼｰﾄ改訂版!K218","v":0},{"$f":"取組ﾁｪｯｸｼｰﾄ改訂版!L218","v":0}]
[null,null,null,{"$f":"取組ﾁｪｯｸｼｰﾄ改訂版!H219","v":0.5},{"$f":"取組ﾁｪｯｸｼｰﾄ改訂版!I219","v":0},{"$f":"取組ﾁｪｯｸｼｰﾄ改訂版!J219","v":1},{"$f":"取組ﾁｪｯｸｼｰﾄ改訂版!K219","v":0},{"$f":"取組ﾁｪｯｸｼｰﾄ改訂版!L219","v":0}]
[null,null,null,{"$f":"取組ﾁｪｯｸｼｰﾄ改訂版!H220","v":0.5},{"$f":"取組ﾁｪｯｸｼｰﾄ改訂版!I220","v":0},{"$f":"取組ﾁｪｯｸｼｰﾄ改訂版!J220","v":1},{"$f":"取組ﾁｪｯｸｼｰﾄ改訂版!K220","v":0},{"$f":"取組ﾁｪｯｸｼｰﾄ改訂版!L220","v":0}]
[null,null,null,{"$f":"取組ﾁｪｯｸｼｰﾄ改訂版!H221","v":0},{"$f":"取組ﾁｪｯｸｼｰﾄ改訂版!I221","v":21},{"$f":"取組ﾁｪｯｸｼｰﾄ改訂版!J221","v":0},{"$f":"取組ﾁｪｯｸｼｰﾄ改訂版!K221","v":25},{"$f":"取組ﾁｪｯｸｼｰﾄ改訂版!L221","v":0.84}]
[]
[]
[]
["<項目⑨ ： その他（情報提供、社会貢献、地域の環境保全ほか）>"]
["　1 事業上の環境に関する情報の提供、公表",null,null,{"$f":"取組ﾁｪｯｸｼｰﾄ改訂版!H226","v":1},{"$f":"取組ﾁｪｯｸｼｰﾄ改訂版!I226","v":3},{"$f":"取組ﾁｪｯｸｼｰﾄ改訂版!J226","v":1},{"$f":"取組ﾁｪｯｸｼｰﾄ改訂版!K226","v":3},{"$f":"取組ﾁｪｯｸｼｰﾄ改訂版!L226","v":1}]
[null,null,null,{"$f":"取組ﾁｪｯｸｼｰﾄ改訂版!H227","v":1},{"$f":"取組ﾁｪｯｸｼｰﾄ改訂版!I227","v":0},{"$f":"取組ﾁｪｯｸｼｰﾄ改訂版!J227","v":1},{"$f":"取組ﾁｪｯｸｼｰﾄ改訂版!K227","v":0},{"$f":"取組ﾁｪｯｸｼｰﾄ改訂版!L227","v":0}]
[null,null,null,{"$f":"取組ﾁｪｯｸｼｰﾄ改訂版!H228","v":1},{"$f":"取組ﾁｪｯｸｼｰﾄ改訂版!I228","v":0},{"$f":"取組ﾁｪｯｸｼｰﾄ改訂版!J228","v":1},{"$f":"取組ﾁｪｯｸｼｰﾄ改訂版!K228","v":0},{"$f":"取組ﾁｪｯｸｼｰﾄ改訂版!L228","v":0}]
[null,null,null,{"$f":"取組ﾁｪｯｸｼｰﾄ改訂版!H229","v":""},{"$f":"取組ﾁｪｯｸｼｰﾄ改訂版!I229","v":0},{"$f":"取組ﾁｪｯｸｼｰﾄ改訂版!J229","v":0},{"$f":"取組ﾁｪｯｸｼｰﾄ改訂版!K229","v":0},{"$f":"取組ﾁｪｯｸｼｰﾄ改訂版!L229","v":0}]
["　2 環境に関する取組等に関する外部の関係者の意見等の聴取",null,null,{"$f":"取組ﾁｪｯｸｼｰﾄ改訂版!H230","v":1},{"$f":"取組ﾁｪｯｸｼｰﾄ改訂版!I230","v":1},{"$f":"取組ﾁｪｯｸｼｰﾄ改訂版!J230","v":1},{"$f":"取組ﾁｪｯｸｼｰﾄ改訂版!K230","v":1},{"$f":"取組ﾁｪｯｸｼｰﾄ改訂版!L230","v":1}]
[null,null,null,{"$f":"取組ﾁｪｯｸｼｰﾄ改訂版!H231","v":""},{"$f":"取組ﾁｪｯｸｼｰﾄ改訂版!I231","v":0},{"$f":"取組ﾁｪｯｸｼｰﾄ改訂版!J231","v":0},{"$f":"取組ﾁｪｯｸｼｰﾄ改訂版!K231","v":0},{"$f":"取組ﾁｪｯｸｼｰﾄ改訂版!L231","v":0}]
["　3 環境保全に関する社内、団体等への参加・支援",null,null,{"$f":"取組ﾁｪｯｸｼｰﾄ改訂版!H232","v":1},{"$f":"取組ﾁｪｯｸｼｰﾄ改訂版!I232","v":4},{"$f":"取組ﾁｪｯｸｼｰﾄ改訂版!J232","v":1},{"$f":"取組ﾁｪｯｸｼｰﾄ改訂版!K232","v":5},{"$f":"取組ﾁｪｯｸｼｰﾄ改訂版!L232","v":0.8}]
[null,null,null,{"$f":"取組ﾁｪｯｸｼｰﾄ改訂版!H233","v":1},{"$f":"取組ﾁｪｯｸｼｰﾄ改訂版!I233","v":0},{"$f":"取組ﾁｪｯｸｼｰﾄ改訂版!J233","v":1},{"$f":"取組ﾁｪｯｸｼｰﾄ改訂版!K233","v":0},{"$f":"取組ﾁｪｯｸｼｰﾄ改訂版!L233","v":0}]
[null,null,null,{"$f":"取組ﾁｪｯｸｼｰﾄ改訂版!H234","v":1},{"$f":"取組ﾁｪｯｸｼｰﾄ改訂版!I234","v":0},{"$f":"取組ﾁｪｯｸｼｰﾄ改訂版!J234","v":1},{"$f":"取組ﾁｪｯｸｼｰﾄ改訂版!K234","v":0},{"$f":"取組ﾁｪｯｸｼｰﾄ改訂版!L234","v":0}]
[null,null,null,{"$f":"取組ﾁｪｯｸｼｰﾄ改訂版!H235","v":1},{"$f":"取組ﾁｪｯｸｼｰﾄ改訂版!I235","v":0},{"$f":"取組ﾁｪｯｸｼｰﾄ改訂版!J235","v":1},{"$f":"取組ﾁｪｯｸｼｰﾄ改訂版!K235","v":0},{"$f":"取組ﾁｪｯｸｼｰﾄ改訂版!L235","v":0}]
[null,null,null,{"$f":"取組ﾁｪｯｸｼｰﾄ改訂版!H236","v":""},{"$f":"取組ﾁｪｯｸｼｰﾄ改訂版!I236","v":0},{"$f":"取組ﾁｪｯｸｼｰﾄ改訂版!J236","v":1},{"$f":"取組ﾁｪｯｸｼｰﾄ改訂版!K236","v":0},{"$f":"取組ﾁｪｯｸｼｰﾄ改訂版!L236","v":0}]
[null,null,null,{"$f":"取組ﾁｪｯｸｼｰﾄ改訂版!H237","v":""},{"$f":"取組ﾁｪｯｸｼｰﾄ改訂版!I237","v":0},{"$f":"取組ﾁｪｯｸｼｰﾄ改訂版!J237","v":0},{"$f":"取組ﾁｪｯｸｼｰﾄ改訂版!K237","v":0},{"$f":"取組ﾁｪｯｸｼｰﾄ改訂版!L237","v":0}]
["　4 国際協力及び海外における環境配慮",null,null,{"$f":"取組ﾁｪｯｸｼｰﾄ改訂版!H238","v":""},{"$f":"取組ﾁｪｯｸｼｰﾄ改訂版!I238","v":0},{"$f":"取組ﾁｪｯｸｼｰﾄ改訂版!J238","v":0},{"$f":"取組ﾁｪｯｸｼｰﾄ改訂版!K238","v":0},{"$f":"取組ﾁｪｯｸｼｰﾄ改訂版!L238","v":{"$error":"#DIV/0!"}}]
[null,null,null,{"$f":"取組ﾁｪｯｸｼｰﾄ改訂版!H239","v":""},{"$f":"取組ﾁｪｯｸｼｰﾄ改訂版!I239","v":0},{"$f":"取組ﾁｪｯｸｼｰﾄ改訂版!J239","v":0},{"$f":"取組ﾁｪｯｸｼｰﾄ改訂版!K239","v":0},{"$f":"取組ﾁｪｯｸｼｰﾄ改訂版!L239","v":0}]
[null,null,null,{"$f":"取組ﾁｪｯｸｼｰﾄ改訂版!H240","v":""},{"$f":"取組ﾁｪｯｸｼｰﾄ改訂版!I240","v":0},{"$f":"取組ﾁｪｯｸｼｰﾄ改訂版!J240","v":0},{"$f":"取組ﾁｪｯｸｼｰﾄ改訂版!K240","v":0},{"$f":"取組ﾁｪｯｸｼｰﾄ改訂版!L240","v":0}]
[null,null,null,{"$f":"取組ﾁｪｯｸｼｰﾄ改訂版!H241","v":""},{"$f":"取組ﾁｪｯｸｼｰﾄ改訂版!I241","v":0},{"$f":"取組ﾁｪｯｸｼｰﾄ改訂版!J241","v":0},{"$f":"取組ﾁｪｯｸｼｰﾄ改訂版!K241","v":0},{"$f":"取組ﾁｪｯｸｼｰﾄ改訂版!L241","v":0}]
[null,null,null,{"$f":"取組ﾁｪｯｸｼｰﾄ改訂版!H242","v":""},{"$f":"取組ﾁｪｯｸｼｰﾄ改訂版!I242","v":0},{"$f":"取組ﾁｪｯｸｼｰﾄ改訂版!J242","v":0},{"$f":"取組ﾁｪｯｸｼｰﾄ改訂版!K242","v":0},{"$f":"取組ﾁｪｯｸｼｰﾄ改訂版!L242","v":0}]
[null,null,null,{"$f":"取組ﾁｪｯｸｼｰﾄ改訂版!H243","v":""},{"$f":"取組ﾁｪｯｸｼｰﾄ改訂版!I243","v":0},{"$f":"取組ﾁｪｯｸｼｰﾄ改訂版!J243","v":0},{"$f":"取組ﾁｪｯｸｼｰﾄ改訂版!K243","v":0},{"$f":"取組ﾁｪｯｸｼｰﾄ改訂版!L243","v":0}]
[null,null,null,{"$f":"取組ﾁｪｯｸｼｰﾄ改訂版!H244","v":""},{"$f":"取組ﾁｪｯｸｼｰﾄ改訂版!I244","v":0},{"$f":"取組ﾁｪｯｸｼｰﾄ改訂版!J244","v":0},{"$f":"取組ﾁｪｯｸｼｰﾄ改訂版!K244","v":0},{"$f":"取組ﾁｪｯｸｼｰﾄ改訂版!L244","v":0}]
[null,null,null,{"$f":"取組ﾁｪｯｸｼｰﾄ改訂版!H245","v":""},{"$f":"取組ﾁｪｯｸｼｰﾄ改訂版!I245","v":0},{"$f":"取組ﾁｪｯｸｼｰﾄ改訂版!J245","v":0},{"$f":"取組ﾁｪｯｸｼｰﾄ改訂版!K245","v":0},{"$f":"取組ﾁｪｯｸｼｰﾄ改訂版!L245","v":0}]
["　5 投資・融資における環境配慮",null,null,{"$f":"取組ﾁｪｯｸｼｰﾄ改訂版!H246","v":""},{"$f":"取組ﾁｪｯｸｼｰﾄ改訂版!I246","v":2.7},{"$f":"取組ﾁｪｯｸｼｰﾄ改訂版!J246","v":0},{"$f":"取組ﾁｪｯｸｼｰﾄ改訂版!K246","v":5},{"$f":"取組ﾁｪｯｸｼｰﾄ改訂版!L246","v":0.54}]
[null,null,null,{"$f":"取組ﾁｪｯｸｼｰﾄ改訂版!H247","v":""},{"$f":"取組ﾁｪｯｸｼｰﾄ改訂版!I247","v":0},{"$f":"取組ﾁｪｯｸｼｰﾄ改訂版!J247","v":0},{"$f":"取組ﾁｪｯｸｼｰﾄ改訂版!K247","v":0},{"$f":"取組ﾁｪｯｸｼｰﾄ改訂版!L247","v":0}]
[null,null,null,{"$f":"取組ﾁｪｯｸｼｰﾄ改訂版!H248","v":0.5},{"$f":"取組ﾁｪｯｸｼｰﾄ改訂版!I248","v":0},{"$f":"取組ﾁｪｯｸｼｰﾄ改訂版!J248","v":1},{"$f":"取組ﾁｪｯｸｼｰﾄ改訂版!K248","v":0},{"$f":"取組ﾁｪｯｸｼｰﾄ改訂版!L248","v":0}]
[null,null,null,{"$f":"取組ﾁｪｯｸｼｰﾄ改訂版!H249","v":1},{"$f":"取組ﾁｪｯｸｼｰﾄ改訂版!I249","v":0},{"$f":"取組ﾁｪｯｸｼｰﾄ改訂版!J249","v":1},{"$f":"取組ﾁｪｯｸｼｰﾄ改訂版!K249","v":0},{"$f":"取組ﾁｪｯｸｼｰﾄ改訂版!L249","v":0}]
[null,null,null,{"$f":"取組ﾁｪｯｸｼｰﾄ改訂版!H250","v":1},{"$f":"取組ﾁｪｯｸｼｰﾄ改訂版!I250","v":0},{"$f":"取組ﾁｪｯｸｼｰﾄ改訂版!J250","v":1},{"$f":"取組ﾁｪｯｸｼｰﾄ改訂版!K250","v":0},{"$f":"取組ﾁｪｯｸｼｰﾄ改訂版!L250","v":0}]
[null,null,null,{"$f":"取組ﾁｪｯｸｼｰﾄ改訂版!H251","v":0.1},{"$f":"取組ﾁｪｯｸｼｰﾄ改訂版!I251","v":0},{"$f":"取組ﾁｪｯｸｼｰﾄ改訂版!J251","v":1},{"$f":"取組ﾁｪｯｸｼｰﾄ改訂版!K251","v":0},{"$f":"取組ﾁｪｯｸｼｰﾄ改訂版!L251","v":0}]
[null,null,null,{"$f":"取組ﾁｪｯｸｼｰﾄ改訂版!H252","v":0.1},{"$f":"取組ﾁｪｯｸｼｰﾄ改訂版!I252","v":0},{"$f":"取組ﾁｪｯｸｼｰﾄ改訂版!J252","v":1},{"$f":"取組ﾁｪｯｸｼｰﾄ改訂版!K252","v":0},{"$f":"取組ﾁｪｯｸｼｰﾄ改訂版!L252","v":0}]
[null,null,null,{"$f":"取組ﾁｪｯｸｼｰﾄ改訂版!H253","v":0},{"$f":"取組ﾁｪｯｸｼｰﾄ改訂版!I253","v":10.7},{"$f":"取組ﾁｪｯｸｼｰﾄ改訂版!J253","v":0},{"$f":"取組ﾁｪｯｸｼｰﾄ改訂版!K253","v":14},{"$f":"取組ﾁｪｯｸｼｰﾄ改訂版!L253","v":0.76428571428571423}]

{"sheet":"取組ﾁｪｯｸｼｰﾄ改訂版","index":3,"n_rows":254,"n_cols":12,"rows_kept":254,"cut":false,"hidden":false,"merged":[[1,4,2,6],[43,4,44,6],[186,4,187,6],[223,4,224,6],[69,4,70,6],[95,4,96,6],[107,4,108,6],[136,4,137,6],[168,4,169,6]]}
[null,"<項目① ： 廃棄物の排出抑制、リサイクル、適正処理>",null,null,null,null,null,null,"○","△","×","－"]
[null,"（チェック欄）",null,null,"SDGs関連ゴール",null,null,"記入点","小計","対象","対象数","評価点"]
[null,"1 紙の使用量の抑制（再生紙については「グリーン購入」参照）"]
[null,"○",null,"会議用資料や事務手続書類の簡素化に取り組んでいる","１１、１２",null,null,{"$f":"IF(B4=\"○\",1,IF(B4=\"△\",0.5,IF(B4=\"×\",0.1,\"\")))","v":1},{"$f":"SUM(H4:H9)","v":6},{"$f":"COUNTIF(B4,\"○\")+COUNTIF(B4,\"△\")+COUNTIF(B4,\"×\")+COUNTBLANK(B4)","v":1},{"$f":"SUM(J4:J9)","v":6},{"$f":"I4/K4","v":1}]
[null,"○",null,"両面印刷、両面コピーを徹底している",null,null,null,{"$f":"IF(B5=\"○\",1,IF(B5=\"△\",0.5,IF(B5=\"×\",0.1,\"\")))","v":1},null,1]
[null,"○",null,"使用済み用紙の裏面の利用をしている",null,null,null,1,null,1]
[null,"○",null,"使用済み封筒の再利用をしている",null,null,null,1,null,1]
[null,"○",null,"Ａ４判化等による文書のスリム化に取り組んでいる",null,null,null,1,null,1]
[null,"○",null,"電子メディア、プロジェクタ利用等によるペーパーレス化に取り組んでいる",null,null,null,1,null,1]
[null,"2 廃棄物の発生そのものを抑える取組",null,null,null,null,null,""]
[null,"△",null,"使い捨て製品（紙コップ、紙皿、使い捨て容器入りの弁当等）の使用や購入を抑制している","１１、１２",null,null,0.5,{"$f":"SUM(H11:H17)","v":2.5},{"$f":"COUNTIF(B11,\"○\")+COUNTIF(B11,\"△\")+COUNTIF(B11,\"×\")+COUNTBLANK(B11)","v":1},{"$f":"SUM(J11:J17)","v":7},{"$f":"I11/K11","v":0.35714285714285715}]
[null,"△",null,"リターナブル容器（ビール瓶、一升瓶等）に入った製品を優先的に購入、使用している",null,null,null,0.5,null,1]
[null,"△",null,"再使用又はリサイクルしやすい製品を優先的に購入、使用している",null,null,null,0.5,null,1]
[null,"△",null,"コピー機、パソコン、プリンタ等について、リサイクルしやすい素材を使用しているものを採用している",null,null,null,0.5,null,1]
[null,"△",null,"詰め替え可能な製品の利用や備品の修理などにより、製品等の長期使用を進めている",null,null,null,0.5,null,1]
[null,null,null,"包装・梱包（段ボール、魚箱等）の削減、再使用に取り組んでいる",null,null,null,"",null,1]
[null,null,null,"業務プロセスにおいて廃棄物及び不良材等の発生抑制に取り組んでいる",null,null,null,"",null,1]
[null,"3 オフィス等におけるリサイクルの促進",null,null,null,null,null,""]
[null,"×",null,"紙、金属缶、ガラスびん、プラスチック、電池等について、分別回収ボックスの適正配置などにより、ごみの分別を徹底している","１１、１２",null,null,0.1,{"$f":"SUM(H19:H25)","v":0.5},{"$f":"COUNTIF(B19,\"○\")+COUNTIF(B19,\"△\")+COUNTIF(B19,\"×\")+COUNTBLANK(B19)","v":1},{"$f":"SUM(J19:J25)","v":6},{"$f":"I19/K19","v":8.3333333333333329E-2}]
[null,"×",null,"回収した資源ごみがリサイクルされるよう確認している",null,null,null,0.1,null,1]
[null,"×",null,"秘密文書においても溶解処理等原料リサイクルに配慮している。",null,null,null,0.1,null,1]
[null,"×",null,"コピー機、プリンターのトナーカートリッジの回収とリサイクルを進めている",null,null,null,0.1,null,1]
[null,"×",null,"食べ残し、食品残滓等の有機物質については可能な限りコンポスト化（堆肥化）し、土壌に還元、利用している",null,null,null,0.1,null,1]
[null,null,null,"廃食用油のせっけん等への再利用を行っている",null,null,null,"",null,1]
[null,"―",null,"包装、梱包等のリサイクルに取り組んでいる",null,null,null,"",null,0]
[null,"4 出荷・販売等に際しての梱包等に関する配慮",null,null,null,null,null,""]
[null,"△",null,"簡易包装の推進、多重包装の見直し、量り売り、ばら売りの推進等により、包装紙、容器、買い物袋、食品トレイ、ラップ等の削減に取り組んでいる","１１、１２",null,null,0.5,{"$f":"SUM(H27:H31)","v":0.5},{"$f":"COUNTIF(B27,\"○\")+COUNTIF(B27,\"△\")+COUNTIF(B27,\"×\")+COUNTBLANK(B27)","v":1},{"$f":"SUM(J27:J31)","v":5},{"$f":"I27/K27","v":0.1}]
[null,null,null,"環境負荷の少ない梱包材への代替に取り組んでいる",null,null,null,"",null,{"$f":"COUNTIF(B28,\"○\")+COUNTIF(B28,\"△\")+COUNTIF(B28,\"×\")+COUNTBLANK(B28)","v":1}]
[null,null,null,"詰め替え式の容器・製品の販売促進に取り組んでいる",null,null,null,"",null,{"$f":"COUNTIF(B29,\"○\")+COUNTIF(B29,\"△\")+COUNTIF(B29,\"×\")+COUNTBLANK(B29)","v":1}]
[null,null,null,"リターナブル容器入りの製品の販売促進に取り組んでいる",null,null,null,"",null,{"$f":"COUNTIF(B30,\"○\")+COUNTIF(B30,\"△\")+COUNTIF(B30,\"×\")+COUNTBLANK(B30)","v":1}]
[null,null,null,"紙パック、食品トレイ、アルミ缶、スチール缶、ペットボトル等の店頭回収・リサイクルに取り組んでいる",null,null,null,"",null,{"$f":"COUNTIF(B31,\"○\")+COUNTIF(B31,\"△\")+COUNTIF(B31,\"×\")+COUNTBLANK(B31)","v":1}]
[null,"5 生産工程における取組",null,null,null,null,null,""]
[null,"△",null,"工程から発生する金属くず、紙くず、廃液などの回収・再利用のための設備を設置し、活用している","１１、１２",null,null,0.5,{"$f":"SUM(H33:H33)","v":0.5},{"$f":"COUNTIF(B33,\"○\")+COUNTIF(B33,\"△\")+COUNTIF(B33,\"×\")+COUNTBLANK(B33)","v":1},{"$f":"SUM(J33:J33)","v":1},{"$f":"I33/K33","v":0.5}]
[null,"6 産業廃棄物等の適正処理",null,null,null,null,null,""]
[null,null,null,"産業廃棄物管理票（マニフェスト）をもとに廃棄物の適正な処理を確認している","１１、１２",null,null,"",{"$f":"SUM(H35:H40)","v":0},{"$f":"COUNTIF(B35,\"○\")+COUNTIF(B35,\"△\")+COUNTIF(B35,\"×\")+COUNTBLANK(B35)","v":1},{"$f":"SUM(J35:J40)","v":6},{"$f":"I35/K35","v":0}]
[null,null,null,"廃棄物の最終処分先を定期的に、直接、チェックしている",null,null,null,"",null,1]
[null,null,null,"廃棄物焼却の際、焼却に適さないものが混入しないよう徹底するとともに、ばい煙の処理、近隣環境への配慮等を行っている",null,null,null,"",null,1]
[null,null,null,"メタン発生防止のため、生ごみ等の分別・リサイクルや適正な焼却処分を極力行うことにより、有機物の埋立処分を抑制している",null,null,null,"",null,1]
[null,null,null,"有害廃棄物、医療廃棄物の管理（リストの作成、マニフェスト、適正処理のチェック）を徹底している",null,null,null,"",null,1]
[null,null,null,"廃棄物が適切に処分できるよう、廃棄物の性状に関する情報（WDS等を利用）を処分業者に伝えている。",null,null,null,"",null,1]
[null,null,"チェック欄数：３２",null,null,null,null,"",{"$f":"SUM(I4:I40)","v":10},null,{"$f":"SUM(K4:K40)","v":31},{"$f":"I41/K41","v":0.32258064516129031}]
[null,null,null,{"$f":"IF( (COUNTIF(項目②チェック欄,\"○\")+COUNTIF(項目②チェック欄,\"△\")+COUNTIF(項目②チェック欄,\"×\")+COUNTIF(項目②チェック欄,\"―\"))=0,\"達成率　　　　%\",IF( (COUNTIF(項目②チェック欄,\"○\")+COUNTIF(項目②チェック欄,\"△\")+COUNTIF(項目②チェック欄,\"×\"))=0,\"達成率　　―　%\",(COUNTIF(項目②チェック欄,\"○\")+COUNTIF(項目②チェック欄,\"△\")*0.5)/(COUNTIF(項目②チェック欄,\"○\")+COUNTIF(項目②チェック欄,\"△\")+COUNTIF(項目②チェック欄,\"×\")+COUNTBLANK(項目②チェック欄))*100))","v":30.64516129032258},null,null,null,""]
[null,"<項目② ： 大気汚染、水質汚濁等の防止>",null,null,null,null,null,"",{"$f":"COUNTBLANK(項目②チェック欄)","v":13}]
[null,"（チェック欄）",null,null,"SDGs関連ゴール",null,null,""]
[null,"1 大気汚染物質排出量の削減",null,null,null,null,null,""]
[null,null,null,"大気汚染の少ないプロセス・機器（低ＮＯｘ燃焼・粉塵発生機器など）を採用している","３、１１、１３",null,null,"",{"$f":"SUM(H46:H52)","v":0},{"$f":"COUNTIF(B46,\"○\")+COUNTIF(B46,\"△\")+COUNTIF(B46,\"×\")+COUNTBLANK(B46)","v":1},{"$f":"SUM(J46:J52)","v":7},{"$f":"I46/K46","v":0}]
[null,null,null,"日常の管理における大気汚染防止への配慮（燃焼管理等）を行っている",null,null,null,"",null,1]
[null,null,null,"大気汚染について、法令による基準より厳しい自主管理基準を設定し、その達成に努めている",null,null,null,"",null,1]
[null,null,null,"ばい煙等の測定・監視やばい煙処理設備の点検を定期的に行っている",null,null,null,"",null,1]
[null,null,null,"事故や災害の際の汚染防止対策のための準備や訓練を行っている",null,null,null,"",null,1]
[null,null,null,"アイドリングストップ等運転方法の配慮（急発進・急加速や空ぶかしの排除、駐停車中のエンジンの停止等）を行っている",null,null,null,"",null,1]
[null,null,null,"ハイブリッド車や低燃費車、低排出ガス認定車、電気自動車、圧縮天然ガス自動車等の低公害車の利用に取り組んでいる",null,null,null,"",null,1]
[null,"2 水質汚濁物質排出量の削減",null,null,null,null,null,""]
[null,null,null,"水質汚濁の少ない工事・プロセス・機器（廃液の回収・再利用など）を採用している","３、６、１１、１４",null,null,"",{"$f":"SUM(H54:H62)","v":0},{"$f":"COUNTIF(B54,\"○\")+COUNTIF(B54,\"△\")+COUNTIF(B54,\"×\")+COUNTBLANK(B54)","v":1},{"$f":"SUM(J54:J62)","v":9},{"$f":"I54/K54","v":0}]
[null,null,null,"排水処理装置を適切に設置している",null,null,null,"",null,1]
[null,null,null,"排水が閉鎖性水域（湖、内湾など）に流入する場合は、窒素・燐の除去対策を講じている",null,null,null,"",null,1]
[null,null,null,"排水処理にクローズド・システムを採用している",null,null,null,"",null,1]
[null,null,null,"排水に有害物質や有機汚濁物質（生ごみ等）が混入しないようにしている",null,null,null,"",null,1]
[null,null,null,"排水に含まれる有害物質が地下浸透しないよう配慮している",null,null,null,"",null,1]
[null,null,null,"水質汚濁等について、法令による基準より厳しい自主管理基準を設定し、その達成に努めている",null,null,null,"",null,1]
[null,null,null,"排水等の測定・監視や排水処理設備の点検を定期的に行っている",null,null,null,"",null,1]
[null,null,null,"事故や災害の際の汚染防止対策のための準備や訓練を行っている",null,null,null,"",null,1]
[null,"3 悪臭、騒音、振動等の防止",null,null,null,null,null,""]
[null,null,null,"悪臭防止のため排出口の位置等の配慮を行っている","３、１１",null,null,"",{"$f":"SUM(H64:H66)","v":0},{"$f":"COUNTIF(B64,\"○\")+COUNTIF(B64,\"△\")+COUNTIF(B64,\"×\")+COUNTBLANK(B64)","v":1},{"$f":"SUM(J64:J66)","v":3},{"$f":"I64/K64","v":0}]
[null,null,null,"低騒音型機器の使用、防音・防振設備の設置・管理等により騒音・振動を防止するとともに、日常的な測定・監視を実施している",null,null,null,"",null,{"$f":"COUNTIF(B65,\"○\")+COUNTIF(B65,\"△\")+COUNTIF(B65,\"×\")+COUNTBLANK(B65)","v":1}]
[null,null,null,"夜間照明による光害を防止するための措置を講じている",null,null,null,"",null,{"$f":"COUNTIF(B66,\"○\")+COUNTIF(B66,\"△\")+COUNTIF(B66,\"×\")+COUNTBLANK(B66)","v":1}]
[null,null,"チェック欄数：１９",null,null,null,null,null,{"$f":"SUM(I46:I66)","v":0},null,{"$f":"SUM(K46:K66)","v":19},{"$f":"I67/K67","v":0}]
[null,null,null,{"$f":"IF( (COUNTIF(項目③チェック欄,\"○\")+COUNTIF(項目③チェック欄,\"△\")+COUNTIF(項目③チェック欄,\"×\")+COUNTIF(項目③チェック欄,\"―\"))=0,\"達成率　　　　%\",IF( (COUNTIF(項目③チェック欄,\"○\")+COUNTIF(項目③チェック欄,\"△\")+COUNTIF(項目③チェック欄,\"×\"))=0,\"達成率　　―　%\",(COUNTIF(項目③チェック欄,\"○\")+COUNTIF(項目③チェック欄,\"△\")*0.5)/(COUNTIF(項目③チェック欄,\"○\")+COUNTIF(項目③チェック欄,\"△\")+COUNTIF(項目③チェック欄,\"×\")+COUNTIF(項目③チェック欄,\"\"))*100))","v":"達成率　　　　%"}]
[null,"<項目③ ： 化学物質対策>"]
[null,"（チェック欄）",null,null,"SDGs関連ゴール"]
[null,"1 化学物質の管理の徹底"]
[null,null,null,"有害性のおそれのある化学物質について、その種類、使用量、保管量、使用方法、使用場所、保管場所等を経時的に把握し、記録管理している","３、１１、１２、１５",null,null,{"$f":"IF(B72=\"○\",1,IF(B72=\"△\",0.5,IF(B72=\"×\",0.1,\"\")))","v":""},{"$f":"SUM(H72:H83)","v":0},{"$f":"COUNTIF(B72,\"○\")+COUNTIF(B72,\"△\")+COUNTIF(B72,\"×\")+COUNTBLANK(B72)","v":1},{"$f":"SUM(J72:J83)","v":12},{"$f":"I72/K72","v":0}]
[null,null,null,"有害性のおそれのある化学物質の環境への排出量の計測、推定等を行っている",null,null,null,"",null,1]
[null,null,null,"有害性のおそれのある化学物質の製品への表示を徹底している",null,null,null,"",null,1]
[null,null,null,"作業従事者に対して取り扱う化学物質に関する危害情報(ＧＨＳマークの理解等）を周知させている。",null,null,null,"",null,1]
[null,null,null,"化学物質の安全性に関する情報伝達のため（Ｍ）ＳＤＳ（化学物質安全性データシート）を使用している",null,null,null,"",null,1]
[null,null,null,"有害性のおそれのある物質のタンク、パイプ類は浸透、漏洩、拡散などを防止できる構造となっている",null,null,null,"",null,1]
[null,null,null,"有害性のおそれのある物質のタンク、パイプ等の保守・点検を定期的に行っている",null,null,null,"",null,1]
[null,null,null,"使用した有害物質を回収するシステムができている",null,null,null,"",null,1]
[null,null,null,"有害性のおそれのある物質の輸送、保管等に当たり、事故等の汚染防止のための準備や訓練を行っている",null,null,null,"",null,1]
[null,null,null,"有害性のおそれのある物質の削減に取り組んでいる",null,null,null,"",null,1]
[null,null,null,"燃料油や溶剤等の揮発の防止に取り組んでいる",null,null,null,"",null,1]
[null,null,null,"施設の消毒、除草や害虫駆除に当たり、薬剤使用の削減、合理化等に取り組んでいる",null,null,null,"",null,1]
[null,"2 温室効果ガス特定フロン（CFC,CHFC等)、代替フロン（ＨＦＣ、ＰＦＣ、ＳＦ６ 等）の排出抑制、削減、適正処理",null,null,null,null,null,""]
[null,"○",null,"オゾン層を破壊する特定フロン等の削減、全廃（生産用フロン、冷却設備・空調設備の冷媒用フロン（Ｒ２２使用機器）の削減、ハロン消火設備等の代替）を行っている","１３",null,null,1,{"$f":"SUM(H85:H93)","v":8},{"$f":"COUNTIF(B85,\"○\")+COUNTIF(B85,\"△\")+COUNTIF(B85,\"×\")+COUNTBLANK(B85)","v":1},{"$f":"SUM(J85:J93)","v":9},{"$f":"I85/K85","v":0.88888888888888884}]
[null,"○",null,"フロンの削減、回収・適正処理に取り組んでいる",null,null,null,1,null,1]
[null,"○",null,"特定フロン、代替フロン類をどれだけ使用し、漏出しているか把握している",null,null,null,1,null,1]
[null,"○",null,"製造工程において、代替フロン類（ＨＦＣ、ＰＦＣ、ＳＦ６ 等）の排出抑制、回収処理に取り組んでいる",null,null,null,1,null,1]
[null,"○",null,"製造工程において、可能な範囲で代替フロン類（ＨＦＣ、ＰＦＣ、ＳＦ６ 等）をその他の物質に代替している",null,null,null,1,null,1]
[null,"○",null,"ＨＦＣ、ＰＦＣ、ＳＦ６ 等を使用しない製造工程に変換している",null,null,null,1,null,1]
[null,"○",null,"製品購入の際には、できるだけＨＦＣ、ＰＦＣ、ＳＦ６ 等を使用していない製品（例・ＣＯ₂等冷媒）を選ぶように配慮している",null,null,null,1,null,1]
[null,"○",null,"ＨＦＣ、ＰＦＣ、ＳＦ６ 等を使用している製品を廃棄する際の回収に取り組んでいる",null,null,null,1,null,1]
[null,null,null,"フロン使用機器について不調時の修理、漏洩防止、法令に定められた定期点検等がおこなわれ、履歴を記録・保存している",null,null,null,"",null,1]
[null,null,"チェック欄数：２１",null,null,null,null,null,{"$f":"SUM(I72:I93)","v":8},null,{"$f":"SUM(K72:K93)","v":21},{"$f":"I94/K94","v":0.38095238095238093}]
[null,null,null,{"$f":"IF((COUNTIF(項目⑤チェック欄,\"○\")+COUNTIF(項目⑤チェック欄,\"△\")+COUNTIF(項目⑤チェック欄,\"×\")+COUNTIF(項目⑤チェック欄,\"―\"))=0,\"達成率　　　　%\",IF((COUNTIF(項目⑤チェック欄,\"○\")+COUNTIF(項目⑤チェック欄,\"△\")+COUNTIF(項目⑤チェック欄,\"×\"))=0,\"達成率　　―　%\",(COUNTIF(項目⑤チェック欄,\"○\")+COUNTIF(項目⑤チェック欄,\"△\")*0.5)/(COUNTIF(項目⑤チェック欄,\"○\")+COUNTIF(項目⑤チェック欄,\"△\")+COUNTIF(項目⑤チェック欄,\"×\")+COUNTIF(項目⑤チェック欄,\"\"))*100))","v":38.095238095238095}]
[null," <項目④ ： 節水・水の効率利用>",null,null,"SDGs関連ゴール"]
[null,"（チェック欄）"]
[null,"△",null,"雨水の貯留タンクや雨水利用施設の設置等により、雨水利用を行っている","６",null,null,0.5,{"$f":"SUM(H98:H104)","v":3.5},{"$f":"COUNTIF(B98,\"○\")+COUNTIF(B98,\"△\")+COUNTIF(B98,\"×\")+COUNTBLANK(B98)","v":1},{"$f":"SUM(J98:J104)","v":7},{"$f":"I98/K98","v":0.5}]
[null,"△",null,"雨水を地下浸透させる設備（浸透升、透水性舗装等）の導入や工夫等、雨水流出抑制行っている",null,null,null,0.5,null,1]
[null,"△",null,"汚排水の再利用（中水利用）を行っている",null,null,null,0.5,null,1]
[null,"△",null,"節水型の家電製品、水洗トイレ等を積極的に導入している",null,null,null,0.5,null,1]
[null,"△",null,"蛇口に節水こま（適量の水を流す機能を持つこま）を設置している",null,null,null,0.5,null,1]
[null,"△",null,"地盤沈下が問題となっている地域にあっては、地下水汲み上げの削減を行っている",null,null,null,0.5,null,1]
[null,"△",null,"水道配管からの漏洩を定期的に点検している",null,null,null,0.5,null,1]
[null,null,"チェック欄数：７",null,null,null,null,null,{"$f":"SUM(I98:I104)","v":3.5},null,{"$f":"SUM(K98:K104)","v":7},{"$f":"I105/K105","v":0.5}]
[null,null,null,{"$f":"IF( (COUNTIF(項目⑥チェック欄,\"○\")+COUNTIF(項目⑥チェック欄,\"△\")+COUNTIF(項目⑥チェック欄,\"×\")+COUNTIF(項目⑥チェック欄,\"―\"))=0,\"達成率　　　　%\",IF( (COUNTIF(項目⑥チェック欄,\"○\")+COUNTIF(項目⑥チェック欄,\"△\")+COUNTIF(項目⑥チェック欄,\"×\"))=0,\"達成率　　―　%\",(COUNTIF(項目⑥チェック欄,\"○\")+COUNTIF(項目⑥チェック欄,\"△\")*0.5)/(COUNTIF(項目⑥チェック欄,\"○\")+COUNTIF(項目⑥チェック欄,\"△\")+COUNTIF(項目⑥チェック欄,\"×\")+COUNTIF(項目⑥チェック欄,\"\"))*100))","v":50}]
[null,"<項目⑤ ： 製品の開発・設計等における環境配慮>"]
[null,"（チェック欄）",null,null,"SDGs関連ゴール"]
[null,"1 製品（プライベートブランド商品を含む）設計に当たっての環境配慮"]
[null,"○",null,"製品の小型化・軽量化等により、同一機能に対して資源使用量のミニマム化を指向している","９、１１、１２",null,null,1,{"$f":"SUM(H110:H117)","v":8},{"$f":"COUNTIF(B110,\"○\")+COUNTIF(B110,\"△\")+COUNTIF(B110,\"×\")+COUNTBLANK(B110)","v":1},{"$f":"SUM(J110:J117)","v":8},{"$f":"I110/K110","v":1}]
[null,"○",null,"製品の長寿命化を指向している",null,null,null,1,null,1]
[null,"○",null,"製品の使用過程でのエネルギー削減を指向している",null,null,null,1,null,1]
[null,"○",null,"再生資源の積極的利用に取り組んでいる",null,null,null,1,null,1]
[null,"○",null,"廃棄物の発生抑制のため、モデルチェンジの適正化に取り組んでいる",null,null,null,1,null,1]
[null,"○",null,"リサイクルしやすいよう、素材の種類や製品の部品点数の削減や、ネジの数を減らすことなどによる解体しやすい構造を指向している",null,null,null,1,null,1]
[null,"○",null,"製品の包装は可能な限り簡素化している",null,null,null,1,null,1]
[null,"○",null,"自社独自の環境保全型商品等の開発に積極的に取り組んでいる",null,null,null,1,null,1]
[null,"2 製品の出荷、販売後における環境負荷の削減",null,null,null,null,null,""]
[null,"×",null,"フロン類の回収に取り組んでいる","１２、１３",null,null,0.1,{"$f":"SUM(H119:H122)","v":0.30000000000000004},{"$f":"COUNTIF(B119,\"○\")+COUNTIF(B119,\"△\")+COUNTIF(B119,\"×\")+COUNTBLANK(B119)","v":1},{"$f":"SUM(J119:J122)","v":3},{"$f":"I119/K119","v":0.10000000000000002}]
[null,"×",null,"フロン類の漏洩防止のための留意点など、製品に関する環境への負荷を低減するための消費者への情報提供を行っている",null,null,null,0.1,null,{"$f":"COUNTIF(B120,\"○\")+COUNTIF(B120,\"△\")+COUNTIF(B120,\"×\")+COUNTBLANK(B120)","v":1}]
[null,"×",null,"修理部品の長期的な確保に自主的に取り組んでいる",null,null,null,0.1,null,{"$f":"COUNTIF(B121,\"○\")+COUNTIF(B121,\"△\")+COUNTIF(B121,\"×\")+COUNTBLANK(B121)","v":1}]
[null,"―",null,"使用後の製品、容器包装等回収、リサイクルに取り組んでいる",null,null,null,"",null,{"$f":"COUNTIF(B122,\"○\")+COUNTIF(B122,\"△\")+COUNTIF(B122,\"×\")+COUNTBLANK(B122)","v":0}]
[null,"3 製品（プライベートブランド商品を含む）に係る製品アセスメント等",null,null,null,null,null,""]
[null,"△",null,"自社製品及び社外から購入する部品等について、想定される環境負荷のチェックリストを作成している","１２",null,null,0.5,{"$f":"SUM(H124:H128)","v":2.5},{"$f":"COUNTIF(B124,\"○\")+COUNTIF(B124,\"△\")+COUNTIF(B124,\"×\")+COUNTBLANK(B124)","v":1},{"$f":"SUM(J124:J128)","v":5},{"$f":"I124/K124","v":0.5}]
[null,"△",null,"新製品開発、モデルチェンジ等にあたり、環境負荷の測定・記録や製品アセスメント（製品が廃棄物になった場合の適正処理困難性の評価、製品の生産から消費、廃棄に至る各段階での環境負荷の評価（ライフサイクルアセスメント）等を含む）を実施している",null,null,null,0.5,null,{"$f":"COUNTIF(B125,\"○\")+COUNTIF(B125,\"△\")+COUNTIF(B125,\"×\")+COUNTBLANK(B125)","v":1}]
[null,"△",null,"製品の使用時や廃棄時の環境負荷の量をカタログ等に表示している",null,null,null,0.5,null,{"$f":"COUNTIF(B126,\"○\")+COUNTIF(B126,\"△\")+COUNTIF(B126,\"×\")+COUNTBLANK(B126)","v":1}]
[null,"△",null,"既存製品についても、計画的に製品アセスメント等を実施している",null,null,null,0.5,null,{"$f":"COUNTIF(B127,\"○\")+COUNTIF(B127,\"△\")+COUNTIF(B127,\"×\")+COUNTBLANK(B127)","v":1}]
[null,"△",null,"外部から製品の環境負荷に関するデータの提供の依頼があった場合、協力している",null,null,null,0.5,null,{"$f":"COUNTIF(B128,\"○\")+COUNTIF(B128,\"△\")+COUNTIF(B128,\"×\")+COUNTBLANK(B128)","v":1}]
[null,"4 環境保全型商品等の販売及び消費者に対する情報提供",null,null,null,null,null,""]
[null,"○",null,"再生資源を使用した商品、再生可能な商品、繰り返し使える商品、省資源・省エネルギー型の商品、容器包装を簡素化した商品、エコマーク製品等を重点的に販売している","３",null,null,1,{"$f":"SUM(H130:H133)","v":1},{"$f":"COUNTIF(B130,\"○\")+COUNTIF(B130,\"△\")+COUNTIF(B130,\"×\")+COUNTBLANK(B130)","v":1},{"$f":"SUM(J130:J133)","v":1},{"$f":"I130/K130","v":1}]
[null,"―",null,"上記商品の販売目標を定め、販売促進に積極的に取り組んでいる",null,null,null,"",null,{"$f":"COUNTIF(B131,\"○\")+COUNTIF(B131,\"△\")+COUNTIF(B131,\"×\")+COUNTBLANK(B131)","v":0}]
[null,"―",null,"販売の際に環境保全型製品の表示、製品アセスメントの結果の表示等を行っている",null,null,null,"",null,{"$f":"COUNTIF(B132,\"○\")+COUNTIF(B132,\"△\")+COUNTIF(B132,\"×\")+COUNTBLANK(B132)","v":0}]
[null,"―",null,"消費者等に環境保全型商品に関する情報を積極的に提供している",null,null,null,{"$f":"IF(B133=\"○\",1,IF(B133=\"△\",0.5,IF(B133=\"×\",0.1,\"\")))","v":""},null,{"$f":"COUNTIF(B133,\"○\")+COUNTIF(B133,\"△\")+COUNTIF(B133,\"×\")+COUNTBLANK(B133)","v":0}]
[null,null,"チェック欄数：２１",null,null,null,null,null,{"$f":"SUM(I110:I133)","v":11.8},null,{"$f":"SUM(K110:K133)","v":17},{"$f":"I134/K134","v":0.69411764705882362}]
[null,null,null,{"$f":"IF( (COUNTIF(項目⑦チェック欄,\"○\")+COUNTIF(項目⑦チェック欄,\"△\")+COUNTIF(項目⑦チェック欄,\"×\")+COUNTIF(項目⑦チェック欄,\"―\"))=0,\"達成率　　　　%\",IF( (COUNTIF(項目⑦チェック欄,\"○\")+COUNTIF(項目⑦チェック欄,\"△\")+COUNTIF(項目⑦チェック欄,\"×\"))=0,\"達成率　　―　%\",(COUNTIF(項目⑦チェック欄,\"○\")+COUNTIF(項目⑦チェック欄,\"△\")*0.5)/(COUNTIF(項目⑦チェック欄,\"○\")+COUNTIF(項目⑦チェック欄,\"△\")+COUNTIF(項目⑦チェック欄,\"×\")+COUNTIF(項目⑦チェック欄,\"\"))*100))","v":67.64705882352942}]
[null,"<項目⑥ ： 建築物の建築・解体、開発事業に当たっての環境配慮>"]
[null,"（チェック欄）",null,null,"SDGs関連ゴール"]
[null,"1 新規事業を始める際の環境影響評価・環境配慮"]
[null,"○",null,"新規事業を始める際、企画・計画・設計段階、建設段階、運用段階、改修・解体段階のそれぞれの段階における環境影響を評価し、これに基づいて環境保全のため適切な対策を行っている","１１、１２",null,null,1,{"$f":"SUM(H139:H141)","v":3},{"$f":"COUNTIF(B139,\"○\")+COUNTIF(B139,\"△\")+COUNTIF(B139,\"×\")+COUNTBLANK(B139)","v":1},{"$f":"SUM(J139:J141)","v":3},{"$f":"I139/K139","v":1}]
[null,"○",null,"事業実施前に行われた環境影響評価の結果が妥当であったかどうかのフォローアップを、事業中及び事業後に行っている",null,null,null,1,null,{"$f":"COUNTIF(B140,\"○\")+COUNTIF(B140,\"△\")+COUNTIF(B140,\"×\")+COUNTBLANK(B140)","v":1}]
[null,"○",null,"発注者及び設計者に対し、省エネルギー、建設副産物のリサイクル、合板型枠の使用合理化等、環境保全の提案をしている",null,null,null,1,null,{"$f":"COUNTIF(B141,\"○\")+COUNTIF(B141,\"△\")+COUNTIF(B141,\"×\")+COUNTBLANK(B141)","v":1}]
[null,"2 環境整備と周辺の自然環境の保全",null,null,null,null,null,""]
[null,"○",null,"敷地内、壁面、屋上等の緑化を行っている（大気浄化、都市気象の緩和にも資する）","１１、１５",null,null,1,{"$f":"SUM(H143:H145)","v":3},{"$f":"COUNTIF(B143,\"○\")+COUNTIF(B143,\"△\")+COUNTIF(B143,\"×\")+COUNTBLANK(B143)","v":1},{"$f":"SUM(J143:J145)","v":3},{"$f":"I143/K143","v":1}]
[null,"○",null,"地域の自然環境との調和に配慮し、生態系や景観の保全に取り組んでいる",null,null,null,1,null,{"$f":"COUNTIF(B144,\"○\")+COUNTIF(B144,\"△\")+COUNTIF(B144,\"×\")+COUNTBLANK(B144)","v":1}]
[null,"○",null,"環境を改変する代替措置として環境修復（ミティゲーション）を計画・設計に盛り込んでいる",null,null,null,1,null,{"$f":"COUNTIF(B145,\"○\")+COUNTIF(B145,\"△\")+COUNTIF(B145,\"×\")+COUNTBLANK(B145)","v":1}]
[null,"3 環境負荷の少ない建築材の使用等",null,null,null,null,null,""]
[null,"△",null,"建築物の建築・改築に当たり、環境負荷の少ない建築材の使用、建築材の使用合理化に取り組んでいる（合板型等の木材の使用合理化、高炉セメント、再生素材の積極的使用等）","１１、１２",null,null,0.5,{"$f":"SUM(H147:H147)","v":0.5},{"$f":"COUNTIF(B147,\"○\")+COUNTIF(B147,\"△\")+COUNTIF(B147,\"×\")+COUNTBLANK(B147)","v":1},{"$f":"SUM(J147:J147)","v":1},{"$f":"I147/K147","v":0.5}]
[null,"4 環境に配慮した工法",null,null,null,null,null,""]
[null,"○",null,"低騒音型の建築機械の使用等により工事騒音・振動の防止に取り組んでいる","３、１１、１５",null,null,1,{"$f":"SUM(H149:H156)","v":8},{"$f":"COUNTIF(B149,\"○\")+COUNTIF(B149,\"△\")+COUNTIF(B149,\"×\")+COUNTBLANK(B149)","v":1},{"$f":"SUM(J149:J156)","v":8},{"$f":"I149/K149","v":1}]
[null,"○",null,"アスベストや粉じんの飛散防止等に取り組んでいる",null,null,null,1,null,1]
[null,"○",null,"工事濁水による水質汚濁の防止等に取り組んでいる",null,null,null,1,null,1]
[null,"○",null,"出入り車輌の排ガス・騒音・振動の防止に取り組んでいる",null,null,null,1,null,1]
[null,"○",null,"掘削工事、盛土工事における地盤の変化の防止に取り組んでいる",null,null,null,1,null,1]
[null,"○",null,"工事中の樹木の保護を行っている",null,null,null,1,null,1]
[null,"○",null,"木材、コンクリート塊、汚泥、残土等の建設副産物の削減、再利用、分別、リサイクルに取り組んでいる",null,null,null,1,null,1]
[null,"○",null,"フロン、アスベストその他の有害物質の適正処理、代替材の使用等を行っている",null,null,null,1,null,1]
[null,"5 建築物、構築物の環境への影響を予防するための方策",null,null,null,null,null,""]
[null,"○",null,"竣工建築の環境面に配慮した管理、メンテナンス等を行っている","９、１１",null,null,1,{"$f":"SUM(H158:H160)","v":3},{"$f":"COUNTIF(B158,\"○\")+COUNTIF(B158,\"△\")+COUNTIF(B158,\"×\")+COUNTBLANK(B158)","v":1},{"$f":"SUM(J158:J160)","v":3},{"$f":"I158/K158","v":1}]
[null,"○",null,"建造物の老朽化や運用の診断を行い、改善や環境保全設備の見直し等の提案を行っている",null,null,null,1,null,{"$f":"COUNTIF(B159,\"○\")+COUNTIF(B159,\"△\")+COUNTIF(B159,\"×\")+COUNTBLANK(B159)","v":1}]
[null,"○",null,"建築物の耐久性の向上に取り組んでいる",null,null,null,1,null,{"$f":"COUNTIF(B160,\"○\")+COUNTIF(B160,\"△\")+COUNTIF(B160,\"×\")+COUNTBLANK(B160)","v":1}]
[null,"6 施設閉鎖、建築物の解体等の際の環境配慮",null,null,null,null,null,""]
[null,"×",null,"施設の閉鎖時に、環境影響評価を行っている","１１",null,null,0.1,{"$f":"SUM(H162:H164)","v":1.2000000000000002},{"$f":"COUNTIF(B162,\"○\")+COUNTIF(B162,\"△\")+COUNTIF(B162,\"×\")+COUNTBLANK(B162)","v":1},{"$f":"SUM(J162:J164)","v":3},{"$f":"I162/K162","v":0.40000000000000008}]
[null,"○",null,"建築物の解体に当たっては、吹きつけアスベストを事前に除去している",null,null,null,1,null,{"$f":"COUNTIF(B163,\"○\")+COUNTIF(B163,\"△\")+COUNTIF(B163,\"×\")+COUNTBLANK(B163)","v":1}]
[null,"×",null,"現状から用途転換をする等の計画プロジェクトの前に環境影響評価を行っている",null,null,null,0.1,null,{"$f":"COUNTIF(B164,\"○\")+COUNTIF(B164,\"△\")+COUNTIF(B164,\"×\")+COUNTBLANK(B164)","v":1}]
[null,null,"チェック欄数：２１",null,null,null,null,null,{"$f":"SUM(I139:I164)","v":18.7},null,{"$f":"SUM(K139:K164)","v":21},{"$f":"I165/K165","v":0.89047619047619042}]
[null,null,null,{"$f":"IF( (COUNTIF(項目⑧チェック欄,\"○\")+COUNTIF(項目⑧チェック欄,\"△\")+COUNTIF(項目⑧チェック欄,\"×\")+COUNTIF(項目⑧チェック欄,\"―\"))=0,\"達成率　　　　%\",IF( (COUNTIF(項目⑧チェック欄,\"○\")+COUNTIF(項目⑧チェック欄,\"△\")+COUNTIF(項目⑧チェック欄,\"×\"))=0,\"達成率　　―　%\",(COUNTIF(項目⑧チェック欄,\"○\")+COUNTIF(項目⑧チェック欄,\"△\")*0.5)/(COUNTIF(項目⑧チェック欄,\"○\")+COUNTIF(項目⑧チェック欄,\"△\")+COUNTIF(項目⑧チェック欄,\"×\")+COUNTIF(項目⑧チェック欄,\"\"))*100))","v":88.095238095238088}]
[]
[null,"<項目⑦ ： グリーン購入>"]
[null,"（チェック欄）",null,null,"SDGs関連ゴール"]
[null,"1 再生紙の使用"]
[null,"○",null,"コピー用紙、コンピューター用紙、伝票・事務用箋等、印刷物・パンフレット等、トイレットペーパー、名刺、その他の紙について、再生紙又は未利用繊維への転換を進めている","１２",null,null,1,{"$f":"SUM(H171:H173)","v":3},{"$f":"COUNTIF(B171,\"○\")+COUNTIF(B171,\"△\")+COUNTIF(B171,\"×\")+COUNTBLANK(B171)","v":1},{"$f":"SUM(J171:J173)","v":3},{"$f":"I171/K171","v":1}]
[null,"○",null,"再生パルプの使用率や白色度を考慮した再生紙利用の目標・基準を立て、使用状況を把握しながら取り組んでいる",null,null,null,1,null,{"$f":"COUNTIF(B172,\"○\")+COUNTIF(B172,\"△\")+COUNTIF(B172,\"×\")+COUNTBLANK(B172)","v":1}]
[null,"○",null,"再生パルプ使用率が印刷物等に明記されている",null,null,null,1,null,{"$f":"COUNTIF(B173,\"○\")+COUNTIF(B173,\"△\")+COUNTIF(B173,\"×\")+COUNTBLANK(B173)","v":1}]
[null,"2 その他環境に配慮した物品等の購入、使用",null,null,null,null,null,""]
[null,"○",null,"エコマーク商品を優先的に購入している","１２",null,null,1,{"$f":"SUM(H175:H179)","v":5},{"$f":"COUNTIF(B175,\"○\")+COUNTIF(B175,\"△\")+COUNTIF(B175,\"×\")+COUNTBLANK(B175)","v":1},{"$f":"SUM(J175:J179)","v":5},{"$f":"I175/K175","v":1}]
[null,"○",null,"再生材料から作られた製品を優先的に、あるいは再生パルプ使用率を確認し購入、使用している",null,null,null,1,null,{"$f":"COUNTIF(B176,\"○\")+COUNTIF(B176,\"△\")+COUNTIF(B176,\"×\")+COUNTBLANK(B176)","v":1}]
[null,"○",null,"間伐材、未利用資源等を利用した製品を積極的に購入、使用している",null,null,null,1,null,{"$f":"COUNTIF(B177,\"○\")+COUNTIF(B177,\"△\")+COUNTIF(B177,\"×\")+COUNTBLANK(B177)","v":1}]
[null,"○",null,"木材の調達に当たり、跡地の緑化・植林・環境修復が適切に行われていることに配慮し、又は跡地緑化等に協力している",null,null,null,1,null,{"$f":"COUNTIF(B178,\"○\")+COUNTIF(B178,\"△\")+COUNTIF(B178,\"×\")+COUNTBLANK(B178)","v":1}]
[null,"○",null,"その他、無漂白製品（衣料品等）、水性塗料等の環境への負荷の少ない製品を優先的に購入、使用している",null,null,null,1,null,{"$f":"COUNTIF(B179,\"○\")+COUNTIF(B179,\"△\")+COUNTIF(B179,\"×\")+COUNTBLANK(B179)","v":1}]
[null,"3 環境に配慮した物品等の調達に係る基準等",null,null,null,null,null,""]
[null,"△",null,"環境に配慮した物品等の調達に係る基準、リストを作成し、現状に合わせて、見直しを行っている","１２",null,null,0.5,{"$f":"SUM(H181:H183)","v":1.5},{"$f":"COUNTIF(B181,\"○\")+COUNTIF(B181,\"△\")+COUNTIF(B181,\"×\")+COUNTBLANK(B181)","v":1},{"$f":"SUM(J181:J183)","v":3},{"$f":"I181/K181","v":0.5}]
[null,"△",null,"基準、リストに基づく調達状況を把握している",null,null,null,0.5,null,{"$f":"COUNTIF(B182,\"○\")+COUNTIF(B182,\"△\")+COUNTIF(B182,\"×\")+COUNTBLANK(B182)","v":1}]
[null,"△",null,"原料・中間材の購入に当たって環境配慮のチェックを行っている",null,null,null,0.5,null,{"$f":"COUNTIF(B183,\"○\")+COUNTIF(B183,\"△\")+COUNTIF(B183,\"×\")+COUNTBLANK(B183)","v":1}]
[null,null,"チェック欄数：１１",null,null,null,null,null,{"$f":"SUM(I171:I183)","v":9.5},null,{"$f":"SUM(K171:K183)","v":11},{"$f":"I184/K184","v":0.86363636363636365}]
[null,null,null,{"$f":"IF( (COUNTIF(項目⑨チェック欄,\"○\")+COUNTIF(項目⑨チェック欄,\"△\")+COUNTIF(項目⑨チェック欄,\"×\")+COUNTIF(項目⑨チェック欄,\"―\"))=0,\"達成率　　　　%\",IF( (COUNTIF(項目⑨チェック欄,\"○\")+COUNTIF(項目⑨チェック欄,\"△\")+COUNTIF(項目⑨チェック欄,\"×\"))=0,\"達成率　　―　%\",(COUNTIF(項目⑨チェック欄,\"○\")+COUNTIF(項目⑨チェック欄,\"△\")*0.5)/(COUNTIF(項目⑨チェック欄,\"○\")+COUNTIF(項目⑨チェック欄,\"△\")+COUNTIF(項目⑨チェック欄,\"×\")+COUNTIF(項目⑨チェック欄,\"\"))*100))","v":86.36363636363636}]
[null,"<項目⑧ ： 環境教育、環境保全のための仕組みの整備>"]
[null,"（チェック欄）",null,null,"SDGs関連ゴール"]
[null,"1 環境保全に関する職員等への教育、意識の向上"]
[null,"○",null,"職員等に環境意識の向上や、環境保全活動に必要な教育を行う計画を定めている","４、１１",null,null,1,{"$f":"SUM(H189:H193)","v":5},{"$f":"COUNTIF(B189,\"○\")+COUNTIF(B189,\"△\")+COUNTIF(B189,\"×\")+COUNTBLANK(B189)","v":1},{"$f":"SUM(J189:J193)","v":5},{"$f":"I189/K189","v":1}]
[null,"○",null,"職員等に環境教育を実施している",null,null,null,1,null,{"$f":"COUNTIF(B190,\"○\")+COUNTIF(B190,\"△\")+COUNTIF(B190,\"×\")+COUNTBLANK(B190)","v":1}]
[null,"○",null,"環境教育の有効性を確認する効果測定等をおこなっている。",null,null,null,1,null,{"$f":"COUNTIF(B191,\"○\")+COUNTIF(B191,\"△\")+COUNTIF(B191,\"×\")+COUNTBLANK(B191)","v":1}]
[null,"○",null,"職員等の力量評価や環境保全上必要な資格、能力等を保有できるように養成している",null,null,null,1,null,{"$f":"COUNTIF(B192,\"○\")+COUNTIF(B192,\"△\")+COUNTIF(B192,\"×\")+COUNTBLANK(B192)","v":1}]
[null,"○",null,"委託・協力会社などの職員等についても、必要な知識、能力等を保有するよう、対応をとっている",null,null,null,1,null,{"$f":"COUNTIF(B193,\"○\")+COUNTIF(B193,\"△\")+COUNTIF(B193,\"×\")+COUNTBLANK(B193)","v":1}]
[null,"2 職員等の自主的なボランティア活動に対する支援",null,null,null,null,null,""]
[null,"○",null,"ボランティア休暇など、組織の制度として支援システムがある","４、８",null,null,1,{"$f":"SUM(H195:H196)","v":2},{"$f":"COUNTIF(B195,\"○\")+COUNTIF(B195,\"△\")+COUNTIF(B195,\"×\")+COUNTBLANK(B195)","v":1},{"$f":"SUM(J195:J196)","v":2},{"$f":"I195/K195","v":1}]
[null,"○",null,"環境に関する研究や活動を行っているサークル等に対する支援を行っている",null,null,null,1,null,{"$f":"COUNTIF(B196,\"○\")+COUNTIF(B196,\"△\")+COUNTIF(B196,\"×\")+COUNTBLANK(B196)","v":1}]
[null,"3 通勤に係る環境への負荷の低減",null,null,null,null,null,{"$f":"IF(B197=\"○\",1,IF(B197=\"△\",0.5,IF(B197=\"×\",0.1,\"\")))","v":""}]
[null,"△",null,"通勤等に公共交通機関を利用するよう指導している","１２",null,null,0.5,{"$f":"SUM(H198:H198)","v":0.5},{"$f":"COUNTIF(B198,\"○\")+COUNTIF(B198,\"△\")+COUNTIF(B198,\"×\")+COUNTBLANK(B198)","v":1},{"$f":"SUM(J198:J198)","v":1},{"$f":"I198/K198","v":0.5}]
[null,"4 法規制等への対応",null,null,null,null,null,""]
[null,"○",null,"法規制等の最新情報を常に入手している","３、１１～１５",null,null,1,{"$f":"SUM(H200:H203)","v":3},{"$f":"COUNTIF(B200,\"○\")+COUNTIF(B200,\"△\")+COUNTIF(B200,\"×\")+COUNTBLANK(B200)","v":1},{"$f":"SUM(J200:J203)","v":4},{"$f":"I200/K200","v":0.75}]
[null,"○",null,"業務プロセスについて法規制に対しての遵守評価がおこなわれている",null,null,null,1,null,{"$f":"COUNTIF(B201,\"○\")+COUNTIF(B201,\"△\")+COUNTIF(B201,\"×\")+COUNTBLANK(B201)","v":1}]
[null,"○",null,"法規制等の変化に対応する手順ができている",null,null,null,{"$f":"IF(B202=\"○\",1,IF(B202=\"△\",0.5,IF(B202=\"×\",0.1,\"\")))","v":1},null,{"$f":"COUNTIF(B202,\"○\")+COUNTIF(B202,\"△\")+COUNTIF(B202,\"×\")+COUNTBLANK(B202)","v":1}]
[null,null,null,"埼玉県の条例規制内容も把握している。",null,null,null,"",null,{"$f":"COUNTIF(B203,\"○\")+COUNTIF(B203,\"△\")+COUNTIF(B203,\"×\")+COUNTBLANK(B203)","v":1}]
[null,"5 環境対応のための組織体制整備",null,null,null,null,null,""]
[null,"○",null,"環境経営システムを実行するに当たり役割分担や責任、権限などが明確に定められている","３、４、６、７、９、",null,null,1,{"$f":"SUM(H205:H209)","v":5},{"$f":"COUNTIF(B205,\"○\")+COUNTIF(B205,\"△\")+COUNTIF(B205,\"×\")+COUNTBLANK(B205)","v":1},{"$f":"SUM(J205:J209)","v":5},{"$f":"I205/K205","v":1}]
[null,"○",null,"環境保全活動等を実行するに当たり、全組織的に推進する体制となっている","１１～１５",null,null,1,null,{"$f":"COUNTIF(B206,\"○\")+COUNTIF(B206,\"△\")+COUNTIF(B206,\"×\")+COUNTBLANK(B206)","v":1}]
[null,"○",null,"環境保全活動等を実行するに当たり必要な人材や情報、その他の資源が用意できる体制がある",null,null,null,1,null,{"$f":"COUNTIF(B207,\"○\")+COUNTIF(B207,\"△\")+COUNTIF(B207,\"×\")+COUNTBLANK(B207)","v":1}]
[null,"○",null,"環境保全活動等を所管する役員が任命されている",null,null,null,1,null,{"$f":"COUNTIF(B208,\"○\")+COUNTIF(B208,\"△\")+COUNTIF(B208,\"×\")+COUNTBLANK(B208)","v":1}]
[null,"○",null,"職員の採用の際、環境への意識の高さ、環境に関する知識等を判断材料のひとつにしている",null,null,null,1,null,{"$f":"COUNTIF(B209,\"○\")+COUNTIF(B209,\"△\")+COUNTIF(B209,\"×\")+COUNTBLANK(B209)","v":1}]
[null,"6 コミュニケーション",null,null,null,null,null,""]
[null,"△",null,"環境保全活動に必要な情報やその実績、評価結果などが内部で適切に伝達される仕組みが整えられている","１１",null,null,0.5,{"$f":"SUM(H211:H212)","v":1},{"$f":"COUNTIF(B211,\"○\")+COUNTIF(B211,\"△\")+COUNTIF(B211,\"×\")+COUNTBLANK(B211)","v":1},{"$f":"SUM(J211:J212)","v":2},{"$f":"I211/K211","v":0.5}]
[null,"△",null,"外部からの意見や苦情、問い合わせなどを受け付け、対応し、情報を管理する仕組みが整えられている",null,null,null,0.5,null,{"$f":"COUNTIF(B212,\"○\")+COUNTIF(B212,\"△\")+COUNTIF(B212,\"×\")+COUNTBLANK(B212)","v":1}]
[null,"7 運用管理",null,null,null,null,null,""]
[null,"○",null,"環境保全活動上、必要な作業手順や運用基準等が明確に定められている",null,null,null,1,{"$f":"SUM(H214:H215)","v":2},{"$f":"COUNTIF(B214,\"○\")+COUNTIF(B214,\"△\")+COUNTIF(B214,\"×\")+COUNTBLANK(B214)","v":1},{"$f":"SUM(J214:J215)","v":2},{"$f":"I214/K214","v":1}]
[null,"○",null,"必要な場合、委託・協力会社などに対しても作業手順や運用基準が徹底されるよう、配慮している",null,null,null,1,null,{"$f":"COUNTIF(B215,\"○\")+COUNTIF(B215,\"△\")+COUNTIF(B215,\"×\")+COUNTBLANK(B215)","v":1}]
[null,"8 取引先への働きかけ等",null,null,null,null,null,""]
[null,"△",null,"協力会社、納入会社、委託業者、子会社等について、環境保全の面から評価し、その選定に活かすとともに、改善支援を行っている","１１",null,null,0.5,{"$f":"SUM(H217:H220)","v":2.5},{"$f":"COUNTIF(B217,\"○\")+COUNTIF(B217,\"△\")+COUNTIF(B217,\"×\")+COUNTBLANK(B217)","v":1},{"$f":"SUM(J217:J220)","v":4},{"$f":"I217/K217","v":0.625}]
[null,"○",null,"委託契約等に環境配慮が契約管理に組み込まれている",null,null,null,1,null,{"$f":"COUNTIF(B218,\"○\")+COUNTIF(B218,\"△\")+COUNTIF(B218,\"×\")+COUNTBLANK(B218)","v":1}]
[null,"△",null,"協力会社、子会社等に教育プログラムを提供している",null,null,null,0.5,null,{"$f":"COUNTIF(B219,\"○\")+COUNTIF(B219,\"△\")+COUNTIF(B219,\"×\")+COUNTBLANK(B219)","v":1}]
[null,"△",null,"顧客や発注者に対し、環境保全の提案をしている",null,null,null,0.5,null,{"$f":"COUNTIF(B220,\"○\")+COUNTIF(B220,\"△\")+COUNTIF(B220,\"×\")+COUNTBLANK(B220)","v":1}]
[null,null,"チェック欄数：２５",null,null,null,null,null,{"$f":"SUM(I189:I220)","v":21},null,{"$f":"SUM(K189:K220)","v":25},{"$f":"I221/K221","v":0.84}]
[null,null,null,{"$f":"IF( (COUNTIF(項目⑩チェック欄,\"○\")+COUNTIF(項目⑩チェック欄,\"△\")+COUNTIF(項目⑩チェック欄,\"×\")+COUNTIF(項目⑩チェック欄,\"―\"))=0,\"達成率　　　　%\",IF( (COUNTIF(項目⑩チェック欄,\"○\")+COUNTIF(項目⑩チェック欄,\"△\")+COUNTIF(項目⑩チェック欄,\"×\"))=0,\"達成率　　―　%\",(COUNTIF(項目⑩チェック欄,\"○\")+COUNTIF(項目⑩チェック欄,\"△\")*0.5)/(COUNTIF(項目⑩チェック欄,\"○\")+COUNTIF(項目⑩チェック欄,\"△\")+COUNTIF(項目⑩チェック欄,\"×\")+COUNTIF(項目⑩チェック欄,\"\"))*100))","v":84}]
[null,"<項目⑨ ： その他（情報提供、社会貢献、地域の環境保全ほか）>"]
[null,"（チェック欄）",null,null,"SDGs関連ゴール"]
[null,"1 事業上の環境に関する情報の提供、公表"]
[null,"○",null,"事業活動に伴う重要な環境負荷・環境に関する主要な目標、環境担当者の連絡先等を公表している","１１",null,null,1,{"$f":"SUM(H226:H228)","v":3},{"$f":"COUNTIF(B226,\"○\")+COUNTIF(B226,\"△\")+COUNTIF(B226,\"×\")+COUNTBLANK(B226)","v":1},{"$f":"SUM(J226:J228)","v":3},{"$f":"I226/K226","v":1}]
[null,"○",null,"消費者等に対して、情報提供や啓発活動を行っている",null,null,null,1,null,{"$f":"COUNTIF(B227,\"○\")+COUNTIF(B227,\"△\")+COUNTIF(B227,\"×\")+COUNTBLANK(B227)","v":1}]
[null,"○",null,"外部からの情報の提供、公表の依頼に対する窓口を置いている",null,null,null,1,null,{"$f":"COUNTIF(B228,\"○\")+COUNTIF(B228,\"△\")+COUNTIF(B228,\"×\")+COUNTBLANK(B228)","v":1}]
[null,"2 環境に関する取組等に関する外部の関係者の意見等の聴取",null,null,null,null,null,""]
[null,"○",null,"意見聴取を定期的に行い、環境に対する取組の際に考慮している","１１",null,null,1,{"$f":"SUM(H230:H230)","v":1},{"$f":"COUNTIF(B230,\"○\")+COUNTIF(B230,\"△\")+COUNTIF(B230,\"×\")+COUNTBLANK(B230)","v":1},{"$f":"SUM(J230:J230)","v":1},{"$f":"I230/K230","v":1}]
[null,"3 環境保全に関する社内、団体等への参加・支援",null,null,null,null,null,""]
[null,"○",null,"環境に関する基金・団体の設置、既存の基金・団体を支援している（人材派遣、資金面での援助、従業員の給与の端数を集めた寄付、広報活動への協力等）","９、１１",null,null,1,{"$f":"SUM(H232:H236)","v":4},{"$f":"COUNTIF(B232,\"○\")+COUNTIF(B232,\"△\")+COUNTIF(B232,\"×\")+COUNTBLANK(B232)","v":1},{"$f":"SUM(J232:J236)","v":5},{"$f":"I232/K232","v":0.8}]
[null,"○",null,"環境関係の基金等へのマッチングギフト（従業員労働組合等の任意の寄付と同額の寄付を事業主として行うこと）を行っている",null,null,null,1,null,{"$f":"COUNTIF(B233,\"○\")+COUNTIF(B233,\"△\")+COUNTIF(B233,\"×\")+COUNTBLANK(B233)","v":1}]
[null,"○",null,"地域のボランティア活動等に積極的に参加し、協力、支援を行っている",null,null,null,1,null,{"$f":"COUNTIF(B234,\"○\")+COUNTIF(B234,\"△\")+COUNTIF(B234,\"×\")+COUNTBLANK(B234)","v":1}]
[null,"○",null,"環境に関連する表彰制度等のインセンティブをはかっている",null,null,null,1,null,{"$f":"COUNTIF(B235,\"○\")+COUNTIF(B235,\"△\")+COUNTIF(B235,\"×\")+COUNTBLANK(B235)","v":1}]
[null,null,null,"大学に環境関係の寄付講座を開くなど、研究機関への支援を行っている",null,null,null,"",null,{"$f":"COUNTIF(B236,\"○\")+COUNTIF(B236,\"△\")+COUNTIF(B236,\"×\")+COUNTBLANK(B236)","v":1}]
[null,"4 国際協力及び海外における環境配慮",null,null,null,null,null,""]
[null,"―",null,"開発環境保全技術やノウハウについて、海外への情報の提供を行っている","１７",null,null,"",{"$f":"SUM(H238:H244)","v":0},{"$f":"COUNTIF(B238,\"○\")+COUNTIF(B238,\"△\")+COUNTIF(B238,\"×\")+COUNTBLANK(B238)","v":0},{"$f":"SUM(J238:J244)","v":0},{"$f":"I238/K238","v":{"$error":"#DIV/0!"}}]
[null,"―",null,"技術者の派遣、国内研修の受入等により技術移転の推進を進めている",null,null,null,"",null,0]
[null,"―",null,"海外における環境対策に資するＮＧＯ活動、緑化等の諸活動に積極的に協力している",null,null,null,"",null,0]
[null,"―",null,"進出先の従業員、周辺住民等に必要な情報を積極的に提供し、環境配慮に関する企業広報を積極的に行っている",null,null,null,"",null,0]
[null,"―",null,"進出先の環境配慮の取組に対する本社の支援体制を整備している",null,null,null,"",null,0]
[null,"―",null,"進出先国の排出基準、目標等を遵守しているとともに、その基準が日本より緩やかな場合は、日本の基準を適用している",null,null,null,"",null,0]
[null,"―",null,"進出に当たって、進出先の環境に与える影響の事前評価と、進出後の環境影響の事後評価によるフィードバックを行っている",null,null,null,"",null,0]
[null,"5 投資・融資における環境配慮",null,null,null,null,null,""]
[null,"―",null,"投資・融資に当たり、環境面から審査を行っている","９、１１",null,null,"",{"$f":"SUM(H246:H252)","v":2.7},{"$f":"COUNTIF(B246,\"○\")+COUNTIF(B246,\"△\")+COUNTIF(B246,\"×\")+COUNTBLANK(B246)","v":0},{"$f":"SUM(J246:J252)","v":5},{"$f":"I246/K246","v":0.54}]
[null,"―",null,"投資・融資対象事業の環境影響評価に関するノウハウをもっている",null,null,null,"",null,0]
[null,"△",null,"温暖化対策や環境保全を目的とした設備・機器導入を設備計画に反映している",null,null,null,0.5,null,1]
[null,"○",null,"社会的責任投資（ＳＲＩ）が方針として謳われている",null,null,null,1,null,1]
[null,"○",null,"環境審査担当のスタッフがいる",null,null,null,1,null,1]
[null,"×",null,"環境面からの制限業種リストを作成し、融資窓口での制限を徹底するなど、環境上問題のある事業への投融資は制限している",null,null,null,0.1,null,1]
[null,"×",null,"環境保全に関する公的融資制度の利用を推進している",null,null,null,0.1,null,1]
[null,null,"チェック欄数：２３",null,null,null,null,null,{"$f":"SUM(I226:I252)","v":10.7},null,{"$f":"SUM(K226:K252)","v":14},{"$f":"I253/K253","v":0.76428571428571423}]
[null,null,null,{"$f":"IF( (COUNTIF(項目⑫チェック欄,\"○\")+COUNTIF(項目⑫チェック欄,\"△\")+COUNTIF(項目⑫チェック欄,\"×\")+COUNTIF(項目⑫チェック欄,\"―\"))=0,\"達成率　　　　%\",IF( (COUNTIF(項目⑫チェック欄,\"○\")+COUNTIF(項目⑫チェック欄,\"△\")+COUNTIF(項目⑫チェック欄,\"×\"))=0,\"達成率　　―　%\",(COUNTIF(項目⑫チェック欄,\"○\")+COUNTIF(項目⑫チェック欄,\"△\")*0.5)/(COUNTIF(項目⑫チェック欄,\"○\")+COUNTIF(項目⑫チェック欄,\"△\")+COUNTIF(項目⑫チェック欄,\"×\")+COUNTIF(項目⑫チェック欄,\"\"))*100))","v":75}]

{"sheet":"利用方法","index":4,"n_rows":27,"n_cols":6,"rows_kept":27,"cut":false,"hidden":false,"merged":[[11,2,11,3],[7,2,7,3],[8,2,8,3],[9,2,9,3],[6,2,6,3],[10,2,10,3]]}
[]
[]
[]
[]
[]
[]
[null,null,"取組状況",null,"記号","配点"]
[null,null,"取組が十分に配慮、実行されている\n（おおむね７割以上対応できている）",null,"○","100点"]
[null,null,"取組が実行されているが、十分ではない\n（３割～７割程度の対応の出来である）",null,"△","50点"]
[null,null,"取組がわずかしか実行されていない\n（対応状況が３割以下である）",null,"×","１0点"]
[null,null,"事業者として全く取り組みされていない",null,"\"空欄\"","0点"]
[null,null,"該当しない取組\n（事業者として該当していない）",null,"―","対象外"]
[]
[]
[]
[]
[]
[]
[]
[null,"本ファイルを開いたのち、データを読み取りたい環境保全取組ﾁｪｯｸｼｰﾄ（旧ファイル）を開いてください。"]
[null,"（複数のExcelファイルを開いているとうまくいかない場合があります。不要なファイルは閉じてください。）"]
[null,"上の青いボタンを押すと、データを読み取ります。"]
[null,"（注：この機能を利用するにはマクロを有効しておく必要があります）"]
[null,"本ファイルを保存する際、拡張子を.xlsm以外で保存すると、マクロ機能はなくなります。"]
[null,"対象の読取ファイルは「H３０度版改訂 環境保全取組ﾁｪｯｸｼｰﾄ」です。その他の版ではうまく読取が"]
[null,"できません。(ファイル様式の原版から、行の挿入や削除をおこなったものは使用できません。）"]
[null,"※本バージョンでは項目③２、⑧４に追加行がありますので、これらについては追記してください。"]